Department Family,Entity,Date,Expense Type,Expense Area,Supplier,Transaction Number,Amount,Description
Department for Education,Core,25/01/2024,Auditors Services,Operational Finance,Hm Treasury Group,CORE-PINV-071715,"505,000.00",Assurance
Department for Education,Core,05/01/2024,Accommodation and Estates - Maintenance,Estates,Government Property Agency,CORE-PINV-061817,"61,955.09",Maintenance and Repairs
Department for Education,Core,05/01/2024,Accommodation and Estates - Other,Estates,Government Property Agency,CORE-PINV-061817,"3,755.00",Estates Management
Department for Education,Core,05/01/2024,Accommodation and Estates - Rent and Rates,Estates,Government Property Agency,CORE-PINV-061817,"138,063.09",Rentals
Department for Education,Core,05/01/2024,Accommodation and Estates - Maintenance,Estates,Government Property Agency,CORE-PINV-063270,"61,955.09",Maintenance and Repairs
Department for Education,Core,05/01/2024,Accommodation and Estates - Other,Estates,Government Property Agency,CORE-PINV-063270,"3,755.00",Estates Management
Department for Education,Core,05/01/2024,Accommodation and Estates - Rent and Rates,Estates,Government Property Agency,CORE-PINV-063270,"138,063.09",Rentals
Department for Education,Core,05/01/2024,Accommodation and Estates - Maintenance,Estates,Government Property Agency,CORE-PINV-067608,"61,955.09",Maintenance and Repairs
Department for Education,Core,05/01/2024,Accommodation and Estates - Other,Estates,Government Property Agency,CORE-PINV-067608,"3,755.00",Estates Management
Department for Education,Core,05/01/2024,Accommodation and Estates - Rent and Rates,Estates,Government Property Agency,CORE-PINV-067608,"138,063.09",Rentals
Department for Education,Core,04/01/2024,Other Costs,Estates,Arcadis Llp,CORE-PINV-070009,"40,478.00",Building Improvements
Department for Education,Core,04/01/2024,Other Costs,Estates,Isg Construction Limited,CORE-PINV-070018,"84,713.76",Building Improvements
Department for Education,Core,08/01/2024,Other Costs,Estates,Government Property Agency,CORE-PINV-070805,"1,360,197.58",GPA FM Recharge - PROJECT: Sanctuary Buildings
Department for Education,Core,16/01/2024,Other Costs,Estates,Willmott Dixon Construction Limited,CORE-PINV-071092,"4,544,430.44",Building Improvements
Department for Education,Core,30/01/2024,Staff - Other,Commercial,Cabinet Office,CORE-PINV-072036,"25,600.00",Recruitment Advertising
Department for Education,Core,19/01/2024,Other Goods and Services,Commercial,Government Actuarys Dept,CORE-PINV-071382,"48,093.80",Professional Services
Department for Education,Core,31/01/2024,Grants Expenditure,Commercial,Lewisham London Borough Council,CUPS0075887,"60,000.00",Capital grants - Local Government
Department for Education,Core,12/01/2024,IS/IT,Human Resources,Netpremacy Limited,CORE-PINV-070952,"132,378.62",Software licences
Department for Education,Core,18/01/2024,IS/IT,Human Resources,Workday Ltd,CORE-PINV-071274,"34,800.00",Software licences
Department for Education,Core,24/01/2024,IS/IT,Human Resources,Workday Ltd,CORE-PINV-071514,"37,392.00",Training
Department for Education,Core,25/01/2024,Staff - Other,Human Resources,Edenred (Incentives And Motivation) Limited,CORE-PINV-071688,"103,535.00",Rewards and Recognition
Department for Education,Core,25/01/2024,Staff - Other,Human Resources,Cabinet Office,CORE-PINV-071694,"45,000.00",Occupational Health
Department for Education,Core,05/01/2024,Other Goods and Services,Customer Experience and Digital,Cognizant Worldwide Limited,CORE-PINV-070589,"157,470.00",Professional Services
Department for Education,Core,18/01/2024,Other Goods and Services,Customer Experience and Digital,Cognizant Worldwide Limited,CORE-PINV-071091,"73,176.00",Professional Services
Department for Education,Core,05/01/2024,Office Costs,Technology,Xerox (Uk) Limited,CORE-PINV-070714,"21,809.18",Printing
Department for Education,Core,31/01/2024,IS/IT,Technology,Cdw Ltd,CORE-PINV-072030,"26,985.68",End User Software and Hardware
Department for Education,Core,05/01/2024,IS/IT,Technology,Computacenter (Uk) Limited,CORE-PINV-070578,"188,841.60",IT hardware
Department for Education,Core,05/01/2024,IS/IT,Technology,Computacenter (Uk) Limited,CORE-PINV-070579,"283,262.40",IT hardware
Department for Education,Core,05/01/2024,IS/IT,Technology,Computacenter (Uk) Limited,CORE-PINV-070686,"396,567.36",IT hardware
Department for Education,Core,05/01/2024,IS/IT,Technology,Computacenter (Uk) Limited,CORE-PINV-070687,"142,101.60",IT hardware
Department for Education,Core,05/01/2024,IS/IT,Technology,Probrand Limited,CORE-PINV-070727,"35,070.00",Components and Peripherals
Department for Education,Core,16/01/2024,Other Goods and Services,Customer Experience and Digital,Andigital Limited,CORE-PINV-071068,"28,866.00",Professional Services
Department for Education,Core,05/01/2024,Other Goods and Services,Technology,Alexander Mann Solutions Limited,CORE-PINV-070665,"36,643.20",Professional Services
Department for Education,Core,04/01/2024,IS/IT,Technology,Bytes Software Services Limited,CORE-PINV-070558,"1,691,830.44",End User Software and Hardware
Department for Education,Core,10/01/2024,IS/IT,Technology,Bt Group Plc,CORE-PINV-070857,"98,890.16",Telecoms facilities and services
Department for Education,Core,12/01/2024,Other Goods and Services,Technology,Methods Business And Digital Technology Limited,CORE-PINV-070916,"68,784.00",Professional Services
Department for Education,Core,23/01/2024,Other Goods and Services,Technology,Sol-Tec Limited,CORE-PINV-071285,"45,518.76",Professional Services
Department for Education,Core,04/01/2024,Other Goods and Services,SARDIS,Ecorys Uk Ltd,CORE-PINV-070373,"44,994.00",Research and Evaluation
Department for Education,Core,19/01/2024,Other Goods and Services,SARDIS,Ipsos (Market Research) Ltd,CORE-PINV-071357,"296,302.00",Research and Evaluation
Department for Education,Core,31/01/2024,Other Goods and Services,SARDIS,Ipsos (Market Research) Ltd,CORE-PINV-072005,"33,339.00",Research and Evaluation
Department for Education,Core,12/01/2024,Other Costs,SARDIS,Qualtrics Llc,CORE-PINV-070944,"60,000.00",Research and development
Department for Education,Core,16/01/2024,Other Costs,SARDIS,Ecorys Uk Ltd,CORE-PINV-071074,"50,000.00",Research and development
Department for Education,Core,25/01/2024,Other Costs,SARDIS,University College London,CORE-PINV-071663,"291,663.00",Research and development
Department for Education,Core,25/01/2024,Other Costs,SARDIS,Impacted Limited,CORE-PINV-071692,"62,560.00",Research and development
Department for Education,Core,05/01/2024,IS/IT,Data,Bramble Hub Limited,CORE-PINV-069651,"173,766.00",ICT repair and maintenance
Department for Education,Core,23/01/2024,Other Costs,Data,Engine Partners Uk Llp - Engine Transformation,CORE-PINV-071226,"62,775.00",Software Development
Department for Education,Core,23/01/2024,IS/IT,Data,Engine Partners Uk Llp - Engine Transformation,CORE-PINV-071237,"42,276.00",ICT repair and maintenance
Department for Education,Core,23/01/2024,IS/IT,Data,Engine Partners Uk Llp - Engine Transformation,CORE-PINV-071236,"29,592.00",ICT repair and maintenance
Department for Education,Core,31/01/2024,Other Costs,Data,Engine Partners Uk Llp - Engine Transformation,CORE-PINV-069623,"284,542.00",Software Development
Department for Education,Core,31/01/2024,Other Costs,Data,Engine Partners Uk Llp - Engine Transformation,CORE-PINV-069624,"162,180.00",Software Development
Department for Education,Core,31/01/2024,Other Costs,Data,Engine Partners Uk Llp - Engine Transformation,CORE-PINV-071225,"129,996.00",Software Development
Department for Education,Core,11/01/2024,Staff - Other,SARDIS,Cabinet Office,CORE-PINV-070950,"22,000.00",Recruitment Advertising
Department for Education,Core,09/01/2024,IS/IT,SARDIS,Hive It Limited,CORE-PINV-070818,"128,995.34",Systems Operations
Department for Education,Core,04/01/2024,IS/IT,Data,Bramble Hub Limited,CORE-PINV-069656,"35,088.00",Support - Managed Services
Department for Education,Core,05/01/2024,IS/IT,Data,Bramble Hub Limited,CORE-PINV-069653,"25,740.00",Support - Managed Services
Department for Education,Core,05/01/2024,IS/IT,Data,Bramble Hub Limited,CORE-PINV-069654,"25,740.00",ICT repair and maintenance
Department for Education,Core,17/01/2024,IS/IT,Data,Scrumconnect Limited,CORE-PINV-070920,"28,785.00",Support - Managed Services
Department for Education,Core,17/01/2024,IS/IT,Data,Rm Plc,CORE-PINV-071210,"596,955.72",Systems Operations
Department for Education,Core,19/01/2024,IS/IT,Data,Cognizant Worldwide Limited,CORE-PINV-070888,"25,143.00",ICT repair and maintenance
Department for Education,Core,22/01/2024,IS/IT,Data,Solirius Ltd,CORE-PINV-071437,"42,888.00",Support - Managed Services
Department for Education,Core,31/01/2024,IS/IT,Data,Cognizant Worldwide Limited,CORE-PINV-069516,"67,800.00",ICT repair and maintenance
Department for Education,Core,17/01/2024,IS/IT,Data,Opencast Software Europe Limited,CORE-PINV-071188,"94,740.00",Systems Operations
Department for Education,Core,17/01/2024,IS/IT,Data,Opencast Software Europe Limited,CORE-PINV-071190,"116,940.00",Systems Operations
Department for Education,Core,25/01/2024,IS/IT,Strategic Policy Directorate,Tpximpact Limited,CORE-PINV-071431,"66,793.00",Systems Development
Department for Education,Core,08/01/2024,Grants Expenditure,Capital Directorate,Portakabin Limited,D-PINV061919,"166,226.58",Current grants - Academy Trust
Department for Education,Core,04/01/2024,Other Costs,Capital Directorate,Mott Macdonald Limited,D-PINV061750,"51,637.20",Research and development
Department for Education,Core,04/01/2024,Other Costs,Capital Directorate,Mott Macdonald Limited,D-PINV061778,"120,250.80",Research and development
Department for Education,Core,11/01/2024,Other Costs,Capital Directorate,Mott Macdonald Limited,D-PINV061930,"26,946.00",Research and development
Department for Education,Core,22/01/2024,Grants Expenditure,Capital Directorate,Rise Multi Academy Trust,DU00102914,"42,033.84",Capital grants - Academy Trust
Department for Education,Core,05/01/2024,Grants Expenditure,Capital Directorate,Lingfield Education Trust,DU00103512,"48,405.95",Capital grants - Academy Trust
Department for Education,Core,05/01/2024,Grants Expenditure,Capital Directorate,Consilium Academies,DU00103513,"124,233.39",Capital grants - Academy Trust
Department for Education,Core,05/01/2024,Grants Expenditure,Capital Directorate,Manchester Diocesan Board Of Education,DU00103515,"34,085.84",Capital grants - Local Government
Department for Education,Core,05/01/2024,Grants Expenditure,Capital Directorate,Blessed Christopher Wharton Catholic Academy Trust,DU00103517,"26,162.32",Capital grants - Academy Trust
Department for Education,Core,05/01/2024,Grants Expenditure,Capital Directorate,Blessed Christopher Wharton Catholic Academy Trust,DU00103519,"39,354.41",Capital grants - Academy Trust
Department for Education,Core,05/01/2024,Grants Expenditure,Capital Directorate,Portsmouth City Council,DU00103522,"27,126.36",Capital grants - Local Government
Department for Education,Core,05/01/2024,Grants Expenditure,Capital Directorate,Bishop Ian Ramsey Cofe Primary School,DU00103528,"32,185.18",Capital grants - Academy Trust
Department for Education,Core,05/01/2024,Grants Expenditure,Capital Directorate,Cambridgeshire County Council,DU00103529,"30,371.09",Capital grants - Local Government
Department for Education,Core,05/01/2024,Grants Expenditure,Capital Directorate,Feversham Girls' Academy,DU00103530,"58,729.22",Capital grants - Academy Trust
Department for Education,Core,05/01/2024,Grants Expenditure,Capital Directorate,Qegsmat,DU00103532,"35,341.40",Capital grants - Academy Trust
Department for Education,Core,05/01/2024,Grants Expenditure,Capital Directorate,Wirral Metro Borough Council,DU00103540,"25,879.26",Capital grants - Local Government
Department for Education,Core,05/01/2024,Grants Expenditure,Capital Directorate,The Wensum Trust,DU00103541,"30,356.63",Capital grants - Academy Trust
Department for Education,Core,05/01/2024,Grants Expenditure,Capital Directorate,Liverpool City Council,DU00103544,"30,935.00",Capital grants - Local Government
Department for Education,Core,05/01/2024,Grants Expenditure,Capital Directorate,Derby City Council,DU00103549,"56,965.82",Capital grants - Local Government
Department for Education,Core,05/01/2024,Grants Expenditure,Capital Directorate,Sandwell Metro Borough Council,DU00103556,"39,115.00",Capital grants - Local Government
Department for Education,Core,05/01/2024,Grants Expenditure,Capital Directorate,Bedford Borough Council,DU00103557,"31,834.70",Capital grants - Local Government
Department for Education,Core,05/01/2024,Grants Expenditure,Capital Directorate,Bradford City Council,DU00103558,"32,446.72",Capital grants - Local Government
Department for Education,Core,05/01/2024,Grants Expenditure,Capital Directorate,Cornwall Education Learning Trust,DU00103559,"25,890.36",Capital grants - Academy Trust
Department for Education,Core,05/01/2024,Grants Expenditure,Capital Directorate,Sandwell Metro Borough Council,DU00103564,"30,282.40",Capital grants - Academy Trust
Department for Education,Core,05/01/2024,Grants Expenditure,Capital Directorate,Allestree Woodlands School,DU00103571,"35,968.27",Capital grants - Academy Trust
Department for Education,Core,05/01/2024,Grants Expenditure,Capital Directorate,Broad Horizons Education Trust,DU00103572,"28,765.51",Capital grants - Academy Trust
Department for Education,Core,05/01/2024,Grants Expenditure,Capital Directorate,The Dean Trust,DU00103573,"28,579.74",Capital grants - Academy Trust
Department for Education,Core,05/01/2024,Grants Expenditure,Capital Directorate,Norfolk County Council,DU00103575,"28,052.79",Capital grants - Academy Trust
Department for Education,Core,05/01/2024,Grants Expenditure,Capital Directorate,Derby Diocesan Academy Trust,DU00103578,"25,082.58",Capital grants - Academy Trust
Department for Education,Core,05/01/2024,Grants Expenditure,Capital Directorate,Joseph Leckie Academy,DU00103586,"204,740.84",Capital grants - Academy Trust
Department for Education,Core,05/01/2024,Grants Expenditure,Capital Directorate,Kader Academy,DU00103588,"56,606.55",Capital grants - Academy Trust
Department for Education,Core,05/01/2024,Grants Expenditure,Capital Directorate,Tonge Moor Primary Academy,DU00103589,"26,054.77",Capital grants - Academy Trust
Department for Education,Core,05/01/2024,Grants Expenditure,Capital Directorate,Middlesbrough Council,DU00103590,"65,490.01",Capital grants - Local Government
Department for Education,Core,05/01/2024,Grants Expenditure,Capital Directorate,Derby Diocesan Academy Trust,DU00103591,"37,491.15",Capital grants - Academy Trust
Department for Education,Core,05/01/2024,Grants Expenditure,Capital Directorate,Dixons Academies Trust,DU00103596,"139,933.00",Capital grants - Academy Trust
Department for Education,Core,05/01/2024,Grants Expenditure,Capital Directorate,Dixons Academies Trust,DU00103597,"105,278.00",Capital grants - Academy Trust
Department for Education,Core,05/01/2024,Grants Expenditure,Capital Directorate,Dixons Academies Trust,DU00103598,"54,020.00",Capital grants - Academy Trust
Department for Education,Core,05/01/2024,Grants Expenditure,Capital Directorate,Dixons Academies Trust,DU00103599,"52,059.00",Capital grants - Academy Trust
Department for Education,Core,05/01/2024,Grants Expenditure,Capital Directorate,Bury Metro Borough Council,DU00103600,"51,043.28",Capital grants - Local Government
Department for Education,Core,05/01/2024,Grants Expenditure,Capital Directorate,Middlesbrough Council,DU00103601,"53,561.14",Capital grants - Local Government
Department for Education,Core,05/01/2024,Grants Expenditure,Capital Directorate,Ayresome Primary School,DU00103602,"48,438.65",Capital grants - Academy Trust
Department for Education,Core,05/01/2024,Grants Expenditure,Capital Directorate,Nottingham City Council,DU00103603,"62,629.77",Capital grants - Local Government
Department for Education,Core,05/01/2024,Grants Expenditure,Capital Directorate,Watton Junior School,DU00103604,"40,559.16",Capital grants - Academy Trust
Department for Education,Core,05/01/2024,Grants Expenditure,Capital Directorate,Dudley Academies Trust,DU00103606,"44,926.38",Capital grants - Academy Trust
Department for Education,Core,05/01/2024,Grants Expenditure,Capital Directorate,Nottingham City Council,DU00103608,"68,714.07",Capital grants - Local Government
Department for Education,Core,05/01/2024,Grants Expenditure,Capital Directorate,Britannia Primary School And Nursery,DU00103611,"55,418.03",Capital grants - Academy Trust
Department for Education,Core,05/01/2024,Grants Expenditure,Capital Directorate,Consilium Academies,DU00103614,"119,193.01",Capital grants - Academy Trust
Department for Education,Core,05/01/2024,Grants Expenditure,Capital Directorate,Consilium Academies,DU00103615,"77,633.50",Capital grants - Academy Trust
Department for Education,Core,05/01/2024,Grants Expenditure,Capital Directorate,Diocese Of Southwell And Nottingham Multi-Academy Trust,DU00103616,"33,097.22",Capital grants - Academy Trust
Department for Education,Core,05/01/2024,Grants Expenditure,Capital Directorate,The True Learning Partnership,DU00103617,"78,934.79",Capital grants - Academy Trust
Department for Education,Core,05/01/2024,Grants Expenditure,Capital Directorate,East Sussex County Council,DU00103618,"25,036.42",Capital grants - Local Government
Department for Education,Core,05/01/2024,Grants Expenditure,Capital Directorate,Norbreck Primary Academy,DU00103622,"32,608.69",Capital grants - Academy Trust
Department for Education,Core,05/01/2024,Grants Expenditure,Capital Directorate,The Heath Family (North West),DU00103623,"61,452.92",Capital grants - Academy Trust
Department for Education,Core,05/01/2024,Grants Expenditure,Capital Directorate,Dixons Academies Trust,DU00103624,"61,701.00",Capital grants - Academy Trust
Department for Education,Core,05/01/2024,Grants Expenditure,Capital Directorate,Dixons Academies Trust,DU00103626,"45,199.00",Capital grants - Academy Trust
Department for Education,Core,05/01/2024,Grants Expenditure,Capital Directorate,Durham County Council,DU00103627,"47,740.75",Capital grants - Local Government
Department for Education,Core,05/01/2024,Grants Expenditure,Capital Directorate,Exceed Academies Trust,DU00103628,"27,725.00",Capital grants - Academy Trust
Department for Education,Core,05/01/2024,Grants Expenditure,Capital Directorate,Beckfoot Trust,DU00103630,"135,438.60",Capital grants - Academy Trust
Department for Education,Core,05/01/2024,Grants Expenditure,Capital Directorate,Sandwell Metro Borough Council,DU00103631,"53,672.98",Capital grants - Local Government
Department for Education,Core,05/01/2024,Grants Expenditure,Capital Directorate,The Sea View Trust,DU00103633,"66,597.94",Capital grants - Academy Trust
Department for Education,Core,05/01/2024,Grants Expenditure,Capital Directorate,Derby Diocesan Academy Trust,DU00103635,"41,131.50",Capital grants - Academy Trust
Department for Education,Core,05/01/2024,Grants Expenditure,Capital Directorate,Scotholme Primary And Nursery School,DU00103641,"54,769.79",Capital grants - Academy Trust
Department for Education,Core,05/01/2024,Grants Expenditure,Capital Directorate,Durham County Council,DU00103644,"254,827.27",Capital grants - Local Government
Department for Education,Core,05/01/2024,Grants Expenditure,Capital Directorate,The Skipton Academy,DU00103645,"60,062.45",Capital grants - Academy Trust
Department for Education,Core,12/01/2024,Grants Expenditure,Capital Directorate,Exceed Academies Trust,DU00103650,"29,271.00",Capital grants - Academy Trust
Department for Education,Core,12/01/2024,Grants Expenditure,Capital Directorate,"Hope Learning Trust, York",DU00103651,"225,999.16",Capital grants - Academy Trust
Department for Education,Core,12/01/2024,Grants Expenditure,Capital Directorate,Dales Academies Trust,DU00103654,"27,536.74",Capital grants - Academy Trust
Department for Education,Core,12/01/2024,Grants Expenditure,Capital Directorate,Rossmere Academy,DU00103655,"64,604.47",Capital grants - Academy Trust
Department for Education,Core,12/01/2024,Grants Expenditure,Capital Directorate,Nottingham City Council,DU00103657,"75,970.69",Capital grants - Local Government
Department for Education,Core,12/01/2024,Grants Expenditure,Capital Directorate,The Kemnal Academies Trust,DU00103660,"85,357.09",Capital grants - Academy Trust
Department for Education,Core,12/01/2024,Grants Expenditure,Capital Directorate,South Pennine Academies,DU00103662,"31,493.46",Capital grants - Academy Trust
Department for Education,Core,12/01/2024,Grants Expenditure,Capital Directorate,Nightingale Infant And Nursery School,DU00103663,"29,477.14",Capital grants - Academy Trust
Department for Education,Core,12/01/2024,Grants Expenditure,Capital Directorate,South Pennine Academies,DU00103664,"30,760.93",Capital grants - Academy Trust
Department for Education,Core,12/01/2024,Grants Expenditure,Capital Directorate,South Pennine Academies,DU00103666,"28,715.26",Capital grants - Academy Trust
Department for Education,Core,12/01/2024,Grants Expenditure,Capital Directorate,Flying High Trust,DU00103667,"37,998.24",Capital grants - Academy Trust
Department for Education,Core,12/01/2024,Grants Expenditure,Capital Directorate,Silvertrees Academy,DU00103669,"31,669.69",Capital grants - Academy Trust
Department for Education,Core,12/01/2024,Grants Expenditure,Capital Directorate,Cambridgeshire County Council,DU00103670,"32,563.03",Capital grants - Local Government
Department for Education,Core,12/01/2024,Grants Expenditure,Capital Directorate,Bradford City Council,DU00103672,"58,437.85",Capital grants - Local Government
Department for Education,Core,12/01/2024,Grants Expenditure,Capital Directorate,Sefton Metropolitan Borough Council,DU00103675,"97,344.00",Capital grants - Local Government
Department for Education,Core,12/01/2024,Grants Expenditure,Capital Directorate,Oldham Metropolitan Borough Council,DU00103677,"32,977.32",Capital grants - Local Government
Department for Education,Core,12/01/2024,Grants Expenditure,Capital Directorate,The Delta Education Trust,DU00103680,"97,728.67",Capital grants - Academy Trust
Department for Education,Core,12/01/2024,Grants Expenditure,Capital Directorate,Middlesbrough Council,DU00103683,"76,205.78",Capital grants - Local Government
Department for Education,Core,12/01/2024,Grants Expenditure,Capital Directorate,Sandwell Metro Borough Council,DU00103684,"62,446.05",Capital grants - Local Government
Department for Education,Core,12/01/2024,Grants Expenditure,Capital Directorate,Lichfield Diocesan Education Council Bar,DU00103685,"25,194.74",Capital grants - Local Government
Department for Education,Core,12/01/2024,Grants Expenditure,Capital Directorate,Cranmer Education Trust,DU00103688,"59,903.62",Capital grants - Academy Trust
Department for Education,Core,12/01/2024,Grants Expenditure,Capital Directorate,Bradford City Council,DU00103691,"40,699.76",Capital grants - Local Government
Department for Education,Core,12/01/2024,Grants Expenditure,Capital Directorate,Potteries Educational Trust,DU00103692,"48,381.00",Capital grants - Academy Trust
Department for Education,Core,12/01/2024,Grants Expenditure,Capital Directorate,River Tees High Academy,DU00103693,"49,107.60",Capital grants - Academy Trust
Department for Education,Core,12/01/2024,Grants Expenditure,Capital Directorate,Bradford City Council,DU00103694,"74,788.48",Capital grants - Local Government
Department for Education,Core,12/01/2024,Grants Expenditure,Capital Directorate,Carlton Academy Trust,DU00103697,"33,054.62",Capital grants - Academy Trust
Department for Education,Core,12/01/2024,Grants Expenditure,Capital Directorate,Carlton Academy Trust,DU00103698,"25,138.53",Capital grants - Academy Trust
Department for Education,Core,12/01/2024,Grants Expenditure,Capital Directorate,Fylde Coast Academy Trust,DU00103699,"47,052.80",Capital grants - Academy Trust
Department for Education,Core,12/01/2024,Grants Expenditure,Capital Directorate,East Sussex County Council,DU00103703,"28,723.10",Capital grants - Local Government
Department for Education,Core,12/01/2024,Grants Expenditure,Capital Directorate,Derbyshire County Council,DU00103705,"35,284.00",Capital grants - Local Government
Department for Education,Core,12/01/2024,Grants Expenditure,Capital Directorate,Cambridgeshire County Council,DU00103707,"32,211.56",Capital grants - Local Government
Department for Education,Core,12/01/2024,Grants Expenditure,Capital Directorate,Trinity Multi Academy Trust,DU00103711,"91,003.50",Capital grants - Academy Trust
Department for Education,Core,12/01/2024,Grants Expenditure,Capital Directorate,Thrive Education Partnership,DU00103713,"58,640.96",Capital grants - Academy Trust
Department for Education,Core,12/01/2024,Grants Expenditure,Capital Directorate,White Woods Primary Academy Trust,DU00103714,"26,891.43",Capital grants - Academy Trust
Department for Education,Core,12/01/2024,Grants Expenditure,Capital Directorate,Wirral Metro Borough Council,DU00103716,"28,658.90",Capital grants - Local Government
Department for Education,Core,12/01/2024,Grants Expenditure,Capital Directorate,East Midlands Education Trust,DU00103717,"38,396.81",Capital grants - Academy Trust
Department for Education,Core,12/01/2024,Grants Expenditure,Capital Directorate,Bradford City Council,DU00103718,"40,581.97",Capital grants - Local Government
Department for Education,Core,12/01/2024,Grants Expenditure,Capital Directorate,All Saints Catholic Collegiate,DU00103719,"49,567.46",Capital grants - Academy Trust
Department for Education,Core,12/01/2024,Grants Expenditure,Capital Directorate,Holy Cross Catholic Primary School,DU00103720,"31,948.11",Capital grants - Academy Trust
Department for Education,Core,12/01/2024,Grants Expenditure,Capital Directorate,St Edmund'S Catholic School,DU00103722,"68,713.63",Capital grants - Local Government
Department for Education,Core,12/01/2024,Grants Expenditure,Capital Directorate,Bishop Hogarth Catholic Education Trust,DU00103725,"186,033.61",Capital grants - Academy Trust
Department for Education,Core,12/01/2024,Grants Expenditure,Capital Directorate,Oldham Metropolitan Borough Council,DU00103728,"29,627.26",Capital grants - Local Government
Department for Education,Core,12/01/2024,Grants Expenditure,Capital Directorate,Victorious Academies Trust,DU00103730,"33,702.19",Capital grants - Academy Trust
Department for Education,Core,12/01/2024,Grants Expenditure,Capital Directorate,Victorious Academies Trust,DU00103731,"28,573.98",Capital grants - Academy Trust
Department for Education,Core,12/01/2024,Grants Expenditure,Capital Directorate,Bishop Hogarth Catholic Education Trust,DU00103735,"53,039.42",Capital grants - Academy Trust
Department for Education,Core,12/01/2024,Grants Expenditure,Capital Directorate,Rochdale Borough Council,DU00103736,"88,449.51",Capital grants - Local Government
Department for Education,Core,12/01/2024,Grants Expenditure,Capital Directorate,Bishop Hogarth Catholic Education Trust,DU00103737,"30,955.91",Capital grants - Academy Trust
Department for Education,Core,12/01/2024,Grants Expenditure,Capital Directorate,Victorious Academies Trust,DU00103739,"35,258.98",Capital grants - Academy Trust
Department for Education,Core,12/01/2024,Grants Expenditure,Capital Directorate,Knowsley Metro Borough Council,DU00103742,"38,140.00",Capital grants - Local Government
Department for Education,Core,12/01/2024,Grants Expenditure,Capital Directorate,Cathedral Schools Trust,DU00103744,"113,497.33",Capital grants - Academy Trust
Department for Education,Core,12/01/2024,Grants Expenditure,Capital Directorate,Halton Borough Council,DU00103748,"29,687.00",Capital grants - Local Government
Department for Education,Core,12/01/2024,Grants Expenditure,Capital Directorate,Derby Diocesan Academy Trust,DU00103749,"42,086.94",Capital grants - Academy Trust
Department for Education,Core,12/01/2024,Grants Expenditure,Capital Directorate,Learners Trust,DU00103752,"33,295.99",Capital grants - Academy Trust
Department for Education,Core,12/01/2024,Grants Expenditure,Capital Directorate,Archdiocese Of Liverpool,DU00103760,"52,115.52",Capital grants - Local Government
Department for Education,Core,12/01/2024,Grants Expenditure,Capital Directorate,Ad Astra Academy Trust,DU00103762,"50,789.65",Capital grants - Academy Trust
Department for Education,Core,12/01/2024,Grants Expenditure,Capital Directorate,Nottingham City Council,DU00103764,"28,118.69",Capital grants - Local Government
Department for Education,Core,12/01/2024,Grants Expenditure,Capital Directorate,The Milford Academy,DU00103766,"68,770.74",Capital grants - Academy Trust
Department for Education,Core,12/01/2024,Grants Expenditure,Capital Directorate,Bradford City Council,DU00103767,"30,869.00",Capital grants - Local Government
Department for Education,Core,12/01/2024,Grants Expenditure,Capital Directorate,"Hope Learning Trust, York",DU00103768,"202,257.97",Capital grants - Academy Trust
Department for Education,Core,12/01/2024,Grants Expenditure,Capital Directorate,Oldham Metropolitan Borough Council,DU00103769,"65,908.39",Capital grants - Local Government
Department for Education,Core,12/01/2024,Grants Expenditure,Capital Directorate,Tennyson Learning Community,DU00103770,"73,673.56",Capital grants - Academy Trust
Department for Education,Core,19/01/2024,Grants Expenditure,Capital Directorate,Cambridgeshire County Council,DU00104059,"37,930.17",Capital grants - Local Government
Department for Education,Core,19/01/2024,Grants Expenditure,Capital Directorate,Fairfield High School For Girls,DU00104062,"70,365.01",Capital grants - Academy Trust
Department for Education,Core,19/01/2024,Grants Expenditure,Capital Directorate,The Diamond Learning Partnership Trust,DU00104064,"38,244.18",Capital grants - Academy Trust
Department for Education,Core,19/01/2024,Grants Expenditure,Capital Directorate,The Diamond Learning Partnership Trust,DU00104065,"32,175.32",Capital grants - Academy Trust
Department for Education,Core,19/01/2024,Grants Expenditure,Capital Directorate,The Diamond Learning Partnership Trust,DU00104066,"30,038.34",Capital grants - Academy Trust
Department for Education,Core,19/01/2024,Grants Expenditure,Capital Directorate,The Gorse Academies Trust,DU00104068,"45,836.70",Capital grants - Academy Trust
Department for Education,Core,19/01/2024,Grants Expenditure,Capital Directorate,The Spencer Academies Trust,DU00104069,"61,536.27",Capital grants - Academy Trust
Department for Education,Core,19/01/2024,Grants Expenditure,Capital Directorate,The Diamond Learning Partnership Trust,DU00104070,"39,319.21",Capital grants - Academy Trust
Department for Education,Core,19/01/2024,Grants Expenditure,Capital Directorate,Tove Learning Trust,DU00104071,"82,334.99",Capital grants - Academy Trust
Department for Education,Core,19/01/2024,Grants Expenditure,Capital Directorate,Heartsease Primary Academy,DU00104083,"47,161.64",Capital grants - Academy Trust
Department for Education,Core,19/01/2024,Grants Expenditure,Capital Directorate,The Wherry School,DU00104085,"34,454.61",Capital grants - Academy Trust
Department for Education,Core,19/01/2024,Grants Expenditure,Capital Directorate,Durham County Council,DU00104088,"41,649.97",Capital grants - Local Government
Department for Education,Core,19/01/2024,Grants Expenditure,Capital Directorate,St Ralph Sherwin Catholic Multi Academy Trust,DU00104089,"28,573.98",Capital grants - Academy Trust
Department for Education,Core,19/01/2024,Grants Expenditure,Capital Directorate,Durham County Council,DU00104094,"29,468.41",Capital grants - Local Government
Department for Education,Core,19/01/2024,Grants Expenditure,Capital Directorate,Dixons Academies Trust,DU00104096,"87,758.00",Capital grants - Academy Trust
Department for Education,Core,19/01/2024,Grants Expenditure,Capital Directorate,Norfolk County Council,DU00104099,"28,573.27",Capital grants - Local Government
Department for Education,Core,19/01/2024,Grants Expenditure,Capital Directorate,Dixons Academies Trust,DU00104100,"28,036.00",Capital grants - Academy Trust
Department for Education,Core,19/01/2024,Grants Expenditure,Capital Directorate,All Saints Catholic Collegiate,DU00104102,"31,909.91",Capital grants - Academy Trust
Department for Education,Core,19/01/2024,Grants Expenditure,Capital Directorate,The Dean Trust,DU00104105,"30,551.85",Capital grants - Academy Trust
Department for Education,Core,19/01/2024,Grants Expenditure,Capital Directorate,Knowsley Metro Borough Council,DU00104106,"50,648.00",Capital grants - Local Government
Department for Education,Core,19/01/2024,Grants Expenditure,Capital Directorate,Exceed Academies Trust,DU00104114,"42,515.00",Capital grants - Academy Trust
Department for Education,Core,19/01/2024,Grants Expenditure,Capital Directorate,Eldon Grove Academy,DU00104120,"52,215.97",Capital grants - Academy Trust
Department for Education,Core,19/01/2024,Grants Expenditure,Capital Directorate,St Mary'S Church Of England Primary School,DU00104125,"35,285.37",Capital grants - Academy Trust
Department for Education,Core,19/01/2024,Grants Expenditure,Capital Directorate,Durham County Council,DU00104126,"41,649.97",Capital grants - Local Government
Department for Education,Core,19/01/2024,Grants Expenditure,Capital Directorate,Leeds Diocesan Board Of Finance,DU00104129,"25,654.52",Capital grants - Local Government
Department for Education,Core,19/01/2024,Grants Expenditure,Capital Directorate,Macmillan Academy,DU00104132,"56,512.58",Capital grants - Academy Trust
Department for Education,Core,19/01/2024,Grants Expenditure,Capital Directorate,Rochdale Borough Council,DU00104134,"38,552.74",Capital grants - Local Government
Department for Education,Core,19/01/2024,Grants Expenditure,Capital Directorate,Harper Green School,DU00104136,"104,868.00",Capital grants - Academy Trust
Department for Education,Core,19/01/2024,Grants Expenditure,Capital Directorate,Rivington And Blackrod High School,DU00104138,"127,343.60",Capital grants - Academy Trust
Department for Education,Core,19/01/2024,Grants Expenditure,Capital Directorate,Outwood Grange Academies Trust,DU00104139,"107,614.00",Capital grants - Academy Trust
Department for Education,Core,19/01/2024,Grants Expenditure,Capital Directorate,Manchester Diocesan Board Of Education,DU00104140,"43,408.80",Capital grants - Academy Trust
Department for Education,Core,19/01/2024,Grants Expenditure,Capital Directorate,Liverpool City Council,DU00104141,"25,015.00",Capital grants - Local Government
Department for Education,Core,19/01/2024,Grants Expenditure,Capital Directorate,Tees Valley Education,DU00104143,"25,128.81",Capital grants - Academy Trust
Department for Education,Core,19/01/2024,Grants Expenditure,Capital Directorate,Knowsley Metro Borough Council,DU00104145,"31,022.28",Capital grants - Local Government
Department for Education,Core,19/01/2024,Grants Expenditure,Capital Directorate,Broad Horizons Education Trust,DU00104150,"34,497.78",Capital grants - Academy Trust
Department for Education,Core,19/01/2024,Grants Expenditure,Capital Directorate,The Elliot Foundation Academies Trust,DU00104152,"29,832.96",Capital grants - Academy Trust
Department for Education,Core,19/01/2024,Grants Expenditure,Capital Directorate,Broad Horizons Education Trust,DU00104153,"106,614.12",Capital grants - Academy Trust
Department for Education,Core,19/01/2024,Grants Expenditure,Capital Directorate,Durham County Council,DU00104157,"29,468.41",Capital grants - Local Government
Department for Education,Core,19/01/2024,Grants Expenditure,Capital Directorate,Nottingham City Council,DU00104160,"30,252.08",Capital grants - Local Government
Department for Education,Core,19/01/2024,Grants Expenditure,Capital Directorate,Knowsley Metro Borough Council,DU00104168,"27,178.80",Capital grants - Local Government
Department for Education,Core,19/01/2024,Grants Expenditure,Capital Directorate,Northern Education Trust,DU00104170,"37,077.01",Capital grants - Academy Trust
Department for Education,Core,19/01/2024,Grants Expenditure,Capital Directorate,Northern Education Trust,DU00104176,"29,657.37",Capital grants - Academy Trust
Department for Education,Core,19/01/2024,Grants Expenditure,Capital Directorate,Ebor Academy Trust,DU00104180,"35,847.46",Capital grants - Academy Trust
Department for Education,Core,19/01/2024,Grants Expenditure,Capital Directorate,The Diocese Of Ely Multi-Academy Trust,DU00104182,"36,543.00",Capital grants - Academy Trust
Department for Education,Core,19/01/2024,Grants Expenditure,Capital Directorate,Broad Horizons Education Trust,DU00104186,"27,529.56",Capital grants - Academy Trust
Department for Education,Core,19/01/2024,Grants Expenditure,Capital Directorate,Westcountry Schools Trust,DU00104188,"31,845.75",Capital grants - Academy Trust
Department for Education,Core,19/01/2024,Grants Expenditure,Capital Directorate,Cambridgeshire County Council,DU00104189,"36,908.52",Capital grants - Local Government
Department for Education,Core,19/01/2024,Grants Expenditure,Capital Directorate,Archdiocese Of Liverpool,DU00104190,"31,081.80",Capital grants - Local Government
Department for Education,Core,19/01/2024,Grants Expenditure,Capital Directorate,St Teresa'S Catholic Primary School,DU00104192,"93,164.15",Capital grants - Academy Trust
Department for Education,Core,19/01/2024,Grants Expenditure,Capital Directorate,Allestree Woodlands School,DU00104193,"35,968.27",Capital grants - Academy Trust
Department for Education,Core,19/01/2024,Grants Expenditure,Capital Directorate,The Orchard School,DU00104203,"27,649.28",Capital grants - Local Government
Department for Education,Core,19/01/2024,Grants Expenditure,Capital Directorate,Newhouse Academy,DU00104204,"31,267.90",Capital grants - Academy Trust
Department for Education,Core,19/01/2024,Grants Expenditure,Capital Directorate,Oldham Metropolitan Borough Council,DU00104205,"43,819.67",Capital grants - Local Government
Department for Education,Core,19/01/2024,Grants Expenditure,Capital Directorate,Durham County Council,DU00104206,"29,468.41",Capital grants - Local Government
Department for Education,Core,19/01/2024,Grants Expenditure,Capital Directorate,Durham County Council,DU00104208,"29,468.41",Capital grants - Local Government
Department for Education,Core,19/01/2024,Grants Expenditure,Capital Directorate,Archdiocese Of Liverpool,DU00104209,"31,475.41",Capital grants - Local Government
Department for Education,Core,19/01/2024,Grants Expenditure,Capital Directorate,River Tyne Academy Gateshead,DU00104210,"25,440.06",Capital grants - Academy Trust
Department for Education,Core,19/01/2024,Grants Expenditure,Capital Directorate,Beckfoot Trust,DU00104211,"65,893.52",Capital grants - Academy Trust
Department for Education,Core,19/01/2024,Grants Expenditure,Capital Directorate,Wellspring Academy Trust,DU00104212,"45,118.80",Capital grants - Academy Trust
Department for Education,Core,19/01/2024,Grants Expenditure,Capital Directorate,Ormiston Academies Trust,DU00104213,"144,407.24",Capital grants - Academy Trust
Department for Education,Core,19/01/2024,Grants Expenditure,Capital Directorate,Hartlepool Borough Council,DU00104214,"40,966.86",Capital grants - Local Government
Department for Education,Core,19/01/2024,Grants Expenditure,Capital Directorate,E-Act,DU00104215,"45,058.34",Capital grants - Academy Trust
Department for Education,Core,19/01/2024,Grants Expenditure,Capital Directorate,Tameside Metro Borough Council,DU00104216,"67,159.33",Capital grants - Local Government
Department for Education,Core,19/01/2024,Grants Expenditure,Capital Directorate,Academies Enterprise Trust,DU00104217,"36,869.30",Capital grants - Academy Trust
Department for Education,Core,26/01/2024,Grants Expenditure,Capital Directorate,Rochdale Borough Council,DU00104231,"65,879.40",Capital grants - Local Government
Department for Education,Core,26/01/2024,Grants Expenditure,Capital Directorate,Exceed Academies Trust,DU00104235,"78,970.00",Capital grants - Academy Trust
Department for Education,Core,26/01/2024,Grants Expenditure,Capital Directorate,Durham County Council,DU00104236,"47,740.75",Capital grants - Local Government
Department for Education,Core,26/01/2024,Grants Expenditure,Capital Directorate,Sidney Stringer Multi Academy Trust,DU00104237,"44,844.41",Capital grants - Academy Trust
Department for Education,Core,26/01/2024,Grants Expenditure,Capital Directorate,Castleford Academy Trust,DU00104240,"32,720.90",Capital grants - Academy Trust
Department for Education,Core,26/01/2024,Grants Expenditure,Capital Directorate,Heron Park Primary Academy,DU00104241,"32,862.19",Capital grants - Academy Trust
Department for Education,Core,26/01/2024,Grants Expenditure,Capital Directorate,Flying High Trust,DU00104249,"41,877.47",Capital grants - Academy Trust
Department for Education,Core,26/01/2024,Grants Expenditure,Capital Directorate,Wirral Metro Borough Council,DU00104252,"81,979.95",Capital grants - Local Government
Department for Education,Core,26/01/2024,Grants Expenditure,Capital Directorate,Northern Schools Trust,DU00104253,"176,005.84",Capital grants - Academy Trust
Department for Education,Core,26/01/2024,Grants Expenditure,Capital Directorate,Northern Schools Trust,DU00104255,"32,431.60",Capital grants - Academy Trust
Department for Education,Core,26/01/2024,Grants Expenditure,Capital Directorate,The True Learning Partnership,DU00104257,"38,421.42",Capital grants - Academy Trust
Department for Education,Core,26/01/2024,Grants Expenditure,Capital Directorate,Sherborne Area Schools' Trust,DU00104259,"129,524.89",Capital grants - Academy Trust
Department for Education,Core,26/01/2024,Grants Expenditure,Capital Directorate,Sherborne Area Schools' Trust,DU00104260,"27,138.28",Capital grants - Academy Trust
Department for Education,Core,26/01/2024,Grants Expenditure,Capital Directorate,Liverpool City Council,DU00104265,"26,311.00",Capital grants - Local Government
Department for Education,Core,26/01/2024,Grants Expenditure,Capital Directorate,Stowmarket High School,DU00104270,"56,318.79",Capital grants - Academy Trust
Department for Education,Core,26/01/2024,Grants Expenditure,Capital Directorate,Thomas Deacon Education Trust,DU00104277,"63,963.00",Capital grants - Academy Trust
Department for Education,Core,26/01/2024,Grants Expenditure,Capital Directorate,Flying High Trust,DU00104280,"39,791.34",Capital grants - Academy Trust
Department for Education,Core,26/01/2024,Grants Expenditure,Capital Directorate,Bradford City Council,DU00104281,"34,479.00",Capital grants - Local Government
Department for Education,Core,26/01/2024,Grants Expenditure,Capital Directorate,Halton Borough Council,DU00104293,"27,657.26",Capital grants - Local Government
Department for Education,Core,26/01/2024,Grants Expenditure,Capital Directorate,Cambridgeshire County Council,DU00104297,"31,954.80",Capital grants - Local Government
Department for Education,Core,26/01/2024,Grants Expenditure,Capital Directorate,Thomas Deacon Education Trust,DU00104299,"38,213.00",Capital grants - Academy Trust
Department for Education,Core,26/01/2024,Grants Expenditure,Capital Directorate,The Wensum Trust,DU00104305,"58,668.72",Capital grants - Academy Trust
Department for Education,Core,26/01/2024,Grants Expenditure,Capital Directorate,Archibald Primary School,DU00104306,"67,604.73",Capital grants - Academy Trust
Department for Education,Core,26/01/2024,Grants Expenditure,Capital Directorate,St Cuthbert'S Catholic Academy,DU00104308,"50,514.60",Capital grants - Academy Trust
Department for Education,Core,26/01/2024,Grants Expenditure,Capital Directorate,University Of Brighton Academies Trust,DU00104309,"26,057.97",Capital grants - Academy Trust
Department for Education,Core,26/01/2024,Grants Expenditure,Capital Directorate,University Of Brighton Academies Trust,DU00104310,"28,276.88",Capital grants - Academy Trust
Department for Education,Core,26/01/2024,Grants Expenditure,Capital Directorate,University Of Brighton Academies Trust,DU00104312,"28,237.97",Capital grants - Academy Trust
Department for Education,Core,26/01/2024,Grants Expenditure,Capital Directorate,Manchester Diocesan Board Of Education,DU00104313,"48,711.80",Capital grants - Local Government
Department for Education,Core,26/01/2024,Grants Expenditure,Capital Directorate,Portsmouth City Council,DU00104314,"37,637.05",Capital grants - Local Government
Department for Education,Core,26/01/2024,Grants Expenditure,Capital Directorate,Broad Horizons Education Trust,DU00104326,"36,394.15",Capital grants - Academy Trust
Department for Education,Core,26/01/2024,Grants Expenditure,Capital Directorate,Tove Learning Trust,DU00104330,"59,138.61",Capital grants - Academy Trust
Department for Education,Core,26/01/2024,Grants Expenditure,Capital Directorate,The Active Learning Trust Limited,DU00104333,"64,170.85",Capital grants - Academy Trust
Department for Education,Core,26/01/2024,Grants Expenditure,Capital Directorate,The Dean Trust,DU00104337,"61,172.55",Capital grants - Academy Trust
Department for Education,Core,26/01/2024,Grants Expenditure,Capital Directorate,Wellspring Academy Trust,DU00104338,"26,054.93",Capital grants - Academy Trust
Department for Education,Core,26/01/2024,Grants Expenditure,Capital Directorate,Chiltern Learning Trust,DU00104339,"43,358.92",Capital grants - Academy Trust
Department for Education,Core,26/01/2024,Grants Expenditure,Capital Directorate,Epworth Education Trust,DU00104343,"26,476.00",Capital grants - Academy Trust
Department for Education,Core,26/01/2024,Grants Expenditure,Capital Directorate,Perryfields Academy,DU00104344,"109,703.00",Capital grants - Academy Trust
Department for Education,Core,26/01/2024,Grants Expenditure,Capital Directorate,Rochdale Borough Council,DU00104345,"39,070.56",Capital grants - Local Government
Department for Education,Core,26/01/2024,Grants Expenditure,Capital Directorate,Walsall Metro Borough Council,DU00104346,"81,675.68",Capital grants - Local Government
Department for Education,Core,26/01/2024,Grants Expenditure,Capital Directorate,Shrewsbury Diocesan Schools Account,DU00104347,"25,571.76",Capital grants - Local Government
Department for Education,Core,26/01/2024,Grants Expenditure,Capital Directorate,Odyssey Collaborative Trust,DU00104350,"56,333.00",Capital grants - Academy Trust
Department for Education,Core,26/01/2024,Grants Expenditure,Capital Directorate,Rochdale Borough Council,DU00104351,"25,312.92",Capital grants - Local Government
Department for Education,Core,26/01/2024,Grants Expenditure,Capital Directorate,Durham County Council,DU00104354,"41,649.97",Capital grants - Local Government
Department for Education,Core,26/01/2024,Grants Expenditure,Capital Directorate,Cambridgeshire County Council,DU00104355,"32,270.45",Capital grants - Local Government
Department for Education,Core,26/01/2024,Grants Expenditure,Capital Directorate,Beckfoot Trust,DU00104356,"112,681.90",Capital grants - Academy Trust
Department for Education,Core,26/01/2024,Grants Expenditure,Capital Directorate,Beckfoot Trust,DU00104360,"25,705.78",Capital grants - Academy Trust
Department for Education,Core,26/01/2024,Grants Expenditure,Capital Directorate,Exceed Academies Trust,DU00104361,"59,284.74",Capital grants - Academy Trust
Department for Education,Core,26/01/2024,Grants Expenditure,Capital Directorate,Beckfoot Trust,DU00104362,"43,319.80",Capital grants - Academy Trust
Department for Education,Core,26/01/2024,Grants Expenditure,Capital Directorate,The Spencer Academies Trust,DU00104363,"144,896.99",Capital grants - Academy Trust
Department for Education,Core,26/01/2024,Grants Expenditure,Capital Directorate,Tyne Coast Academy Trust,DU00104365,"70,875.54",Capital grants - Academy Trust
Department for Education,Core,26/01/2024,Grants Expenditure,Capital Directorate,Our Lady Of Lourdes Catholic Multi-Academy Trust,DU00104368,"99,613.88",Capital grants - Academy Trust
Department for Education,Core,26/01/2024,Grants Expenditure,Capital Directorate,Our Lady Of Lourdes Catholic Multi-Academy Trust,DU00104369,"410,902.34",Capital grants - Academy Trust
Department for Education,Core,09/01/2024,Other Goods and Services,Capital Directorate,Arcadis Llp,D-PINV061848,"62,498.99",Professional Services
Department for Education,Core,17/01/2024,Other Goods and Services,Capital Directorate,Rider Levett Bucknall Uk Limited,D-PINV060318,"163,176.07",Professional Services
Department for Education,Core,17/01/2024,Other Goods and Services,Capital Directorate,Rider Levett Bucknall Uk Limited,D-PINV061041,"132,707.92",Professional Services
Department for Education,Core,24/01/2024,Other Goods and Services,Capital Directorate,Arcadis Llp,D-PINV062389,"70,838.15",Professional Services
Department for Education,Core,31/01/2024,Other Goods and Services,Capital Directorate,Mott Macdonald Limited,D-PINV062636,"81,277.20",Professional Services
Department for Education,Core,09/01/2024,Other Goods and Services,Capital Directorate,Lyreco Uk Limited,D-PINV061925,"25,472.59",Automated External Defibrillator (AID) Programme
Department for Education,Core,29/01/2024,IS/IT,Capital Directorate,Cognizant Worldwide Limited,D-PINV062109,"34,103.63",Systems Development
Department for Education,Core,19/01/2024,Grants Expenditure,Capital Directorate,Bedford Borough Council,CL071407,"3,060,716.24",Capital grants - Local Government
Department for Education,Core,19/01/2024,Grants Expenditure,Capital Directorate,Blackpool Borough Council,CL071408,"41,402.78",Capital grants - Local Government
Department for Education,Core,19/01/2024,Grants Expenditure,Capital Directorate,Bolton Metro Borough Council,CL071409,"384,289.37",Capital grants - Local Government
Department for Education,Core,19/01/2024,Grants Expenditure,Capital Directorate,Bracknell Forest Borough Council,CL071410,"146,557.76",Capital grants - Local Government
Department for Education,Core,19/01/2024,Grants Expenditure,Capital Directorate,Bradford City Council,CL071411,"1,025,683.83",Capital grants - Local Government
Department for Education,Core,19/01/2024,Grants Expenditure,Capital Directorate,Bristol City Council,CL071412,"1,622,151.61",Capital grants - Local Government
Department for Education,Core,19/01/2024,Grants Expenditure,Capital Directorate,Buckinghamshire Council,CL071413,"432,719.73",Capital grants - Local Government
Department for Education,Core,19/01/2024,Grants Expenditure,Capital Directorate,Bury Metro Borough Council,CL071414,"648,790.70",Capital grants - Local Government
Department for Education,Core,19/01/2024,Grants Expenditure,Capital Directorate,Calderdale Metro Borough Council,CL071415,"689,476.46",Capital grants - Local Government
Department for Education,Core,19/01/2024,Grants Expenditure,Capital Directorate,Cambridgeshire County Council,CL071416,"251,028.70",Capital grants - Local Government
Department for Education,Core,19/01/2024,Grants Expenditure,Capital Directorate,Cheshire East Council,CL071417,"1,179,107.43",Capital grants - Local Government
Department for Education,Core,19/01/2024,Grants Expenditure,Capital Directorate,Cheshire West And Chester Council,CL071418,"548,598.35",Capital grants - Local Government
Department for Education,Core,19/01/2024,Grants Expenditure,Capital Directorate,Cornwall Council,CL071420,"897,469.40",Capital grants - Local Government
Department for Education,Core,19/01/2024,Grants Expenditure,Capital Directorate,Coventry City Council,CL071421,"2,241,768.45",Capital grants - Local Government
Department for Education,Core,19/01/2024,Grants Expenditure,Capital Directorate,Darlington Borough Council,CL071422,"114,961.40",Capital grants - Local Government
Department for Education,Core,19/01/2024,Grants Expenditure,Capital Directorate,Derby City Council,CL071423,"98,804.00",Capital grants - Local Government
Department for Education,Core,19/01/2024,Grants Expenditure,Capital Directorate,Derbyshire County Council,CL071424,"1,861,774.70",Capital grants - Local Government
Department for Education,Core,19/01/2024,Grants Expenditure,Capital Directorate,Devon County Council,CL071425,"629,627.69",Capital grants - Local Government
Department for Education,Core,19/01/2024,Grants Expenditure,Capital Directorate,Doncaster Metro Borough Council,CL071426,"371,551.23",Capital grants - Local Government
Department for Education,Core,19/01/2024,Grants Expenditure,Capital Directorate,Durham County Council,CL071428,"1,101,993.45",Capital grants - Local Government
Department for Education,Core,19/01/2024,Grants Expenditure,Capital Directorate,Ealing London Borough Council,CL071429,"2,029,197.42",Capital grants - Local Government
Department for Education,Core,19/01/2024,Grants Expenditure,Capital Directorate,East Riding Of Yorkshire Council,CL071430,"408,939.71",Capital grants - Local Government
Department for Education,Core,19/01/2024,Grants Expenditure,Capital Directorate,East Sussex County Council,CL071431,"318,023.38",Capital grants - Local Government
Department for Education,Core,19/01/2024,Grants Expenditure,Capital Directorate,Gateshead Council,CL071432,"1,398,929.01",Capital grants - Local Government
Department for Education,Core,19/01/2024,Grants Expenditure,Capital Directorate,Hackney London Borough Council,CL071433,"26,666.60",Capital grants - Local Government
Department for Education,Core,19/01/2024,Grants Expenditure,Capital Directorate,Havering London Borough Council,CL071435,"124,611.12",Capital grants - Local Government
Department for Education,Core,19/01/2024,Grants Expenditure,Capital Directorate,Herefordshire Council,CL071436,"901,261.08",Capital grants - Local Government
Department for Education,Core,19/01/2024,Grants Expenditure,Capital Directorate,Hertfordshire County Council,CL071437,"2,146,072.68",Capital grants - Local Government
Department for Education,Core,19/01/2024,Grants Expenditure,Capital Directorate,London Borough Of Hillingdon,CL071438,"53,653.30",Capital grants - Local Government
Department for Education,Core,19/01/2024,Grants Expenditure,Capital Directorate,Royal Borough Of Kensington And Chelsea Council,CL071441,"847,782.94",Capital grants - Local Government
Department for Education,Core,19/01/2024,Grants Expenditure,Capital Directorate,Royal Borough Of Kingston Upon Thames Council,CL071442,"1,347,333.61",Capital grants - Local Government
Department for Education,Core,19/01/2024,Grants Expenditure,Capital Directorate,Kirklees Metro Council,CL071443,"1,226,540.63",Capital grants - Local Government
Department for Education,Core,19/01/2024,Grants Expenditure,Capital Directorate,Knowsley Metro Borough Council,CL071444,"606,584.61",Capital grants - Local Government
Department for Education,Core,19/01/2024,Grants Expenditure,Capital Directorate,Lancashire County Council,CL071445,"3,316,772.44",Capital grants - Local Government
Department for Education,Core,19/01/2024,Grants Expenditure,Capital Directorate,Leeds City Council,CL071446,"2,886,832.77",Capital grants - Local Government
Department for Education,Core,19/01/2024,Grants Expenditure,Capital Directorate,Leicester City Council,CL071447,"831,412.22",Capital grants - Local Government
Department for Education,Core,19/01/2024,Grants Expenditure,Capital Directorate,Leicestershire County Council,CL071448,"1,583,962.49",Capital grants - Local Government
Department for Education,Core,19/01/2024,Grants Expenditure,Capital Directorate,Lincolnshire County Council,CL071449,"182,136.82",Capital grants - Local Government
Department for Education,Core,19/01/2024,Grants Expenditure,Capital Directorate,Liverpool City Council,CL071450,"2,260,815.14",Capital grants - Local Government
Department for Education,Core,19/01/2024,Grants Expenditure,Capital Directorate,Luton Borough Council,CL071451,"236,672.91",Capital grants - Local Government
Department for Education,Core,19/01/2024,Grants Expenditure,Capital Directorate,Manchester City Council,CL071452,"450,667.81",Capital grants - Local Government
Department for Education,Core,19/01/2024,Grants Expenditure,Capital Directorate,Medway Council,CL071453,"1,894,436.37",Capital grants - Local Government
Department for Education,Core,19/01/2024,Grants Expenditure,Capital Directorate,Newcastle Upon Tyne City Council,CL071454,"1,044,385.37",Capital grants - Local Government
Department for Education,Core,19/01/2024,Grants Expenditure,Capital Directorate,Norfolk County Council,CL071455,"1,770,958.28",Capital grants - Local Government
Department for Education,Core,19/01/2024,Grants Expenditure,Capital Directorate,North East Lincolnshire Council,CL071456,"225,629.06",Capital grants - Local Government
Department for Education,Core,19/01/2024,Grants Expenditure,Capital Directorate,North Lincolnshire Council,CL071457,"55,959.57",Capital grants - Local Government
Department for Education,Core,19/01/2024,Grants Expenditure,Capital Directorate,North Somerset Council,CL071458,"743,862.03",Capital grants - Local Government
Department for Education,Core,19/01/2024,Grants Expenditure,Capital Directorate,Northumberland County Council,CL071459,"595,169.79",Capital grants - Local Government
Department for Education,Core,19/01/2024,Grants Expenditure,Capital Directorate,Nottingham City Council,CL071460,"53,151.33",Capital grants - Local Government
Department for Education,Core,19/01/2024,Grants Expenditure,Capital Directorate,Nottinghamshire County Council,CL071461,"4,262,006.74",Capital grants - Local Government
Department for Education,Core,19/01/2024,Grants Expenditure,Capital Directorate,Oldham Metropolitan Borough Council,CL071462,"611,982.22",Capital grants - Local Government
Department for Education,Core,19/01/2024,Grants Expenditure,Capital Directorate,Redcar And Cleveland Borough Council,CL071464,"360,776.69",Capital grants - Local Government
Department for Education,Core,19/01/2024,Grants Expenditure,Capital Directorate,Richmond Upon Thames London Borough Council,CL071465,"243,653.99",Capital grants - Local Government
Department for Education,Core,19/01/2024,Grants Expenditure,Capital Directorate,Rutland County Council,CL071466,"195,330.31",Capital grants - Local Government
Department for Education,Core,19/01/2024,Grants Expenditure,Capital Directorate,Salford City Council,CL071467,"829,216.78",Capital grants - Local Government
Department for Education,Core,19/01/2024,Grants Expenditure,Capital Directorate,Sandwell Metro Borough Council,CL071468,"1,113,390.95",Capital grants - Local Government
Department for Education,Core,19/01/2024,Grants Expenditure,Capital Directorate,Sefton Metropolitan Borough Council,CL071469,"97,647.00",Capital grants - Local Government
Department for Education,Core,19/01/2024,Grants Expenditure,Capital Directorate,Sheffield City Council,CL071470,"1,077,028.37",Capital grants - Local Government
Department for Education,Core,19/01/2024,Grants Expenditure,Capital Directorate,Shropshire Council,CL071471,"395,806.11",Capital grants - Local Government
Department for Education,Core,19/01/2024,Grants Expenditure,Capital Directorate,South Gloucestershire Council,CL071472,"76,771.41",Capital grants - Local Government
Department for Education,Core,19/01/2024,Grants Expenditure,Capital Directorate,South Tyneside Council,CL071473,"270,212.96",Capital grants - Local Government
Department for Education,Core,19/01/2024,Grants Expenditure,Capital Directorate,Southend On Sea Borough Council,CL071474,"102,392.28",Capital grants - Local Government
Department for Education,Core,19/01/2024,Grants Expenditure,Capital Directorate,Staffordshire County Council,CL071475,"1,420,527.45",Capital grants - Local Government
Department for Education,Core,19/01/2024,Grants Expenditure,Capital Directorate,Stockport Metro Borough Council,CL071476,"719,104.10",Capital grants - Local Government
Department for Education,Core,19/01/2024,Grants Expenditure,Capital Directorate,Surrey County Council,CL071477,"2,767,446.84",Capital grants - Local Government
Department for Education,Core,19/01/2024,Grants Expenditure,Capital Directorate,Swindon Borough Council,CL071478,"43,311.47",Capital grants - Local Government
Department for Education,Core,19/01/2024,Grants Expenditure,Capital Directorate,Telford And Wrekin Council,CL071479,"1,566,379.37",Capital grants - Local Government
Department for Education,Core,19/01/2024,Grants Expenditure,Capital Directorate,Trafford Borough Council,CL071480,"945,537.49",Capital grants - Local Government
Department for Education,Core,19/01/2024,Grants Expenditure,Capital Directorate,Walsall Metro Borough Council,CL071481,"1,194,250.12",Capital grants - Local Government
Department for Education,Core,19/01/2024,Grants Expenditure,Capital Directorate,Waltham Forest London Borough Council,CL071482,"170,004.32",Capital grants - Local Government
Department for Education,Core,19/01/2024,Grants Expenditure,Capital Directorate,Warrington Borough Council,CL071484,"589,888.56",Capital grants - Local Government
Department for Education,Core,19/01/2024,Grants Expenditure,Capital Directorate,Warwickshire County Council,CL071485,"4,538,919.55",Capital grants - Local Government
Department for Education,Core,19/01/2024,Grants Expenditure,Capital Directorate,West Berkshire Council,CL071486,"751,596.17",Capital grants - Local Government
Department for Education,Core,19/01/2024,Grants Expenditure,Capital Directorate,West Sussex County Council,CL071487,"2,201,080.36",Capital grants - Local Government
Department for Education,Core,19/01/2024,Grants Expenditure,Capital Directorate,Westminster City Council,CL071488,"452,940.05",Capital grants - Local Government
Department for Education,Core,19/01/2024,Grants Expenditure,Capital Directorate,Wigan Metropolitan Borough Council,CL071489,"1,522,242.65",Capital grants - Local Government
Department for Education,Core,19/01/2024,Grants Expenditure,Capital Directorate,Wirral Metro Borough Council,CL071490,"42,338.81",Capital grants - Local Government
Department for Education,Core,19/01/2024,Grants Expenditure,Capital Directorate,Wokingham Council,CL071491,"80,477.10",Capital grants - Local Government
Department for Education,Core,19/01/2024,Grants Expenditure,Capital Directorate,Worcestershire County Council,CL071492,"791,963.92",Capital grants - Local Government
Department for Education,Core,19/01/2024,Grants Expenditure,Capital Directorate,North Northamptonshire Council,CL071493,"603,771.13",Capital grants - Local Government
Department for Education,Core,19/01/2024,Grants Expenditure,Capital Directorate,West Northamptonshire Council,CL071494,"985,239.29",Capital grants - Local Government
Department for Education,Core,19/01/2024,Grants Expenditure,Capital Directorate,Kent County Council,CL071644,"4,750,287.26",Capital grants - Local Government
Department for Education,Core,19/01/2024,Grants Expenditure,Capital Directorate,Westmorland And Furness Council,CL071645,"103,865.14",Capital grants - Local Government
Department for Education,Core,12/01/2024,Grants Expenditure,Capital Directorate,Prendergast School,D-CINV005930,"66,142.14",Capital grants - Local Government
Department for Education,Core,12/01/2024,Grants Expenditure,Capital Directorate,North Cheshire Jewish Primary School,D-CINV005931,"48,486.60",Capital grants - Local Government
Department for Education,Core,22/01/2024,Grants Expenditure,Capital Directorate,The Camden School For Girls,D-CINV005970,"31,104.00",Capital grants - Local Government
Department for Education,Core,22/01/2024,Grants Expenditure,Capital Directorate,Prendergast School,D-CINV005972,"90,964.08",Capital grants - Local Government
Department for Education,Core,22/01/2024,Grants Expenditure,Capital Directorate,The Latymer School,D-CINV005977,"85,680.18",Capital grants - Local Government
Department for Education,Core,22/01/2024,Grants Expenditure,Capital Directorate,The Latymer School,D-CINV005980,"84,187.80",Capital grants - Local Government
Department for Education,Core,22/01/2024,Grants Expenditure,Capital Directorate,The Latymer School,D-CINV005981,"27,957.15",Capital grants - Local Government
Department for Education,Core,22/01/2024,Grants Expenditure,Capital Directorate,Prendergast School,D-CINV005983,"42,519.60",Capital grants - Local Government
Department for Education,Core,22/01/2024,Grants Expenditure,Capital Directorate,Prendergast School,D-CINV005985,"28,302.59",Capital grants - Local Government
Department for Education,Core,19/01/2024,Grants Expenditure,Capital Directorate,Parayhouse School,DU00104054,"-94,290.76",Capital grants - Private Sector
Department for Education,Core,19/01/2024,Grants Expenditure,Capital Directorate,Parayhouse School,DU00104055,"-94,190.76",Capital grants - Private Sector
Department for Education,Core,19/01/2024,Grants Expenditure,Capital Directorate,Academies Enterprise Trust,CAY162779,"344,447.96",Capital grants - Academy Trust
Department for Education,Core,19/01/2024,Grants Expenditure,Capital Directorate,Camden London Borough Council,CL071495,"197,361.48",Capital grants - Local Government
Department for Education,Core,19/01/2024,Grants Expenditure,Capital Directorate,Greenwich London Borough Council,CL071496,"321,838.01",Capital grants - Local Government
Department for Education,Core,19/01/2024,Grants Expenditure,Capital Directorate,Hackney London Borough Council,CL071497,"370,520.44",Capital grants - Local Government
Department for Education,Core,19/01/2024,Grants Expenditure,Capital Directorate,Hammersmith And Fulham London Borough Council,CL071498,"157,454.38",Capital grants - Local Government
Department for Education,Core,19/01/2024,Grants Expenditure,Capital Directorate,Islington London Borough Council,CL071499,"219,254.13",Capital grants - Local Government
Department for Education,Core,19/01/2024,Grants Expenditure,Capital Directorate,Royal Borough Of Kensington And Chelsea Council,CL071500,"76,939.29",Capital grants - Local Government
Department for Education,Core,19/01/2024,Grants Expenditure,Capital Directorate,Lambeth London Borough Council,CL071501,"344,958.62",Capital grants - Local Government
Department for Education,Core,19/01/2024,Grants Expenditure,Capital Directorate,Lewisham London Borough Council,CL071502,"444,931.20",Capital grants - Local Government
Department for Education,Core,19/01/2024,Grants Expenditure,Capital Directorate,Southwark London Borough Council,CL071503,"232,088.26",Capital grants - Local Government
Department for Education,Core,19/01/2024,Grants Expenditure,Capital Directorate,London Borough Of Tower Hamlets,CL071504,"526,277.61",Capital grants - Local Government
Department for Education,Core,19/01/2024,Grants Expenditure,Capital Directorate,Wandsworth Borough Council,CL071505,"189,528.12",Capital grants - Local Government
Department for Education,Core,19/01/2024,Grants Expenditure,Capital Directorate,Westminster City Council,CL071506,"37,236.43",Capital grants - Local Government
Department for Education,Core,19/01/2024,Grants Expenditure,Capital Directorate,Barking And Dagenham London Borough Council,CL071507,"583,355.01",Capital grants - Local Government
Department for Education,Core,19/01/2024,Grants Expenditure,Capital Directorate,Barnet London Borough Council,CL071508,"385,912.23",Capital grants - Local Government
Department for Education,Core,19/01/2024,Grants Expenditure,Capital Directorate,Bexley London Borough Council,CL071509,"75,975.52",Capital grants - Local Government
Department for Education,Core,19/01/2024,Grants Expenditure,Capital Directorate,Brent London Borough Council,CL071510,"269,722.35",Capital grants - Local Government
Department for Education,Core,19/01/2024,Grants Expenditure,Capital Directorate,Bromley London Borough Council,CL071511,"43,164.58",Capital grants - Local Government
Department for Education,Core,19/01/2024,Grants Expenditure,Capital Directorate,Croydon London Borough Council,CL071512,"221,947.49",Capital grants - Local Government
Department for Education,Core,19/01/2024,Grants Expenditure,Capital Directorate,Ealing London Borough Council,CL071513,"661,094.25",Capital grants - Local Government
Department for Education,Core,19/01/2024,Grants Expenditure,Capital Directorate,Enfield London Borough Council,CL071514,"548,660.65",Capital grants - Local Government
Department for Education,Core,19/01/2024,Grants Expenditure,Capital Directorate,Haringey London Borough Council,CL071515,"480,996.37",Capital grants - Local Government
Department for Education,Core,19/01/2024,Grants Expenditure,Capital Directorate,Harrow London Borough Council,CL071516,"299,483.81",Capital grants - Local Government
Department for Education,Core,19/01/2024,Grants Expenditure,Capital Directorate,Havering London Borough Council,CL071517,"280,220.91",Capital grants - Local Government
Department for Education,Core,19/01/2024,Grants Expenditure,Capital Directorate,London Borough Of Hillingdon,CL071518,"364,496.92",Capital grants - Local Government
Department for Education,Core,19/01/2024,Grants Expenditure,Capital Directorate,Hounslow London Borough Council,CL071519,"476,548.73",Capital grants - Local Government
Department for Education,Core,19/01/2024,Grants Expenditure,Capital Directorate,Royal Borough Of Kingston Upon Thames Council,CL071520,"93,362.37",Capital grants - Local Government
Department for Education,Core,19/01/2024,Grants Expenditure,Capital Directorate,Merton Borough Council,CL071521,"264,603.31",Capital grants - Local Government
Department for Education,Core,19/01/2024,Grants Expenditure,Capital Directorate,Newham London Borough Council,CL071522,"388,731.90",Capital grants - Local Government
Department for Education,Core,19/01/2024,Grants Expenditure,Capital Directorate,Redbridge London Borough Council,CL071523,"810,514.98",Capital grants - Local Government
Department for Education,Core,19/01/2024,Grants Expenditure,Capital Directorate,Richmond Upon Thames London Borough Council,CL071524,"130,914.11",Capital grants - Local Government
Department for Education,Core,19/01/2024,Grants Expenditure,Capital Directorate,London Borough Of Sutton,CL071525,"97,037.37",Capital grants - Local Government
Department for Education,Core,19/01/2024,Grants Expenditure,Capital Directorate,Waltham Forest London Borough Council,CL071526,"307,020.27",Capital grants - Local Government
Department for Education,Core,19/01/2024,Grants Expenditure,Capital Directorate,Birmingham City Council,CL071527,"1,384,246.27",Capital grants - Local Government
Department for Education,Core,19/01/2024,Grants Expenditure,Capital Directorate,Coventry City Council,CL071528,"389,613.15",Capital grants - Local Government
Department for Education,Core,19/01/2024,Grants Expenditure,Capital Directorate,Dudley Metropolitan Borough Council,CL071529,"427,174.39",Capital grants - Local Government
Department for Education,Core,19/01/2024,Grants Expenditure,Capital Directorate,Sandwell Metro Borough Council,CL071530,"599,833.21",Capital grants - Local Government
Department for Education,Core,19/01/2024,Grants Expenditure,Capital Directorate,Solihull Metro Borough Council,CL071531,"203,381.91",Capital grants - Local Government
Department for Education,Core,19/01/2024,Grants Expenditure,Capital Directorate,Walsall Metro Borough Council,CL071532,"440,623.97",Capital grants - Local Government
Department for Education,Core,19/01/2024,Grants Expenditure,Capital Directorate,Wolverhampton City Council,CL071533,"328,964.47",Capital grants - Local Government
Department for Education,Core,19/01/2024,Grants Expenditure,Capital Directorate,Knowsley Metro Borough Council,CL071534,"98,959.93",Capital grants - Local Government
Department for Education,Core,19/01/2024,Grants Expenditure,Capital Directorate,Liverpool City Council,CL071535,"444,825.49",Capital grants - Local Government
Department for Education,Core,19/01/2024,Grants Expenditure,Capital Directorate,St Helens Metro Borough Council,CL071536,"204,615.56",Capital grants - Local Government
Department for Education,Core,19/01/2024,Grants Expenditure,Capital Directorate,Sefton Metropolitan Borough Council,CL071537,"245,326.05",Capital grants - Local Government
Department for Education,Core,19/01/2024,Grants Expenditure,Capital Directorate,Wirral Metro Borough Council,CL071538,"459,143.56",Capital grants - Local Government
Department for Education,Core,19/01/2024,Grants Expenditure,Capital Directorate,Bolton Metro Borough Council,CL071539,"397,763.34",Capital grants - Local Government
Department for Education,Core,19/01/2024,Grants Expenditure,Capital Directorate,Bury Metro Borough Council,CL071540,"224,994.65",Capital grants - Local Government
Department for Education,Core,19/01/2024,Grants Expenditure,Capital Directorate,Manchester City Council,CL071541,"477,221.46",Capital grants - Local Government
Department for Education,Core,19/01/2024,Grants Expenditure,Capital Directorate,Oldham Metropolitan Borough Council,CL071542,"224,506.02",Capital grants - Local Government
Department for Education,Core,19/01/2024,Grants Expenditure,Capital Directorate,Rochdale Borough Council,CL071543,"292,639.24",Capital grants - Local Government
Department for Education,Core,19/01/2024,Grants Expenditure,Capital Directorate,Salford City Council,CL071544,"235,224.07",Capital grants - Local Government
Department for Education,Core,19/01/2024,Grants Expenditure,Capital Directorate,Stockport Metro Borough Council,CL071545,"551,340.70",Capital grants - Local Government
Department for Education,Core,19/01/2024,Grants Expenditure,Capital Directorate,Tameside Metro Borough Council,CL071546,"171,270.42",Capital grants - Local Government
Department for Education,Core,19/01/2024,Grants Expenditure,Capital Directorate,Trafford Borough Council,CL071547,"284,902.98",Capital grants - Local Government
Department for Education,Core,19/01/2024,Grants Expenditure,Capital Directorate,Wigan Metropolitan Borough Council,CL071548,"321,956.34",Capital grants - Local Government
Department for Education,Core,19/01/2024,Grants Expenditure,Capital Directorate,Barnsley Metropolitan Borough Council,CL071549,"68,635.75",Capital grants - Local Government
Department for Education,Core,19/01/2024,Grants Expenditure,Capital Directorate,Doncaster Metro Borough Council,CL071550,"109,132.28",Capital grants - Local Government
Department for Education,Core,19/01/2024,Grants Expenditure,Capital Directorate,Rotherham Borough Council,CL071551,"99,702.07",Capital grants - Local Government
Department for Education,Core,19/01/2024,Grants Expenditure,Capital Directorate,Sheffield City Council,CL071552,"399,183.92",Capital grants - Local Government
Department for Education,Core,19/01/2024,Grants Expenditure,Capital Directorate,Bradford City Council,CL071553,"327,060.92",Capital grants - Local Government
Department for Education,Core,19/01/2024,Grants Expenditure,Capital Directorate,Calderdale Metro Borough Council,CL071554,"201,780.72",Capital grants - Local Government
Department for Education,Core,19/01/2024,Grants Expenditure,Capital Directorate,Kirklees Metro Council,CL071555,"398,331.25",Capital grants - Local Government
Department for Education,Core,19/01/2024,Grants Expenditure,Capital Directorate,Leeds City Council,CL071556,"762,853.25",Capital grants - Local Government
Department for Education,Core,19/01/2024,Grants Expenditure,Capital Directorate,Wakefield City Council,CL071557,"303,669.01",Capital grants - Local Government
Department for Education,Core,19/01/2024,Grants Expenditure,Capital Directorate,Gateshead Council,CL071558,"202,970.35",Capital grants - Local Government
Department for Education,Core,19/01/2024,Grants Expenditure,Capital Directorate,Newcastle Upon Tyne City Council,CL071559,"164,752.23",Capital grants - Local Government
Department for Education,Core,19/01/2024,Grants Expenditure,Capital Directorate,North Tyneside Metro Borough Council,CL071560,"435,606.07",Capital grants - Local Government
Department for Education,Core,19/01/2024,Grants Expenditure,Capital Directorate,South Tyneside Council,CL071561,"169,761.58",Capital grants - Local Government
Department for Education,Core,19/01/2024,Grants Expenditure,Capital Directorate,Sunderland City Metro Borough Council,CL071562,"166,704.24",Capital grants - Local Government
Department for Education,Core,19/01/2024,Grants Expenditure,Capital Directorate,Bristol City Council,CL071564,"200,958.38",Capital grants - Local Government
Department for Education,Core,19/01/2024,Grants Expenditure,Capital Directorate,South Gloucestershire Council,CL071566,"232,587.00",Capital grants - Local Government
Department for Education,Core,19/01/2024,Grants Expenditure,Capital Directorate,Hartlepool Borough Council,CL071567,"68,222.99",Capital grants - Local Government
Department for Education,Core,19/01/2024,Grants Expenditure,Capital Directorate,Middlesbrough Council,CL071568,"70,528.85",Capital grants - Local Government
Department for Education,Core,19/01/2024,Grants Expenditure,Capital Directorate,Redcar And Cleveland Borough Council,CL071569,"42,724.18",Capital grants - Local Government
Department for Education,Core,19/01/2024,Grants Expenditure,Capital Directorate,Stockton On Tees Borough Council,CL071570,"129,119.32",Capital grants - Local Government
Department for Education,Core,19/01/2024,Grants Expenditure,Capital Directorate,East Riding Of Yorkshire Council,CL071572,"474,217.95",Capital grants - Local Government
Department for Education,Core,19/01/2024,Grants Expenditure,Capital Directorate,North Lincolnshire Council,CL071574,"226,061.76",Capital grants - Local Government
Department for Education,Core,19/01/2024,Grants Expenditure,Capital Directorate,North Yorkshire County Council,CL071575,"671,582.10",Capital grants - Local Government
Department for Education,Core,19/01/2024,Grants Expenditure,Capital Directorate,City Of York Council,CL071576,"163,769.96",Capital grants - Local Government
Department for Education,Core,19/01/2024,Grants Expenditure,Capital Directorate,Luton Borough Council,CL071577,"394,870.22",Capital grants - Local Government
Department for Education,Core,19/01/2024,Grants Expenditure,Capital Directorate,Bedford Borough Council,CL071578,"200,669.61",Capital grants - Local Government
Department for Education,Core,19/01/2024,Grants Expenditure,Capital Directorate,Central Bedfordshire Council,CL071579,"316,830.32",Capital grants - Local Government
Department for Education,Core,19/01/2024,Grants Expenditure,Capital Directorate,Buckinghamshire Council,CL071580,"747,681.65",Capital grants - Local Government
Department for Education,Core,19/01/2024,Grants Expenditure,Capital Directorate,Milton Keynes Council,CL071581,"309,121.24",Capital grants - Local Government
Department for Education,Core,19/01/2024,Grants Expenditure,Capital Directorate,Derbyshire County Council,CL071582,"1,049,434.98",Capital grants - Local Government
Department for Education,Core,19/01/2024,Grants Expenditure,Capital Directorate,Derby City Council,CL071583,"352,558.41",Capital grants - Local Government
Department for Education,Core,19/01/2024,Grants Expenditure,Capital Directorate,Dorset Council,CL071584,"254,184.66",Capital grants - Local Government
Department for Education,Core,19/01/2024,Grants Expenditure,Capital Directorate,"Bournemouth, Christchurch And Poole Council",CL071585,"148,318.54",Capital grants - Local Government
Department for Education,Core,19/01/2024,Grants Expenditure,Capital Directorate,Durham County Council,CL071586,"719,831.91",Capital grants - Local Government
Department for Education,Core,19/01/2024,Grants Expenditure,Capital Directorate,East Sussex County Council,CL071588,"516,523.30",Capital grants - Local Government
Department for Education,Core,19/01/2024,Grants Expenditure,Capital Directorate,Brighton And Hove City Council,CL071589,"430,138.16",Capital grants - Local Government
Department for Education,Core,19/01/2024,Grants Expenditure,Capital Directorate,Hampshire County Council,CL071590,"2,573,732.04",Capital grants - Local Government
Department for Education,Core,19/01/2024,Grants Expenditure,Capital Directorate,Portsmouth City Council,CL071591,"90,556.17",Capital grants - Local Government
Department for Education,Core,19/01/2024,Grants Expenditure,Capital Directorate,Southampton City Council,CL071592,"313,059.08",Capital grants - Local Government
Department for Education,Core,19/01/2024,Grants Expenditure,Capital Directorate,Leicestershire County Council,CL071593,"422,142.17",Capital grants - Local Government
Department for Education,Core,19/01/2024,Grants Expenditure,Capital Directorate,Leicester City Council,CL071594,"794,247.18",Capital grants - Local Government
Department for Education,Core,19/01/2024,Grants Expenditure,Capital Directorate,Staffordshire County Council,CL071596,"787,653.55",Capital grants - Local Government
Department for Education,Core,19/01/2024,Grants Expenditure,Capital Directorate,Stoke On Trent City Council,CL071597,"38,907.26",Capital grants - Local Government
Department for Education,Core,19/01/2024,Grants Expenditure,Capital Directorate,Wiltshire County Council,CL071598,"267,081.26",Capital grants - Local Government
Department for Education,Core,19/01/2024,Grants Expenditure,Capital Directorate,Swindon Borough Council,CL071599,"69,553.68",Capital grants - Local Government
Department for Education,Core,19/01/2024,Grants Expenditure,Capital Directorate,Bracknell Forest Borough Council,CL071600,"197,241.28",Capital grants - Local Government
Department for Education,Core,19/01/2024,Grants Expenditure,Capital Directorate,Royal Borough Of Windsor And Maidenhead,CL071601,"130,061.42",Capital grants - Local Government
Department for Education,Core,19/01/2024,Grants Expenditure,Capital Directorate,West Berkshire Council,CL071602,"292,900.38",Capital grants - Local Government
Department for Education,Core,19/01/2024,Grants Expenditure,Capital Directorate,Reading Borough Council,CL071603,"179,165.76",Capital grants - Local Government
Department for Education,Core,19/01/2024,Grants Expenditure,Capital Directorate,Slough Borough Council,CL071604,"86,017.81",Capital grants - Local Government
Department for Education,Core,19/01/2024,Grants Expenditure,Capital Directorate,Wokingham Council,CL071605,"241,217.32",Capital grants - Local Government
Department for Education,Core,19/01/2024,Grants Expenditure,Capital Directorate,Cambridgeshire County Council,CL071606,"428,303.47",Capital grants - Local Government
Department for Education,Core,19/01/2024,Grants Expenditure,Capital Directorate,Peterborough City Council,CL071607,"114,260.13",Capital grants - Local Government
Department for Education,Core,19/01/2024,Grants Expenditure,Capital Directorate,Halton Borough Council,CL071608,"83,175.92",Capital grants - Local Government
Department for Education,Core,19/01/2024,Grants Expenditure,Capital Directorate,Warrington Borough Council,CL071609,"107,398.78",Capital grants - Local Government
Department for Education,Core,19/01/2024,Grants Expenditure,Capital Directorate,Devon County Council,CL071610,"388,198.87",Capital grants - Local Government
Department for Education,Core,19/01/2024,Grants Expenditure,Capital Directorate,Plymouth City Council,CL071611,"63,780.32",Capital grants - Local Government
Department for Education,Core,19/01/2024,Grants Expenditure,Capital Directorate,Torbay Council,CL071612,"38,234.01",Capital grants - Local Government
Department for Education,Core,19/01/2024,Grants Expenditure,Capital Directorate,Essex County Council,CL071613,"876,034.68",Capital grants - Local Government
Department for Education,Core,19/01/2024,Grants Expenditure,Capital Directorate,Southend On Sea Borough Council,CL071614,"74,386.79",Capital grants - Local Government
Department for Education,Core,19/01/2024,Grants Expenditure,Capital Directorate,Herefordshire Council,CL071615,"136,477.92",Capital grants - Local Government
Department for Education,Core,19/01/2024,Grants Expenditure,Capital Directorate,Worcestershire County Council,CL071616,"427,292.17",Capital grants - Local Government
Department for Education,Core,19/01/2024,Grants Expenditure,Capital Directorate,Kent County Council,CL071617,"1,643,005.31",Capital grants - Local Government
Department for Education,Core,19/01/2024,Grants Expenditure,Capital Directorate,Medway Council,CL071618,"86,067.59",Capital grants - Local Government
Department for Education,Core,19/01/2024,Grants Expenditure,Capital Directorate,Lancashire County Council,CL071619,"1,687,875.21",Capital grants - Local Government
Department for Education,Core,19/01/2024,Grants Expenditure,Capital Directorate,Blackburn With Darwen Borough Council,CL071620,"146,366.90",Capital grants - Local Government
Department for Education,Core,19/01/2024,Grants Expenditure,Capital Directorate,Blackpool Borough Council,CL071621,"62,578.44",Capital grants - Local Government
Department for Education,Core,19/01/2024,Grants Expenditure,Capital Directorate,Nottinghamshire County Council,CL071622,"1,055,565.61",Capital grants - Local Government
Department for Education,Core,19/01/2024,Grants Expenditure,Capital Directorate,Nottingham City Council,CL071623,"304,845.35",Capital grants - Local Government
Department for Education,Core,19/01/2024,Grants Expenditure,Capital Directorate,Shropshire Council,CL071624,"234,247.83",Capital grants - Local Government
Department for Education,Core,19/01/2024,Grants Expenditure,Capital Directorate,Telford And Wrekin Council,CL071625,"312,241.73",Capital grants - Local Government
Department for Education,Core,19/01/2024,Grants Expenditure,Capital Directorate,Cheshire East Council,CL071626,"213,987.45",Capital grants - Local Government
Department for Education,Core,19/01/2024,Grants Expenditure,Capital Directorate,Cheshire West And Chester Council,CL071627,"549,760.64",Capital grants - Local Government
Department for Education,Core,19/01/2024,Grants Expenditure,Capital Directorate,Cornwall Council,CL071628,"184,242.57",Capital grants - Local Government
Department for Education,Core,19/01/2024,Grants Expenditure,Capital Directorate,Gloucestershire County Council,CL071629,"488,727.74",Capital grants - Local Government
Department for Education,Core,19/01/2024,Grants Expenditure,Capital Directorate,Hertfordshire County Council,CL071630,"1,698,119.49",Capital grants - Local Government
Department for Education,Core,19/01/2024,Grants Expenditure,Capital Directorate,Isle Of Wight Council,CL071631,"241,423.59",Capital grants - Local Government
Department for Education,Core,19/01/2024,Grants Expenditure,Capital Directorate,Lincolnshire County Council,CL071632,"543,125.33",Capital grants - Local Government
Department for Education,Core,19/01/2024,Grants Expenditure,Capital Directorate,Norfolk County Council,CL071633,"542,565.39",Capital grants - Local Government
Department for Education,Core,19/01/2024,Grants Expenditure,Capital Directorate,Northumberland County Council,CL071634,"433,465.74",Capital grants - Local Government
Department for Education,Core,19/01/2024,Grants Expenditure,Capital Directorate,Oxfordshire County Council,CL071635,"503,976.31",Capital grants - Local Government
Department for Education,Core,19/01/2024,Grants Expenditure,Capital Directorate,Somerset Council,CL071636,"295,958.24",Capital grants - Local Government
Department for Education,Core,19/01/2024,Grants Expenditure,Capital Directorate,Surrey County Council,CL071638,"788,535.59",Capital grants - Local Government
Department for Education,Core,19/01/2024,Grants Expenditure,Capital Directorate,Warwickshire County Council,CL071639,"564,709.23",Capital grants - Local Government
Department for Education,Core,19/01/2024,Grants Expenditure,Capital Directorate,West Sussex County Council,CL071640,"977,522.74",Capital grants - Local Government
Department for Education,Core,19/01/2024,Grants Expenditure,Capital Directorate,North Northamptonshire Council,CL071641,"206,059.28",Capital grants - Local Government
Department for Education,Core,19/01/2024,Grants Expenditure,Capital Directorate,West Northamptonshire Council,CL071642,"173,826.51",Capital grants - Local Government
Department for Education,Core,19/01/2024,Grants Expenditure,Capital Directorate,Cumberland Council,CL071646,"347,763.58",Capital grants - Local Government
Department for Education,Core,19/01/2024,Grants Expenditure,Capital Directorate,Westmorland And Furness Council,CL071647,"279,191.39",Capital grants - Local Government
Department for Education,Core,26/01/2024,Grants Expenditure,Capital Directorate,Salford City Council,D-CINV006045,"65,826.51",Capital Grant - Local Government
Department for Education,Core,04/01/2024,Grants Expenditure,Capital Directorate,Surrey County Council,D-CINV005884,"180,000.00",Capital Grant - Local Government
Department for Education,Core,04/01/2024,Grants Expenditure,Capital Directorate,Newcastle Upon Tyne City Council,D-CINV005885,"118,957.10",Capital Grant - Local Government
Department for Education,Core,04/01/2024,Grants Expenditure,Capital Directorate,Southwark London Borough Council,D-CINV005887,"204,234.65",Capital Grant - Local Government
Department for Education,Core,04/01/2024,Grants Expenditure,Capital Directorate,South Tyneside Council,D-CINV005889,"46,088.48",Capital Grant - Local Government
Department for Education,Core,04/01/2024,Grants Expenditure,Capital Directorate,South Tyneside Council,D-CINV005890,"32,940.57",Capital Grant - Local Government
Department for Education,Core,04/01/2024,Grants Expenditure,Capital Directorate,Solihull Metro Borough Council,D-CINV005891,"54,383.82",Capital Grant - Local Government
Department for Education,Core,04/01/2024,Grants Expenditure,Capital Directorate,East Riding Of Yorkshire Council,D-CINV005894,"92,073.00",Capital Grant - Local Government
Department for Education,Core,04/01/2024,Grants Expenditure,Capital Directorate,Oxfordshire County Council,D-CINV005895,"937,000.00",Capital Grant - Local Government
Department for Education,Core,04/01/2024,Grants Expenditure,Capital Directorate,Somerset Council,D-CINV005910,"196,685.11",Capital Grant - Local Government
Department for Education,Core,26/01/2024,Grants Expenditure,Capital Directorate,Croydon London Borough Council,D-CINV006041,"27,913.58",Capital Grant - Local Government
Department for Education,Core,26/01/2024,Grants Expenditure,Capital Directorate,Southwark London Borough Council,D-CINV006044,"330,204.82",Capital Grant - Local Government
Department for Education,Core,26/01/2024,Grants Expenditure,Capital Directorate,Nottinghamshire County Council,D-CINV006051,"126,995.80",Capital Grant - Local Government
Department for Education,Core,26/01/2024,Grants Expenditure,Capital Directorate,Newcastle Upon Tyne City Council,D-CINV006055,"93,275.75",Capital Grant - Local Government
Department for Education,Core,29/01/2024,IS/IT,Capital Directorate,Cognizant Worldwide Limited,D-PINV062107,"68,452.02",Systems Development
Department for Education,Core,29/01/2024,IS/IT,Capital Directorate,Cognizant Worldwide Limited,D-PINV062108,"46,721.22",Systems Development
Department for Education,Core,26/01/2024,Other Goods and Services,Capital Directorate,Psbp Midlands Limited,D-PINV062255,"-18,500.95",Service element of lease
Department for Education,Core,26/01/2024,Other Goods and Services,Capital Directorate,Psbp Midlands Limited,D-PINV062255,"4,563.65",Service element of lease
Department for Education,Core,26/01/2024,Other Goods and Services,Capital Directorate,Psbp Midlands Limited,D-PINV062255,"1,294,919.25",Service element of lease
Department for Education,Core,26/01/2024,Other Goods and Services,Capital Directorate,Hlr Schools Limited,D-PINV062254,"-19,097.60",Service element of lease
Department for Education,Core,26/01/2024,Other Goods and Services,Capital Directorate,Hlr Schools Limited,D-PINV062254,"-4,262.56",Service element of lease
Department for Education,Core,26/01/2024,Other Goods and Services,Capital Directorate,Hlr Schools Limited,D-PINV062254,"4,015.56",Service element of lease
Department for Education,Core,26/01/2024,Other Goods and Services,Capital Directorate,Hlr Schools Limited,D-PINV062254,"4,605.12",Service element of lease
Department for Education,Core,26/01/2024,Other Goods and Services,Capital Directorate,Hlr Schools Limited,D-PINV062254,"11,031.17",Service element of lease
Department for Education,Core,26/01/2024,Other Goods and Services,Capital Directorate,Hlr Schools Limited,D-PINV062254,"1,279,128.55",Service element of lease
Department for Education,Core,26/01/2024,Other Goods and Services,Capital Directorate,Psbp Nw Projectco Limited,D-PINV062256,"-20,649.59",Service element of lease
Department for Education,Core,26/01/2024,Other Goods and Services,Capital Directorate,Psbp Nw Projectco Limited,D-PINV062256,"-8,604.00",Service element of lease
Department for Education,Core,26/01/2024,Other Goods and Services,Capital Directorate,Psbp Nw Projectco Limited,D-PINV062256,"1,805.28",Service element of lease
Department for Education,Core,26/01/2024,Other Goods and Services,Capital Directorate,Psbp Nw Projectco Limited,D-PINV062256,"7,344.92",Service element of lease
Department for Education,Core,26/01/2024,Other Goods and Services,Capital Directorate,Psbp Nw Projectco Limited,D-PINV062256,"1,080,185.06",Service element of lease
Department for Education,Core,26/01/2024,Other Goods and Services,Capital Directorate,Gt Neps Limited,D-PINV062253,"-11,460.53",Service element of lease
Department for Education,Core,26/01/2024,Other Goods and Services,Capital Directorate,Gt Neps Limited,D-PINV062253,"-1,387.92",Service element of lease
Department for Education,Core,26/01/2024,Other Goods and Services,Capital Directorate,Gt Neps Limited,D-PINV062253,656.02,Service element of lease
Department for Education,Core,26/01/2024,Other Goods and Services,Capital Directorate,Gt Neps Limited,D-PINV062253,"1,708.44",Service element of lease
Department for Education,Core,26/01/2024,Other Goods and Services,Capital Directorate,Gt Neps Limited,D-PINV062253,"1,183,339.37",Service element of lease
Department for Education,Core,26/01/2024,Other Goods and Services,Capital Directorate,Yorkshire Learning Partnership (Project Co) Ltd,D-PINV062257,"-8,871.59",Service element of lease
Department for Education,Core,26/01/2024,Other Goods and Services,Capital Directorate,Yorkshire Learning Partnership (Project Co) Ltd,D-PINV062257,201.9,Service element of lease
Department for Education,Core,26/01/2024,Other Goods and Services,Capital Directorate,Yorkshire Learning Partnership (Project Co) Ltd,D-PINV062257,"1,662.31",Service element of lease
Department for Education,Core,26/01/2024,Other Goods and Services,Capital Directorate,Yorkshire Learning Partnership (Project Co) Ltd,D-PINV062257,"2,563.57",Service element of lease
Department for Education,Core,26/01/2024,Other Goods and Services,Capital Directorate,Yorkshire Learning Partnership (Project Co) Ltd,D-PINV062257,"1,134,591.03",Service element of lease
Department for Education,Core,12/01/2024,Grants Expenditure,Capital Directorate,Stmc Birmingham Diocese Account,D-CINV005932,"110,294.93",Current grants - Local Government
Department for Education,Core,12/01/2024,Grants Expenditure,Capital Directorate,Redcar Pfi,D-CINV005933,"194,251.02",Current grants - Local Government
Department for Education,Core,12/01/2024,Grants Expenditure,Capital Directorate,Jfs - Unitary Charge Account,D-CINV005934,"337,978.95",Current grants - Local Government
Department for Education,Core,12/01/2024,Grants Expenditure,Capital Directorate,Cardinal Heenan School Services Ltd (Jar,D-CINV005948,"76,245.32",Current grants - Local Government
Department for Education,Core,22/01/2024,Grants Expenditure,Capital Directorate,St James'S Rc Primary School,D-CINV005995,"747,323.00",Current grants - Local Government
Department for Education,Core,22/01/2024,Grants Expenditure,Capital Directorate,Stockton Borough Council - All Saints Academy,D-CINV006001,"100,995.11",Current grants - Local Government
Department for Education,Core,22/01/2024,Grants Expenditure,Capital Directorate,Stockton Borough Council - All Saints Academy,D-CINV006003,"100,995.11",Current grants - Local Government
Department for Education,Core,22/01/2024,Grants Expenditure,Capital Directorate,Rcd Hexham And Newcastle - St Josephs,D-CINV006004,"67,460.83",Current grants - Local Government
Department for Education,Core,19/01/2024,Other Goods and Services,Capital Directorate,Bloom Procurement Services Ltd,D-PINV062173,"34,663.54",Professional Services
Department for Education,Core,16/01/2024,Other Goods and Services,Capital Directorate,Arcadis Llp,D-PINV062127,"67,805.74",Professional Services - Property Services
Department for Education,Core,25/01/2024,Other Goods and Services,Capital Directorate,Aecom Ltd,D-PINV062452,"189,717.15",Professional Services - Property Services
Department for Education,Core,15/01/2024,Other Goods and Services,Capital Directorate,Valuation Office Agency,D-PINV062101,"761,346.43",Professional Services - Property Services
Department for Education,Core,18/01/2024,Other Goods and Services,Capital Directorate,Valuation Office Agency,D-PINV062102,"771,341.46",Professional Services - Property Services
Department for Education,Core,29/01/2024,Grants Expenditure,Capital Directorate,Galliford Try Building Ltd,D-PCR001449,"-51,813.21",Capital grants - Academy Trust
Department for Education,Core,24/01/2024,Grants Expenditure,Capital Directorate,Galliford Try Building Ltd,D-PINV062390,"310,879.28",Capital grants - Academy Trust
Department for Education,Core,29/01/2024,Grants Expenditure,Capital Directorate,Galliford Try Building Ltd,D-PCR001450,"-259,066.07",Capital grants - Academy Trust
Department for Education,Core,04/01/2024,Grants Expenditure,Capital Directorate,Bouygues Uk,D-PINV061373,"203,961.67",Capital grants - Academy Trust
Department for Education,Core,04/01/2024,Grants Expenditure,Capital Directorate,Bam Construction Limited,D-PINV061377,"50,223.41",Capital grants - Academy Trust
Department for Education,Core,09/01/2024,Grants Expenditure,Capital Directorate,Bam Construction Limited,D-PINV061920,"296,573.14",Capital grants - Academy Trust
Department for Education,Core,09/01/2024,Grants Expenditure,Capital Directorate,Stage Electrics Partnership Limited,D-PINV061855,"32,574.08",Capital grants - Academy Trust
Department for Education,Core,12/01/2024,Grants Expenditure,Capital Directorate,Isg Construction Limited,D-PINV062023,"273,105.76",Capital grants - Academy Trust
Department for Education,Core,16/01/2024,Grants Expenditure,Capital Directorate,Bowmer And Kirkland Limited,D-PINV062058,"198,484.78",Capital grants - Academy Trust
Department for Education,Core,24/01/2024,Grants Expenditure,Capital Directorate,Bridgwater And Taunton College,D-CINV006008,"173,398.28",Capital grants - Academy Trust
Department for Education,Core,24/01/2024,Grants Expenditure,Capital Directorate,Bridgwater And Taunton College,D-CINV006008,"14,559.80",Current grants - Academy Trust
Department for Education,Core,24/01/2024,Grants Expenditure,Capital Directorate,Bridgwater And Taunton College,D-CINV006009,"23,647.33",Capital grants - Academy Trust
Department for Education,Core,24/01/2024,Grants Expenditure,Capital Directorate,Bridgwater And Taunton College,D-CINV006009,"49,007.14",Current grants - Academy Trust
Department for Education,Core,30/01/2024,Grants Expenditure,Capital Directorate,Wates Construction Limited,D-PINV062518,"329,920.78",Capital grants - Academy Trust
Department for Education,Core,31/01/2024,Grants Expenditure,Capital Directorate,Bowmer And Kirkland Limited,D-PINV062609,"734,537.42",Capital grants - Academy Trust
Department for Education,Core,31/01/2024,Grants Expenditure,Capital Directorate,Bowmer And Kirkland Limited,D-PINV062557,"657,749.21",Capital grants - Academy Trust
Department for Education,Core,04/01/2024,Grants Expenditure,Capital Directorate,Wates Construction Limited,D-PINV061320,"657,773.86",Capital grants - Academy Trust
Department for Education,Core,11/01/2024,Grants Expenditure,Capital Directorate,Portakabin Limited,D-PINV061904,"31,413.70",Capital grants - Academy Trust
Department for Education,Core,08/01/2024,Grants Expenditure,Capital Directorate,Galliford Try Building Ltd,D-PINV061821,"458,752.97",Capital grants - Academy Trust
Department for Education,Core,05/01/2024,Grants Expenditure,Capital Directorate,Galliford Try Building Ltd,D-PINV061724,"472,578.53",Capital grants - Academy Trust
Department for Education,Core,11/01/2024,Grants Expenditure,Capital Directorate,Portakabin Limited,D-PINV061934,"55,660.80",Capital grants - Academy Trust
Department for Education,Core,12/01/2024,Grants Expenditure,Capital Directorate,Kier Construction Southern,D-PINV061936,"233,241.60",Capital grants - Academy Trust
Department for Education,Core,09/01/2024,Grants Expenditure,Capital Directorate,Faithful And Gould,D-PINV061771,"28,451.60",Capital grants - Academy Trust
Department for Education,Core,11/01/2024,Grants Expenditure,Capital Directorate,Tilbury Douglas Construction Limited,D-PINV061935,"340,368.23",Capital grants - Academy Trust
Department for Education,Core,09/01/2024,Grants Expenditure,Capital Directorate,Arcadis Llp,D-PINV061783,"62,760.23",Capital grants - Academy Trust
Department for Education,Core,09/01/2024,Grants Expenditure,Capital Directorate,Arcadis Llp,D-PINV061787,"35,923.54",Capital grants - Academy Trust
Department for Education,Core,16/01/2024,Grants Expenditure,Capital Directorate,Mace Limited,D-PINV062015,"40,722.00",Capital grants - Academy Trust
Department for Education,Core,11/01/2024,Grants Expenditure,Capital Directorate,Kier Construction Eastern,D-PINV061918,"508,206.07",Capital grants - Academy Trust
Department for Education,Core,11/01/2024,Grants Expenditure,Capital Directorate,Tilbury Douglas Construction Limited,D-PINV061898,"223,850.14",Capital grants - Academy Trust
Department for Education,Core,12/01/2024,Grants Expenditure,Capital Directorate,Tilbury Douglas Construction Limited,D-PINV062027,"533,862.92",Capital grants - Academy Trust
Department for Education,Core,12/01/2024,Grants Expenditure,Capital Directorate,Morgan Sindall Construction And Infrastructure Ltd,D-PINV062018,"362,546.40",Capital grants - Academy Trust
Department for Education,Core,11/01/2024,Grants Expenditure,Capital Directorate,Willmott Dixon Construction Limited,D-PINV061509,"554,395.49",Capital grants - Academy Trust
Department for Education,Core,12/01/2024,Grants Expenditure,Capital Directorate,Bam Construction Limited,D-PINV062026,"905,842.06",Capital grants - Academy Trust
Department for Education,Core,11/01/2024,Grants Expenditure,Capital Directorate,Bam Construction Limited,D-PINV062017,"1,758,628.58",Capital grants - Academy Trust
Department for Education,Core,16/01/2024,Grants Expenditure,Capital Directorate,Mott Macdonald Limited,D-PINV062065,"25,059.94",Capital grants - Academy Trust
Department for Education,Core,15/01/2024,Grants Expenditure,Capital Directorate,Conlon Construction Ltd,D-PINV062067,"376,153.88",Capital grants - Academy Trust
Department for Education,Core,18/01/2024,Grants Expenditure,Capital Directorate,Mace Limited,D-PINV062060,"34,736.65",Capital grants - Academy Trust
Department for Education,Core,12/01/2024,Grants Expenditure,Capital Directorate,Galliford Try Building Ltd,D-PINV062073,"515,536.20",Capital grants - Academy Trust
Department for Education,Core,12/01/2024,Grants Expenditure,Capital Directorate,Bam Construction Limited,D-PINV061315,"1,595,048.96",Capital grants - Academy Trust
Department for Education,Core,19/01/2024,Grants Expenditure,Capital Directorate,Bam Construction Limited,D-PINV062068,"1,659,471.50",Capital grants - Academy Trust
Department for Education,Core,15/01/2024,Grants Expenditure,Capital Directorate,Conlon Construction Ltd,D-PINV061200,"165,751.98",Capital grants - Academy Trust
Department for Education,Core,18/01/2024,Grants Expenditure,Capital Directorate,Gleeds Management Services Limited,D-PINV062089,"28,305.84",Capital grants - Academy Trust
Department for Education,Core,16/01/2024,Grants Expenditure,Capital Directorate,Gleeds Advisory Limited,D-PINV062100,"48,556.42",Capital grants - Academy Trust
Department for Education,Core,16/01/2024,Grants Expenditure,Capital Directorate,Bowmer And Kirkland Limited,D-PINV062110,"557,091.08",Capital grants - Academy Trust
Department for Education,Core,23/01/2024,Grants Expenditure,Capital Directorate,Kier Western And Wales,D-PINV062138,"755,604.89",Capital grants - Academy Trust
Department for Education,Core,16/01/2024,Grants Expenditure,Capital Directorate,Mace Limited,D-PINV061393,"76,951.97",Capital grants - Academy Trust
Department for Education,Core,18/01/2024,Grants Expenditure,Capital Directorate,Tilbury Douglas Construction Limited,D-PINV062161,"116,791.40",Capital grants - Academy Trust
Department for Education,Core,19/01/2024,Grants Expenditure,Capital Directorate,Bam Construction Limited,D-PINV062139,"1,607,902.56",Capital grants - Academy Trust
Department for Education,Core,18/01/2024,Grants Expenditure,Capital Directorate,Bam Construction Limited,D-PINV062141,"702,646.80",Capital grants - Academy Trust
Department for Education,Core,16/01/2024,Grants Expenditure,Capital Directorate,Gleeds Advisory Limited,D-PINV061601,"26,040.00",Capital grants - Academy Trust
Department for Education,Core,18/01/2024,Grants Expenditure,Capital Directorate,Henry Boot Construction Limited,D-PINV062135,"581,358.70",Capital grants - Academy Trust
Department for Education,Core,19/01/2024,Grants Expenditure,Capital Directorate,Wates Construction Limited,D-PINV062204,"395,076.53",Capital grants - Academy Trust
Department for Education,Core,19/01/2024,Grants Expenditure,Capital Directorate,Wates Construction Limited,D-PINV062205,"1,679,088.85",Capital grants - Academy Trust
Department for Education,Core,18/01/2024,Grants Expenditure,Capital Directorate,Morgan Sindall Construction And Infrastructure Ltd,D-PINV062176,"687,524.82",Capital grants - Academy Trust
Department for Education,Core,19/01/2024,Grants Expenditure,Capital Directorate,Galliford Try Building Ltd,D-PINV062207,"270,652.04",Capital grants - Academy Trust
Department for Education,Core,19/01/2024,Grants Expenditure,Capital Directorate,Baxall Construction Limited,D-PINV062163,"256,189.66",Capital grants - Academy Trust
Department for Education,Core,19/01/2024,Grants Expenditure,Capital Directorate,Bowmer And Kirkland Limited,D-PINV062166,"1,403,699.58",Capital grants - Academy Trust
Department for Education,Core,17/01/2024,Grants Expenditure,Capital Directorate,Turner And Townsend,D-PINV061675,"27,528.80",Capital grants - Academy Trust
Department for Education,Core,17/01/2024,Grants Expenditure,Capital Directorate,Gleeds Advisory Limited,D-PINV061781,"50,083.78",Capital grants - Academy Trust
Department for Education,Core,22/01/2024,Grants Expenditure,Capital Directorate,Wates Construction Limited,D-PINV062264,"81,940.28",Capital grants - Academy Trust
Department for Education,Core,18/01/2024,Grants Expenditure,Capital Directorate,Faithful And Gould,D-PINV061073,"25,315.20",Capital grants - Academy Trust
Department for Education,Core,22/01/2024,Grants Expenditure,Capital Directorate,Tilbury Douglas Construction Limited,D-PINV062263,"232,081.64",Capital grants - Academy Trust
Department for Education,Core,22/01/2024,Grants Expenditure,Capital Directorate,Baxall Construction Limited,D-PINV062265,"190,118.62",Capital grants - Academy Trust
Department for Education,Core,19/01/2024,Grants Expenditure,Capital Directorate,Bowmer And Kirkland Limited,D-PINV062239,"835,483.20",Capital grants - Academy Trust
Department for Education,Core,22/01/2024,Grants Expenditure,Capital Directorate,Morgan Sindall Construction And Infrastructure Ltd,D-PINV062282,"687,524.78",Capital grants - Academy Trust
Department for Education,Core,22/01/2024,Grants Expenditure,Capital Directorate,Bam Construction Limited,D-PINV062273,"900,230.40",Capital grants - Academy Trust
Department for Education,Core,19/01/2024,Grants Expenditure,Capital Directorate,Bowmer And Kirkland Limited,D-PINV062283,"112,972.80",Capital grants - Academy Trust
Department for Education,Core,24/01/2024,Grants Expenditure,Capital Directorate,Mott Macdonald Limited,D-PINV062345,"26,127.35",Capital grants - Academy Trust
Department for Education,Core,22/01/2024,Grants Expenditure,Capital Directorate,Mott Macdonald Limited,D-PINV062346,"37,588.75",Capital grants - Academy Trust
Department for Education,Core,24/01/2024,Grants Expenditure,Capital Directorate,Mott Macdonald Limited,D-PINV062347,"37,138.14",Capital grants - Academy Trust
Department for Education,Core,22/01/2024,Grants Expenditure,Capital Directorate,Mace Limited,D-PINV062308,"86,934.61",Capital grants - Academy Trust
Department for Education,Core,31/01/2024,Grants Expenditure,Capital Directorate,Morgan Sindall Construction And Infrastructure Ltd,D-PCR001445,"-687,524.82",Capital grants - Academy Trust
Department for Education,Core,24/01/2024,Grants Expenditure,Capital Directorate,Bam Construction Limited,D-PINV062348,"807,214.92",Capital grants - Academy Trust
Department for Education,Core,24/01/2024,Grants Expenditure,Capital Directorate,Isg Construction Limited,D-PINV062321,"320,924.68",Capital grants - Academy Trust
Department for Education,Core,24/01/2024,Grants Expenditure,Capital Directorate,Wates Construction Limited,D-PINV062380,"505,563.43",Capital grants - Academy Trust
Department for Education,Core,23/01/2024,Grants Expenditure,Capital Directorate,Mace Limited,D-PINV061150,"60,619.49",Capital grants - Academy Trust
Department for Education,Core,29/01/2024,Grants Expenditure,Capital Directorate,Galliford Try Building Ltd,D-PINV062381,"2,401,078.88",Capital grants - Academy Trust
Department for Education,Core,29/01/2024,Grants Expenditure,Capital Directorate,Galliford Try Building Ltd,D-PINV062385,"360,149.39",Capital grants - Academy Trust
Department for Education,Core,29/01/2024,Grants Expenditure,Capital Directorate,Bam Construction Limited,D-PINV062376,"31,390.18",Capital grants - Academy Trust
Department for Education,Core,23/01/2024,Grants Expenditure,Capital Directorate,Bowmer And Kirkland Limited,D-PINV062359,"173,775.30",Capital grants - Academy Trust
Department for Education,Core,26/01/2024,Grants Expenditure,Capital Directorate,Kier Western And Wales,D-PINV062435,"507,191.54",Capital grants - Academy Trust
Department for Education,Core,26/01/2024,Grants Expenditure,Capital Directorate,Bam Construction Limited,D-PINV062438,"696,172.25",Capital grants - Academy Trust
Department for Education,Core,26/01/2024,Grants Expenditure,Capital Directorate,Bowmer And Kirkland Limited,D-PINV062439,"832,679.15",Capital grants - Academy Trust
Department for Education,Core,26/01/2024,Grants Expenditure,Capital Directorate,Bowmer And Kirkland Limited,D-PINV062437,"1,112,094.73",Capital grants - Academy Trust
Department for Education,Core,24/01/2024,Grants Expenditure,Capital Directorate,Wsp Uk Limited,D-PINV061740,"34,540.10",Capital grants - Academy Trust
Department for Education,Core,30/01/2024,Grants Expenditure,Capital Directorate,Wates Construction Limited,D-PINV062457,"1,597,662.12",Capital grants - Academy Trust
Department for Education,Core,29/01/2024,Grants Expenditure,Capital Directorate,Bam Construction Limited,D-PINV062472,"332,965.44",Capital grants - Academy Trust
Department for Education,Core,25/01/2024,Grants Expenditure,Capital Directorate,Wsp Uk Limited,D-PINV060653,"85,599.86",Capital grants - Academy Trust
Department for Education,Core,29/01/2024,Grants Expenditure,Capital Directorate,Reds10 Uk Limited,D-PINV062475,"174,933.98",Capital grants - Academy Trust
Department for Education,Core,29/01/2024,Grants Expenditure,Capital Directorate,Bowmer And Kirkland Limited,D-PINV062473,"954,900.67",Capital grants - Academy Trust
Department for Education,Core,29/01/2024,Grants Expenditure,Capital Directorate,Faithful And Gould,D-PINV061770,"58,284.36",Capital grants - Academy Trust
Department for Education,Core,30/01/2024,Grants Expenditure,Capital Directorate,Tilbury Douglas Construction Limited,D-PINV062476,"606,858.56",Capital grants - Academy Trust
Department for Education,Core,31/01/2024,Grants Expenditure,Capital Directorate,Bowmer And Kirkland Limited,D-PINV062521,"99,033.60",Capital grants - Academy Trust
Department for Education,Core,30/01/2024,Grants Expenditure,Capital Directorate,Mace Limited,D-PINV062534,"31,740.00",Capital grants - Academy Trust
Department for Education,Core,31/01/2024,Grants Expenditure,Capital Directorate,Tilbury Douglas Construction Limited,D-PINV062555,"102,613.86",Capital grants - Academy Trust
Department for Education,Core,31/01/2024,Grants Expenditure,Capital Directorate,Mace Limited,D-PINV062466,"33,576.70",Capital grants - Academy Trust
Department for Education,Core,19/01/2024,Grants Expenditure,Capital Directorate,Barking And Dagenham London Borough Council,CL071643,"727,237.73",Capital grants - Local Government
Department for Education,Core,19/01/2024,Grants Expenditure,Capital Directorate,London Borough Of Tower Hamlets,CL071648,"3,123,834.00",Capital grants - Local Government
Department for Education,Core,04/01/2024,Grants Expenditure,Capital Directorate,Tilbury Douglas Construction Limited,D-PINV061723,"381,239.94",Capital grants - Academy Trust
Department for Education,Core,04/01/2024,Grants Expenditure,Capital Directorate,Mcavoy Modular Offsite Limited,D-PINV061638,"765,419.41",Current grants - Academy Trust
Department for Education,Core,04/01/2024,Grants Expenditure,Capital Directorate,Cushman And Wakefield Debenham Tie Leung Limited,D-PINV061807,"249,271.07",Capital grants - Academy Trust
Department for Education,Core,04/01/2024,Grants Expenditure,Capital Directorate,Bowmer And Kirkland Limited,D-PINV061727,"1,854,470.60",Capital grants - Academy Trust
Department for Education,Core,04/01/2024,Grants Expenditure,Capital Directorate,Mills And Reeve Llp Client Account,D-PINV061812,"550,000.00",Current grants - Academy Trust
Department for Education,Core,04/01/2024,Grants Expenditure,Capital Directorate,Turner And Townsend,D-PINV061784,"35,792.03",Capital grants - Academy Trust
Department for Education,Core,04/01/2024,Grants Expenditure,Capital Directorate,Turner And Townsend,D-PINV061790,"43,362.90",Capital grants - Academy Trust
Department for Education,Core,04/01/2024,Grants Expenditure,Capital Directorate,Mott Macdonald Limited,D-PINV061827,"26,878.80",Capital grants - Academy Trust
Department for Education,Core,04/01/2024,Grants Expenditure,Capital Directorate,Trowers And Hamlins Llp,D-PINV061843,"6,930,000.00",Capital grants - Academy Trust
Department for Education,Core,09/01/2024,Grants Expenditure,Capital Directorate,Kier Construction Eastern,D-PINV061899,"162,102.58",Capital grants - Academy Trust
Department for Education,Core,04/01/2024,Other Costs,Capital Directorate,Bishop Chavasse Primary School,D-CINV005752,"4,951.16",Capital grants - Academy Trust 
Department for Education,Core,04/01/2024,Grants Expenditure,Capital Directorate,Bishop Chavasse Primary School,D-CINV005752,"24,755.75",Capital grants - Academy Trust
Department for Education,Core,04/01/2024,Other Costs,Capital Directorate,The Beckmead Trust,D-CINV005874,"27,846.80",Capital grants - Academy Trust 
Department for Education,Core,04/01/2024,Grants Expenditure,Capital Directorate,The Beckmead Trust,D-CINV005874,"139,353.97",Current grants - Academy Trust
Department for Education,Core,04/01/2024,Other Costs,Capital Directorate,The Rivers C Of E Multi Academy Trust,D-CINV005908,"17,241.60",Capital grants - Academy Trust 
Department for Education,Core,04/01/2024,Grants Expenditure,Capital Directorate,The Rivers C Of E Multi Academy Trust,D-CINV005908,"86,208.00",Capital grants - Academy Trust
Department for Education,Core,05/01/2024,Grants Expenditure,Capital Directorate,Oasis Academy Byron,D-CINV005915,"27,783.61",Capital grants - Academy Trust
Department for Education,Core,08/01/2024,Grants Expenditure,Capital Directorate,Trinity Academy,D-CINV005919,"51,100.00",Capital grants - Academy Trust
Department for Education,Core,08/01/2024,Grants Expenditure,Capital Directorate,Bowmer And Kirkland Limited,D-PINV061914,"256,597.34",Capital grants - Academy Trust
Department for Education,Core,11/01/2024,Grants Expenditure,Capital Directorate,Bowmer And Kirkland Limited,D-PINV061912,"806,350.56",Capital grants - Academy Trust
Department for Education,Core,09/01/2024,Grants Expenditure,Capital Directorate,Arcadis Llp,D-PINV061921,"154,369.80",Capital grants - Academy Trust
Department for Education,Core,09/01/2024,Grants Expenditure,Capital Directorate,Conlon Construction Ltd,D-PINV061534,"251,238.92",Capital grants - Academy Trust
Department for Education,Core,09/01/2024,Grants Expenditure,Capital Directorate,Mace Limited,D-PINV061611,"198,375.00",Capital grants - Academy Trust
Department for Education,Core,09/01/2024,Grants Expenditure,Capital Directorate,Faithful And Gould,D-PINV061597,"68,288.86",Capital grants - Academy Trust
Department for Education,Core,09/01/2024,Grants Expenditure,Capital Directorate,Faithful And Gould,D-PINV061927,"63,166.32",Capital grants - Academy Trust
Department for Education,Core,09/01/2024,Grants Expenditure,Capital Directorate,Galliford Try Building Ltd,D-PINV061728,"374,126.80",Capital grants - Academy Trust
Department for Education,Core,09/01/2024,Grants Expenditure,Capital Directorate,Algeco Uk Limited,D-PINV061844,"1,641,000.73",Capital grants - Academy Trust
Department for Education,Core,09/01/2024,Grants Expenditure,Capital Directorate,Reds10 Uk Limited,D-PINV061820,"875,285.56",Capital grants - Academy Trust
Department for Education,Core,09/01/2024,Grants Expenditure,Capital Directorate,Wsp Uk Limited,D-PINV061813,"41,397.47",Capital grants - Academy Trust
Department for Education,Core,09/01/2024,Grants Expenditure,Capital Directorate,Isg Construction Limited,D-PINV057329,"28,334.82",Capital grants - Academy Trust
Department for Education,Core,09/01/2024,Grants Expenditure,Capital Directorate,Isg Construction Limited,D-PINV057328,"52,322.84",Capital grants - Academy Trust
Department for Education,Core,11/01/2024,Grants Expenditure,Capital Directorate,Isg Construction Limited,D-PINV061941,"874,138.32",Capital grants - Academy Trust
Department for Education,Core,12/01/2024,Grants Expenditure,Capital Directorate,Castle School Education Trust,D-CINV005927,"25,279.00",Capital grants - Academy Trust
Department for Education,Core,12/01/2024,Grants Expenditure,Capital Directorate,East London Arts And Music,D-CINV005928,"50,762.90",Capital grants - Academy Trust
Department for Education,Core,09/01/2024,Grants Expenditure,Capital Directorate,Bowmer And Kirkland Limited,D-PINV061819,"1,000,843.02",Capital grants - Academy Trust
Department for Education,Core,09/01/2024,Grants Expenditure,Capital Directorate,Turner And Townsend,D-PINV061661,"75,366.60",Capital grants - Academy Trust
Department for Education,Core,18/01/2024,Grants Expenditure,Capital Directorate,Mace Limited,D-PINV062002,"33,918.55",Capital grants - Academy Trust
Department for Education,Core,18/01/2024,Grants Expenditure,Capital Directorate,Mace Limited,D-PINV061999,"30,852.47",Capital grants - Academy Trust
Department for Education,Core,10/01/2024,Grants Expenditure,Capital Directorate,Isg Construction Limited,D-PINV061958,"119,961.10",Capital grants - Academy Trust
Department for Education,Core,12/01/2024,Grants Expenditure,Capital Directorate,Eastern Learning Alliance,D-CINV005871,"141,817.96",Capital grants - Academy Trust
Department for Education,Core,12/01/2024,Grants Expenditure,Capital Directorate,Ambitious About Autism Schools Trust,D-CINV005897,"113,572.56",Capital grants - Academy Trust
Department for Education,Core,10/01/2024,Grants Expenditure,Capital Directorate,Bowmer And Kirkland Limited,D-PINV061957,"878,229.92",Capital grants - Academy Trust
Department for Education,Core,11/01/2024,Grants Expenditure,Capital Directorate,Bouygues Uk,D-PINV061933,"527,996.22",Capital grants - Academy Trust
Department for Education,Core,12/01/2024,Grants Expenditure,Capital Directorate,Tilbury Douglas Construction Limited,D-PINV062024,"363,779.09",Capital grants - Academy Trust
Department for Education,Core,17/01/2024,Grants Expenditure,Capital Directorate,South Thames Colleges Group,D-PINV062056,"32,900.23",Capital grants - Academy Trust
Department for Education,Core,12/01/2024,Grants Expenditure,Capital Directorate,Trinity Multi Academy Trust,D-CINV005938,"37,819.06",Capital grants - Academy Trust
Department for Education,Core,12/01/2024,Other Costs,Capital Directorate,Aspirations Academies Trust,D-CINV005941,"9,135.11",Capital grants - Academy Trust 
Department for Education,Core,12/01/2024,Grants Expenditure,Capital Directorate,Aspirations Academies Trust,D-CINV005941,"45,675.54",Capital grants - Academy Trust
Department for Education,Core,12/01/2024,Grants Expenditure,Capital Directorate,Reds10 Uk Limited,D-PINV062025,"46,938.06",Capital grants - Academy Trust
Department for Education,Core,11/01/2024,Grants Expenditure,Capital Directorate,Bowmer And Kirkland Limited,D-PINV061613,"50,536.42",Capital grants - Academy Trust
Department for Education,Core,16/01/2024,Grants Expenditure,Capital Directorate,Dac Beachcroft Llp,D-PINV062082,"16,200.00",Capital grants - Academy Trust
Department for Education,Core,16/01/2024,Grants Expenditure,Capital Directorate,Dac Beachcroft Llp,D-PINV062082,"10,314.00",Capital Grants - Academy Trusts
Department for Education,Core,16/01/2024,Grants Expenditure,Capital Directorate,Dac Beachcroft Llp,D-PCR001441,"-26,514.00",Capital grants - Academy Trust
Department for Education,Core,15/01/2024,Grants Expenditure,Capital Directorate,Mace Limited,D-PINV062059,"108,094.07",Capital grants - Academy Trust
Department for Education,Core,15/01/2024,Grants Expenditure,Capital Directorate,Morgan Sindall Construction And Infrastructure Ltd,D-PINV062081,"980,696.02",Capital grants - Academy Trust
Department for Education,Core,15/01/2024,Grants Expenditure,Capital Directorate,Castleplus Limited,D-PINV062066,"108,387.60",Capital grants - Academy Trust
Department for Education,Core,17/01/2024,Other Costs,Capital Directorate,Star Academies,D-CINV005949,"85,614.43",Capital grants - Academy Trust 
Department for Education,Core,17/01/2024,Grants Expenditure,Capital Directorate,Star Academies,D-CINV005949,"428,072.16",Capital grants - Academy Trust
Department for Education,Core,17/01/2024,Other Costs,Capital Directorate,North Cestrian School,D-CINV005950,"8,241.65",Capital grants - Academy Trust 
Department for Education,Core,17/01/2024,Grants Expenditure,Capital Directorate,North Cestrian School,D-CINV005950,"41,208.28",Capital grants - Academy Trust
Department for Education,Core,16/01/2024,Grants Expenditure,Capital Directorate,Kier Construction Scotland,D-PINV062118,"220,453.20",Capital grants - Academy Trust
Department for Education,Core,16/01/2024,Grants Expenditure,Capital Directorate,Morgan Sindall Construction And Infrastructure Ltd,D-PINV062114,"817,549.67",Capital grants - Academy Trust
Department for Education,Core,19/01/2024,Grants Expenditure,Capital Directorate,Galliford Try Building Ltd,D-PINV062116,"72,386.17",Capital grants - Academy Trust
Department for Education,Core,17/01/2024,Grants Expenditure,Capital Directorate,Re-Gen (Mande Services) Ltd,D-PINV062120,"25,748.77",Capital grants - Academy Trust
Department for Education,Core,18/01/2024,Grants Expenditure,Capital Directorate,Reds10 Uk Limited,D-PINV062121,"668,910.11",Capital grants - Academy Trust
Department for Education,Core,16/01/2024,Grants Expenditure,Capital Directorate,Isg Construction Limited,D-PINV062086,"916,688.00",Capital grants - Academy Trust
Department for Education,Core,17/01/2024,Other Costs,Capital Directorate,Cambrai Primary School,D-CINV005953,"7,215.26",Capital grants - Academy Trust 
Department for Education,Core,17/01/2024,Grants Expenditure,Capital Directorate,Cambrai Primary School,D-CINV005953,"36,076.30",Capital grants - Academy Trust
Department for Education,Core,17/01/2024,Other Costs,Capital Directorate,Lancaster University School Of Mathematics,D-CINV005956,"9,494.27",Capital grants - Academy Trust 
Department for Education,Core,17/01/2024,Grants Expenditure,Capital Directorate,Lancaster University School Of Mathematics,D-CINV005956,"47,471.37",Capital grants - Academy Trust
Department for Education,Core,17/01/2024,Grants Expenditure,Capital Directorate,Bowmer And Kirkland Limited,D-PINV062122,"57,422.06",Capital grants - Academy Trust
Department for Education,Core,17/01/2024,Grants Expenditure,Capital Directorate,Bowmer And Kirkland Limited,D-PINV062119,"2,090,160.00",Capital grants - Academy Trust
Department for Education,Core,17/01/2024,Grants Expenditure,Capital Directorate,Bowmer And Kirkland Limited,D-PINV062123,"1,668,217.55",Capital grants - Academy Trust
Department for Education,Core,24/01/2024,Other costs,Capital Directorate,Aston Webb And Co Limited,D-PINV061726,-262.9,Taxation and Social Security Payable to HMRC
Department for Education,Core,24/01/2024,Grants Expenditure,Capital Directorate,Aston Webb And Co Limited,D-PINV061726,"36,529.92",Capital grants - Academy Trust
Department for Education,Core,17/01/2024,Grants Expenditure,Capital Directorate,Bam Construction Limited,D-PINV062125,"888,376.84",Capital grants - Academy Trust
Department for Education,Core,18/01/2024,Grants Expenditure,Capital Directorate,Bowmer And Kirkland Limited,D-PINV062160,"894,424.26",Capital grants - Academy Trust
Department for Education,Core,17/01/2024,Grants Expenditure,Capital Directorate,Reds10 Uk Limited,D-PINV062167,"84,809.80",Capital grants - Academy Trust
Department for Education,Core,19/01/2024,Grants Expenditure,Capital Directorate,Portakabin Limited,D-PINV062203,"3,177,270.69",Capital grants - Academy Trust
Department for Education,Core,19/01/2024,Other Costs,Capital Directorate,Star Academies,D-CINV005959,"8,007.80",Capital grants - Academy Trust 
Department for Education,Core,19/01/2024,Grants Expenditure,Capital Directorate,Star Academies,D-CINV005959,"40,039.02",Capital grants - Academy Trust
Department for Education,Core,17/01/2024,Grants Expenditure,Capital Directorate,Mace Limited,D-PINV061971,"42,576.00",Capital grants - Academy Trust
Department for Education,Core,17/01/2024,Grants Expenditure,Capital Directorate,Gleeds Management Services Limited,D-PINV061796,"68,794.92",Capital grants - Academy Trust
Department for Education,Core,19/01/2024,Grants Expenditure,Capital Directorate,Wates Construction Limited,D-PINV062250,"2,816,330.57",Capital grants - Academy Trust
Department for Education,Core,18/01/2024,Grants Expenditure,Capital Directorate,Faithful And Gould,D-PINV060963,"78,950.95",Capital grants - Academy Trust
Department for Education,Core,23/01/2024,Grants Expenditure,Capital Directorate,Tilbury Douglas Construction Limited,D-PINV062248,"477,405.79",Capital grants - Academy Trust
Department for Education,Core,19/01/2024,Grants Expenditure,Capital Directorate,Tilbury Douglas Construction Limited,D-PINV062258,"686,260.99",Capital grants - Academy Trust
Department for Education,Core,22/01/2024,Grants Expenditure,Capital Directorate,Mcavoy Modular Offsite Limited,D-PINV062269,"1,679,796.11",Capital grants - Academy Trust
Department for Education,Core,19/01/2024,Grants Expenditure,Capital Directorate,Isg Construction Limited,D-PINV062270,"1,101,713.32",Capital grants - Academy Trust
Department for Education,Core,23/01/2024,Grants Expenditure,Capital Directorate,Bowmer And Kirkland Limited,D-PINV062247,"441,118.54",Capital grants - Academy Trust
Department for Education,Core,25/01/2024,Grants Expenditure,Capital Directorate,Bowmer And Kirkland Limited,D-PINV062249,"1,269,110.26",Capital grants - Academy Trust
Department for Education,Core,19/01/2024,Grants Expenditure,Capital Directorate,Bowmer And Kirkland Limited,D-PINV062260,"76,830.00",Capital grants - Academy Trust
Department for Education,Core,22/01/2024,Grants Expenditure,Capital Directorate,Morgan Sindall Construction And Infrastructure Ltd,D-PINV062271,"139,337.03",Capital grants - Academy Trust
Department for Education,Core,22/01/2024,Grants Expenditure,Capital Directorate,Tilbury Douglas Construction Limited,D-PINV062317,"454,100.66",Capital grants - Academy Trust
Department for Education,Core,24/01/2024,Grants Expenditure,Capital Directorate,King'S Leadership Academy Warrington,D-CINV005987,"53,497.00",Capital grants - Academy Trust
Department for Education,Core,24/01/2024,Grants Expenditure,Capital Directorate,King'S Leadership Academy Warrington,D-CINV005987,"15,516.00",Capital grants - Academy Trust
Department for Education,Core,22/01/2024,Grants Expenditure,Capital Directorate,Bowmer And Kirkland Limited,D-PINV062318,"410,542.91",Capital grants - Academy Trust
Department for Education,Core,22/01/2024,Grants Expenditure,Capital Directorate,Bowmer And Kirkland Limited,D-PINV062290,"435,517.88",Capital grants - Academy Trust
Department for Education,Core,22/01/2024,Grants Expenditure,Capital Directorate,Mace Limited,D-PINV062301,"28,014.34",Capital grants - Academy Trust
Department for Education,Core,23/01/2024,Grants Expenditure,Capital Directorate,Morgan Sindall Construction And Infrastructure Ltd,D-PINV062319,"475,142.22",Capital grants - Academy Trust
Department for Education,Core,23/01/2024,Grants Expenditure,Capital Directorate,Tetra Tech Limited,D-PINV062330,"34,299.72",Capital grants - Academy Trust
Department for Education,Core,23/01/2024,Grants Expenditure,Capital Directorate,Algeco Uk Limited,D-PINV062324,"176,176.44",Capital grants - Academy Trust
Department for Education,Core,23/01/2024,Grants Expenditure,Capital Directorate,Aecom Ltd,D-PINV061337,"74,766.08",Capital grants - Academy Trust
Department for Education,Core,31/01/2024,Grants Expenditure,Capital Directorate,Bowmer And Kirkland Limited,D-PINV062355,"1,576,103.90",Capital grants - Academy Trust
Department for Education,Core,23/01/2024,Grants Expenditure,Capital Directorate,Bowmer And Kirkland Limited,D-PINV062356,"67,102.49",Capital grants - Academy Trust
Department for Education,Core,26/01/2024,Grants Expenditure,Capital Directorate,Countryside Properties (Uk) Ltd,D-PINV062436,"710,109.61",Capital grants - Academy Trust
Department for Education,Core,24/01/2024,Other Costs,Capital Directorate,Sir Frederick Gibberd College,D-CINV006022,"11,003.54",Capital grants - Academy Trust 
Department for Education,Core,24/01/2024,Grants Expenditure,Capital Directorate,Sir Frederick Gibberd College,D-CINV006022,"58,834.75",Capital grants - Academy Trust 
Department for Education,Core,24/01/2024,Other Costs,Capital Directorate,Sir Frederick Gibberd College,D-CINV006023,"71,035.10",Capital grants - Academy Trust 
Department for Education,Core,24/01/2024,Grants Expenditure,Capital Directorate,Sir Frederick Gibberd College,D-CINV006023,"355,177.71",Current grants - Academy Trust
Department for Education,Core,25/01/2024,Grants Expenditure,Capital Directorate,Reds10 Uk Limited,D-PINV062434,"756,783.73",Capital grants - Academy Trust
Department for Education,Core,26/01/2024,Grants Expenditure,Capital Directorate,Conlon Construction Ltd,D-PINV062471,"361,441.25",Capital grants - Academy Trust
Department for Education,Core,31/01/2024,Grants Expenditure,Capital Directorate,Spatial Initiative Ltd,D-PINV062440,"339,068.94",Capital grants - Academy Trust
Department for Education,Core,31/01/2024,Other Costs,Capital Directorate,Wembley Multi Academy Trust ,D-CINV006029,"8,949.54",Capital grants - Academy Trust 
Department for Education,Core,31/01/2024,Grants Expenditure,Capital Directorate,Wembley Multi Academy Trust ,D-CINV006029,"44,747.68",Capital grants - Academy Trust
Department for Education,Core,29/01/2024,Grants Expenditure,Capital Directorate,Windsor Academy Trust,D-CINV006043,"191,953.98",Capital grants - Academy Trust
Department for Education,Core,26/01/2024,Grants Expenditure,Capital Directorate,Bowmer And Kirkland Limited,D-PINV062441,"1,294,262.06",Capital grants - Academy Trust
Department for Education,Core,29/01/2024,Grants Expenditure,Capital Directorate,Frontier Learning Trust,D-CINV006073,"30,161.11",Capital grants - Academy Trust
Department for Education,Core,31/01/2024,Other Costs,Capital Directorate,Watford St John'S Church Of England Primary School,D-CINV006074,"4,396.37",Capital grants - Academy Trust 
Department for Education,Core,31/01/2024,Grants Expenditure,Capital Directorate,Watford St John'S Church Of England Primary School,D-CINV006074,"21,981.81",Capital grants - Academy Trust
Department for Education,Core,30/01/2024,Grants Expenditure,Capital Directorate,Willmott Dixon Construction Limited,D-PINV062522,"51,486.61",Capital grants - Academy Trust
Department for Education,Core,30/01/2024,Grants Expenditure,Capital Directorate,Galliford Try Building Ltd,D-PINV062519,"450,356.40",Capital grants - Academy Trust
Department for Education,Core,31/01/2024,Grants Expenditure,Capital Directorate,T And B (Contractors) Limited,D-PINV062482,"440,824.44",Capital grants - Academy Trust
Department for Education,Core,29/01/2024,Grants Expenditure,Capital Directorate,Arcadis Llp,D-PINV062487,"95,947.80",Capital grants - Academy Trust
Department for Education,Core,31/01/2024,Grants Expenditure,Capital Directorate,Isg Construction Limited,D-PINV062477,"283,716.22",Capital grants - Academy Trust
Department for Education,Core,29/01/2024,Grants Expenditure,Capital Directorate,Turner And Townsend,D-PINV062497,"53,737.20",Capital grants - Academy Trust
Department for Education,Core,30/01/2024,Grants Expenditure,Capital Directorate,Mace Limited,D-PINV062539,"109,710.00",Capital grants - Academy Trust
Department for Education,Core,31/01/2024,Grants Expenditure,Capital Directorate,Morgan Sindall Construction And Infrastructure Ltd,D-PINV062564,"1,160,336.56",Capital grants - Academy Trust
Department for Education,Core,31/01/2024,Grants Expenditure,Capital Directorate,Reds10 Uk Limited,D-PINV062605,"1,330,649.98",Capital grants - Academy Trust
Department for Education,Core,09/01/2024,Grants Expenditure,Capital Directorate,Portakabin Limited,D-PINV061907,"38,259.00",Current grants - Academy Trust
Department for Education,Core,18/01/2024,Grants Expenditure,Capital Directorate,Portakabin Limited,D-PINV061938,"37,307.08",Current grants - Academy Trust
Department for Education,Core,12/01/2024,Grants Expenditure,Capital Directorate,Portakabin Limited,D-PINV059193,"28,099.51",Current grants - Academy Trust
Department for Education,Core,29/01/2024,Grants Expenditure,Capital Directorate,Eric Wright Construction Limited,D-PINV062377,"115,295.33",Current grants - Academy Trust
Department for Education,Core,02/01/2024,Grants Expenditure,Capital Directorate,Kensington Aldridge Academy,DU00103501,"29,680.00",Current grants - Academy Trust
Department for Education,Core,02/01/2024,Grants Expenditure,Capital Directorate,Westside School,DU00103502,"86,154.00",Current grants - Academy Trust
Department for Education,Core,02/01/2024,Grants Expenditure,Capital Directorate,London Academy Of Excellence,DU00103503,"138,845.00",Current grants - Academy Trust
Department for Education,Core,02/01/2024,Grants Expenditure,Capital Directorate,Brook House Primary School,DU00103504,"129,146.11",Current grants - Academy Trust
Department for Education,Core,02/01/2024,Grants Expenditure,Capital Directorate,Bilingual Primary School - Brighton And Hove,DU00103508,"52,876.00",Current grants - Academy Trust
Department for Education,Core,19/01/2024,Grants Expenditure,Capital Directorate,Heathside Walton-On-Thames,DU00103773,"25,770.02",Current grants - Academy Trust
Department for Education,Core,19/01/2024,Grants Expenditure,Capital Directorate,King'S Leadership Academy Bolton,DU00103774,"80,824.57",Current grants - Academy Trust
Department for Education,Core,19/01/2024,Grants Expenditure,Capital Directorate,The John Warner School,CAY162781,"107,682.00",Capital grants - Academy Trust
Department for Education,Core,19/01/2024,Grants Expenditure,Capital Directorate,The Mountbatten School,CAY162782,"178,941.00",Capital grants - Academy Trust
Department for Education,Core,19/01/2024,Grants Expenditure,Capital Directorate,Bentley Wood High School,CAY162783,"96,694.00",Capital grants - Academy Trust
Department for Education,Core,19/01/2024,Grants Expenditure,Capital Directorate,Stonebow Primary School Loughborough,CAY162784,"40,293.00",Capital grants - Academy Trust
Department for Education,Core,19/01/2024,Grants Expenditure,Capital Directorate,Woodville Primary School,CAY162785,"62,321.00",Capital grants - Academy Trust
Department for Education,Core,19/01/2024,Grants Expenditure,Capital Directorate,Bedonwell Infant And Nursery School,CAY162787,"43,735.00",Capital grants - Academy Trust
Department for Education,Core,19/01/2024,Grants Expenditure,Capital Directorate,Bexton Primary School,CAY162788,"64,511.00",Capital grants - Academy Trust
Department for Education,Core,19/01/2024,Grants Expenditure,Capital Directorate,Westcliff High School For Boys Academy,CAY162789,"207,736.00",Capital grants - Academy Trust
Department for Education,Core,19/01/2024,Grants Expenditure,Capital Directorate,Fowey River Academy,CAY162790,"63,217.00",Capital grants - Academy Trust
Department for Education,Core,19/01/2024,Grants Expenditure,Capital Directorate,Treviglas Academy,CAY162791,"55,259.00",Capital grants - Academy Trust
Department for Education,Core,19/01/2024,Grants Expenditure,Capital Directorate,The Westgate School,CAY162792,"85,445.00",Capital grants - Academy Trust
Department for Education,Core,19/01/2024,Grants Expenditure,Capital Directorate,Northwold Primary School,CAY162805,"144,654.00",Capital grants - Academy Trust
Department for Education,Core,19/01/2024,Grants Expenditure,Capital Directorate,Sale Grammar School,CAY162825,"176,844.00",Capital grants - Academy Trust
Department for Education,Core,19/01/2024,Grants Expenditure,Capital Directorate,Aylesford School Warwick,CAY162917,"191,607.00",Capital grants - Academy Trust
Department for Education,Core,19/01/2024,Grants Expenditure,Capital Directorate,Shenfield High School,CAY162918,"65,627.00",Capital grants - Academy Trust
Department for Education,Core,19/01/2024,Grants Expenditure,Capital Directorate,North Cadbury Church Of England Primary School,CAY162922,"126,019.00",Capital grants - Academy Trust
Department for Education,Core,19/01/2024,Grants Expenditure,Capital Directorate,Mounts Bay Academy,CAY162923,"97,976.00",Capital grants - Academy Trust
Department for Education,Core,19/01/2024,Grants Expenditure,Capital Directorate,Mounts Bay Academy,CAY162924,"71,419.00",Capital grants - Academy Trust
Department for Education,Core,19/01/2024,Grants Expenditure,Capital Directorate,Belmont Academy,CAY162926,"67,261.00",Capital grants - Academy Trust
Department for Education,Core,19/01/2024,Grants Expenditure,Capital Directorate,Delamere Cofe Primary Academy,CAY162927,"61,490.00",Capital grants - Academy Trust
Department for Education,Core,19/01/2024,Grants Expenditure,Capital Directorate,The Axholme Academy,CAY162929,"38,181.00",Capital grants - Academy Trust
Department for Education,Core,19/01/2024,Grants Expenditure,Capital Directorate,St Martin'S Academy Chester,CAY162930,"76,387.00",Capital grants - Academy Trust
Department for Education,Core,19/01/2024,Grants Expenditure,Capital Directorate,Highwoods Community Primary School,CAY162931,"30,680.00",Capital grants - Academy Trust
Department for Education,Core,19/01/2024,Grants Expenditure,Capital Directorate,The Berkeley Academy,CAY162932,"58,553.00",Capital grants - Academy Trust
Department for Education,Core,19/01/2024,Grants Expenditure,Capital Directorate,Tany'S Dell Primary School And Nursery,CAY162934,"41,731.00",Capital grants - Academy Trust
Department for Education,Core,19/01/2024,Grants Expenditure,Capital Directorate,Beechfield School,CAY162935,"30,581.00",Capital grants - Academy Trust
Department for Education,Core,19/01/2024,Grants Expenditure,Capital Directorate,Little Heath School,CAY162937,"172,943.00",Capital grants - Academy Trust
Department for Education,Core,19/01/2024,Grants Expenditure,Capital Directorate,Beths Grammar School,CAY162938,"203,607.00",Capital grants - Academy Trust
Department for Education,Core,19/01/2024,Grants Expenditure,Capital Directorate,Haydon School,CAY162939,"100,000.00",Capital grants - Academy Trust
Department for Education,Core,19/01/2024,Grants Expenditure,Capital Directorate,Towers School And Sixth Form Centre,CAY162940,"53,700.00",Capital grants - Academy Trust
Department for Education,Core,19/01/2024,Grants Expenditure,Capital Directorate,Cheltenham Bournside School And Sixth Form Centre,CAY162941,"109,978.00",Capital grants - Academy Trust
Department for Education,Core,19/01/2024,Grants Expenditure,Capital Directorate,Newton Abbot College,CAY162942,"122,828.00",Capital grants - Academy Trust
Department for Education,Core,19/01/2024,Grants Expenditure,Capital Directorate,"The King'S School, Grantham",CAY162943,"138,172.00",Capital grants - Academy Trust
Department for Education,Core,19/01/2024,Grants Expenditure,Capital Directorate,Rooks Heath School,CAY162944,"305,000.00",Capital grants - Academy Trust
Department for Education,Core,19/01/2024,Grants Expenditure,Capital Directorate,Falmouth School,CAY162945,"30,660.00",Capital grants - Academy Trust
Department for Education,Core,19/01/2024,Grants Expenditure,Capital Directorate,Chatham Grammar,CAY162946,"44,771.00",Capital grants - Academy Trust
Department for Education,Core,19/01/2024,Grants Expenditure,Capital Directorate,Bournemouth School,CAY162947,"197,306.00",Capital grants - Academy Trust
Department for Education,Core,19/01/2024,Grants Expenditure,Capital Directorate,Kingsbury High School,CAY162948,"187,485.00",Capital grants - Academy Trust
Department for Education,Core,19/01/2024,Grants Expenditure,Capital Directorate,Bourton Meadow Academy,CAY162949,"70,397.00",Capital grants - Academy Trust
Department for Education,Core,19/01/2024,Grants Expenditure,Capital Directorate,East Herrington Primary Academy,CAY162950,"79,960.00",Capital grants - Academy Trust
Department for Education,Core,19/01/2024,Grants Expenditure,Capital Directorate,The Cavendish School,CAY162951,"29,558.00",Capital grants - Academy Trust
Department for Education,Core,19/01/2024,Grants Expenditure,Capital Directorate,Heston Community School,CAY162952,"96,334.00",Capital grants - Academy Trust
Department for Education,Core,19/01/2024,Grants Expenditure,Capital Directorate,Cheney School,CAY162953,"124,639.00",Capital grants - Academy Trust
Department for Education,Core,19/01/2024,Grants Expenditure,Capital Directorate,Fulham Cross Girls' School And Language College,CAY162954,"42,881.00",Capital grants - Academy Trust
Department for Education,Core,19/01/2024,Grants Expenditure,Capital Directorate,St George'S School A Church Of England Academy,CAY162955,"108,215.00",Capital grants - Academy Trust
Department for Education,Core,19/01/2024,Grants Expenditure,Capital Directorate,West View Primary School,CAY162956,"34,377.00",Capital grants - Academy Trust
Department for Education,Core,19/01/2024,Grants Expenditure,Capital Directorate,Castercliff Primary School,CAY162957,"62,027.00",Capital grants - Academy Trust
Department for Education,Core,19/01/2024,Grants Expenditure,Capital Directorate,St Mary'S School,CAY162958,"51,408.00",Capital grants - Academy Trust
Department for Education,Core,19/01/2024,Grants Expenditure,Capital Directorate,Salisbury Road Primary School,CAY162959,"63,609.00",Capital grants - Academy Trust
Department for Education,Core,19/01/2024,Grants Expenditure,Capital Directorate,Bedonwell Junior School,CAY162960,"84,147.00",Capital grants - Academy Trust
Department for Education,Core,19/01/2024,Grants Expenditure,Capital Directorate,Minterne Junior School,CAY162961,"56,344.00",Capital grants - Academy Trust
Department for Education,Core,19/01/2024,Grants Expenditure,Capital Directorate,Woking College,CAY162962,"222,343.00",Capital grants - Academy Trust
Department for Education,Core,19/01/2024,Grants Expenditure,Capital Directorate,Central Lancaster High School,CAY162963,"152,996.00",Capital grants - Academy Trust
Department for Education,Core,19/01/2024,Grants Expenditure,Capital Directorate,St Cross Catholic Primary School,CAY162964,"54,954.00",Capital grants - Academy Trust
Department for Education,Core,19/01/2024,Grants Expenditure,Capital Directorate,Mundella Primary School,CAY162965,"29,833.00",Capital grants - Academy Trust
Department for Education,Core,19/01/2024,Grants Expenditure,Capital Directorate,Kassia Academy And Support Services,CAY162966,"54,020.00",Capital grants - Academy Trust
Department for Education,Core,19/01/2024,Grants Expenditure,Capital Directorate,Cheltenham Bournside School And Sixth Form Centre,CAY162967,"25,000.00",Capital grants - Academy Trust
Department for Education,Core,19/01/2024,Grants Expenditure,Capital Directorate,Guru Nanak Sikh Academy,CAY162968,"117,259.00",Capital grants - Academy Trust
Department for Education,Core,19/01/2024,Grants Expenditure,Capital Directorate,Trinity School,CAY162969,"90,792.00",Capital grants - Academy Trust
Department for Education,Core,19/01/2024,Grants Expenditure,Capital Directorate,Keston Primary School,CAY162970,"81,907.00",Capital grants - Academy Trust
Department for Education,Core,19/01/2024,Grants Expenditure,Capital Directorate,Brockington College,CAY162971,"54,367.00",Capital grants - Academy Trust
Department for Education,Core,19/01/2024,Grants Expenditure,Capital Directorate,Mill Hill County High School,CAY162974,"75,250.00",Capital grants - Academy Trust
Department for Education,Core,19/01/2024,Grants Expenditure,Capital Directorate,Woodlands Primary School,CAY162975,"133,237.00",Capital grants - Academy Trust
Department for Education,Core,19/01/2024,Grants Expenditure,Capital Directorate,Ortu Corringham Primary School And Nursery,CAY162976,"40,724.00",Capital grants - Academy Trust
Department for Education,Core,19/01/2024,Grants Expenditure,Capital Directorate,Shaw Primary Academy,CAY162977,"67,743.00",Capital grants - Academy Trust
Department for Education,Core,19/01/2024,Grants Expenditure,Capital Directorate,Chatham Grammar,CAY162978,"45,451.00",Capital grants - Academy Trust
Department for Education,Core,19/01/2024,Grants Expenditure,Capital Directorate,"Queen Elizabeth'S Grammar School, Horncastle",CAY162979,"75,999.00",Capital grants - Academy Trust
Department for Education,Core,19/01/2024,Grants Expenditure,Capital Directorate,Beechfield School,CAY162980,"199,436.00",Capital grants - Academy Trust
Department for Education,Core,19/01/2024,Grants Expenditure,Capital Directorate,The Oldershaw School,CAY162982,"33,014.00",Capital grants - Academy Trust
Department for Education,Core,19/01/2024,Grants Expenditure,Capital Directorate,Colne Primet Academy,CAY162983,"51,777.00",Capital grants - Academy Trust
Department for Education,Core,19/01/2024,Grants Expenditure,Capital Directorate,Parklands High School,CAY162984,"64,977.00",Capital grants - Academy Trust
Department for Education,Core,19/01/2024,Grants Expenditure,Capital Directorate,Leesons Primary School,CAY162986,"29,846.00",Capital grants - Academy Trust
Department for Education,Core,19/01/2024,Grants Expenditure,Capital Directorate,The Mill Academy,CAY162987,"26,932.00",Capital grants - Academy Trust
Department for Education,Core,19/01/2024,Grants Expenditure,Capital Directorate,Elms Bank,CAY162988,"68,136.00",Capital grants - Academy Trust
Department for Education,Core,19/01/2024,Grants Expenditure,Capital Directorate,Brit School For Performing Arts And Technology (Ct,CAY162989,"108,921.00",Capital grants - Academy Trust
Department for Education,Core,19/01/2024,Grants Expenditure,Capital Directorate,Lees Primary School,CAY162990,"52,463.00",Capital grants - Academy Trust
Department for Education,Core,19/01/2024,Grants Expenditure,Capital Directorate,St Anne'S Catholic School,CAY162991,"321,364.00",Capital grants - Academy Trust
Department for Education,Core,19/01/2024,Grants Expenditure,Capital Directorate,Robert May'S School,CAY162992,"50,006.00",Capital grants - Academy Trust
Department for Education,Core,19/01/2024,Grants Expenditure,Capital Directorate,St Anne'S Catholic School,CAY162993,"53,853.00",Capital grants - Academy Trust
Department for Education,Core,19/01/2024,Grants Expenditure,Capital Directorate,Parmiter'S School,CAY162995,"245,240.00",Capital grants - Academy Trust
Department for Education,Core,19/01/2024,Grants Expenditure,Capital Directorate,The Sutton Academy,CAY162996,"72,000.00",Capital grants - Academy Trust
Department for Education,Core,19/01/2024,Grants Expenditure,Capital Directorate,Rayner Stephens High School,CAY162997,"62,981.00",Capital grants - Academy Trust
Department for Education,Core,19/01/2024,Grants Expenditure,Capital Directorate,St Thomas More Catholic Comprehensive School,CAY162998,"84,807.00",Capital grants - Academy Trust
Department for Education,Core,19/01/2024,Grants Expenditure,Capital Directorate,The Holt School,CAY162999,"51,491.00",Capital grants - Academy Trust
Department for Education,Core,19/01/2024,Grants Expenditure,Capital Directorate,Janet Duke Primary School,CAY163000,"61,864.00",Capital grants - Academy Trust
Department for Education,Core,19/01/2024,Grants Expenditure,Capital Directorate,Uplands Academy,CAY163001,"183,082.00",Capital grants - Academy Trust
Department for Education,Core,19/01/2024,Grants Expenditure,Capital Directorate,Beacon Academy,CAY163002,"307,988.00",Capital grants - Academy Trust
Department for Education,Core,19/01/2024,Grants Expenditure,Capital Directorate,Beacon Academy,CAY163003,"317,580.00",Capital grants - Academy Trust
Department for Education,Core,19/01/2024,Grants Expenditure,Capital Directorate,The Romsey School,CAY163004,"68,207.00",Capital grants - Academy Trust
Department for Education,Core,19/01/2024,Grants Expenditure,Capital Directorate,Parkfield Community School,CAY163005,"60,248.00",Capital grants - Academy Trust
Department for Education,Core,19/01/2024,Grants Expenditure,Capital Directorate,Cams Hill School,CAY163006,"94,797.00",Capital grants - Academy Trust
Department for Education,Core,19/01/2024,Grants Expenditure,Capital Directorate,Alexandra Park School,CAY163007,"157,991.00",Capital grants - Academy Trust
Department for Education,Core,19/01/2024,Grants Expenditure,Capital Directorate,New Mill Junior School,CAY163008,"104,354.00",Capital grants - Academy Trust
Department for Education,Core,19/01/2024,Grants Expenditure,Capital Directorate,Great Berry Primary School,CAY163009,"70,198.00",Capital grants - Academy Trust
Department for Education,Core,19/01/2024,Grants Expenditure,Capital Directorate,Rivington And Blackrod High School,CAY163010,"90,741.00",Capital grants - Academy Trust
Department for Education,Core,19/01/2024,Grants Expenditure,Capital Directorate,Colne Park High School,CAY163011,"53,208.00",Capital grants - Academy Trust
Department for Education,Core,19/01/2024,Grants Expenditure,Capital Directorate,Langley Hall Primary Academy,CAY163012,"44,464.00",Capital grants - Academy Trust
Department for Education,Core,19/01/2024,Grants Expenditure,Capital Directorate,De Vere Primary School,CAY163013,"33,498.00",Capital grants - Academy Trust
Department for Education,Core,19/01/2024,Grants Expenditure,Capital Directorate,St Chad'S Catholic Primary School,CAY163014,"85,964.00",Capital grants - Academy Trust
Department for Education,Core,19/01/2024,Grants Expenditure,Capital Directorate,Alec Reed Academy,CAY163015,"60,215.00",Capital grants - Academy Trust
Department for Education,Core,19/01/2024,Grants Expenditure,Capital Directorate,Fleetdown Primary Academy,CAY163017,"110,624.00",Capital grants - Academy Trust
Department for Education,Core,19/01/2024,Grants Expenditure,Capital Directorate,"Queen Elizabeth'S Grammar School, Horncastle",CAY163018,"59,570.00",Capital grants - Academy Trust
Department for Education,Core,19/01/2024,Grants Expenditure,Capital Directorate,Graveney Primary School,CAY163019,"36,240.00",Capital grants - Academy Trust
Department for Education,Core,19/01/2024,Grants Expenditure,Capital Directorate,The Venn Boulevard Centre,CAY163020,"161,950.00",Capital grants - Academy Trust
Department for Education,Core,19/01/2024,Grants Expenditure,Capital Directorate,Codsall Middle School,CAY163021,"79,157.00",Capital grants - Academy Trust
Department for Education,Core,19/01/2024,Grants Expenditure,Capital Directorate,St Monica Primary School,CAY163022,"63,270.00",Capital grants - Academy Trust
Department for Education,Core,19/01/2024,Grants Expenditure,Capital Directorate,Cottesmore Academy,CAY163023,"53,578.00",Capital grants - Academy Trust
Department for Education,Core,19/01/2024,Grants Expenditure,Capital Directorate,The Blue School,CAY163024,"85,091.00",Capital grants - Academy Trust
Department for Education,Core,19/01/2024,Grants Expenditure,Capital Directorate,Rosedale Primary School,CAY163025,"84,023.00",Capital grants - Academy Trust
Department for Education,Core,19/01/2024,Grants Expenditure,Capital Directorate,Beamont Primary School,CAY163028,"129,536.00",Capital grants - Academy Trust
Department for Education,Core,19/01/2024,Grants Expenditure,Capital Directorate,Wirral Grammar School For Boys,CAY163029,"153,542.00",Capital grants - Academy Trust
Department for Education,Core,19/01/2024,Grants Expenditure,Capital Directorate,Kirkby Woodhouse School,CAY163030,"129,705.00",Capital grants - Academy Trust
Department for Education,Core,19/01/2024,Grants Expenditure,Capital Directorate,Archbishop Cranmer Church Of England Academy,CAY163031,"145,776.00",Capital grants - Academy Trust
Department for Education,Core,19/01/2024,Grants Expenditure,Capital Directorate,Sir Christopher Hatton Academy,CAY163032,"268,987.00",Capital grants - Academy Trust
Department for Education,Core,19/01/2024,Grants Expenditure,Capital Directorate,Benjamin Britten Academy Of Music And Mathematics,CAY163033,"67,913.00",Capital grants - Academy Trust
Department for Education,Core,19/01/2024,Grants Expenditure,Capital Directorate,Dodworth St John The Baptist Cofe Primary Academy,CAY163034,"100,160.00",Capital grants - Academy Trust
Department for Education,Core,19/01/2024,Grants Expenditure,Capital Directorate,The Howard Primary School,CAY163035,"65,603.00",Capital grants - Academy Trust
Department for Education,Core,19/01/2024,Grants Expenditure,Capital Directorate,Altwood Cofe Secondary School,CAY163036,"105,237.00",Capital grants - Academy Trust
Department for Education,Core,19/01/2024,Grants Expenditure,Capital Directorate,Henley-In-Arden School,CAY163037,"122,848.00",Capital grants - Academy Trust
Department for Education,Core,19/01/2024,Grants Expenditure,Capital Directorate,Blackfield Primary School,CAY163038,"79,659.00",Capital grants - Academy Trust
Department for Education,Core,19/01/2024,Grants Expenditure,Capital Directorate,Whitefield Schools,CAY163039,"118,671.00",Capital grants - Academy Trust
Department for Education,Core,19/01/2024,Grants Expenditure,Capital Directorate,The Lincoln Manor Leas Junior School,CAY163040,"64,404.00",Capital grants - Academy Trust
Department for Education,Core,19/01/2024,Grants Expenditure,Capital Directorate,Chew Stoke Church School,CAY163041,"50,597.00",Capital grants - Academy Trust
Department for Education,Core,19/01/2024,Grants Expenditure,Capital Directorate,Alleyne'S Academy,CAY163042,"29,719.00",Capital grants - Academy Trust
Department for Education,Core,19/01/2024,Grants Expenditure,Capital Directorate,Roman Fields Academy,CAY163043,"51,587.00",Capital grants - Academy Trust
Department for Education,Core,19/01/2024,Grants Expenditure,Capital Directorate,St Monica Primary School,CAY163044,"42,783.00",Capital grants - Academy Trust
Department for Education,Core,19/01/2024,Grants Expenditure,Capital Directorate,Whitefield Schools,CAY163045,"95,551.00",Capital grants - Academy Trust
Department for Education,Core,19/01/2024,Grants Expenditure,Capital Directorate,St Patricks Church Of England Primary Academy,CAY163046,"61,188.00",Capital grants - Academy Trust
Department for Education,Core,19/01/2024,Grants Expenditure,Capital Directorate,Woodford Valley Church Of England Aided School,CAY163047,"53,321.00",Capital grants - Academy Trust
Department for Education,Core,19/01/2024,Grants Expenditure,Capital Directorate,St Margaret'S Academy,CAY163048,"111,450.00",Capital grants - Academy Trust
Department for Education,Core,19/01/2024,Grants Expenditure,Capital Directorate,Lent Rise School,CAY163049,"98,535.00",Capital grants - Academy Trust
Department for Education,Core,19/01/2024,Grants Expenditure,Capital Directorate,Fawley Infant School,CAY163050,"53,021.00",Capital grants - Academy Trust
Department for Education,Core,19/01/2024,Grants Expenditure,Capital Directorate,Bengeworth Ce Academy,CAY163051,"69,446.00",Capital grants - Academy Trust
Department for Education,Core,19/01/2024,Grants Expenditure,Capital Directorate,Queens Park Community School,CAY163052,"135,021.00",Capital grants - Academy Trust
Department for Education,Core,19/01/2024,Grants Expenditure,Capital Directorate,Park View School,CAY163053,"133,404.00",Capital grants - Academy Trust
Department for Education,Core,19/01/2024,Grants Expenditure,Capital Directorate,Edith Weston Academy,CAY163054,"70,174.00",Capital grants - Academy Trust
Department for Education,Core,19/01/2024,Grants Expenditure,Capital Directorate,Hoo St Werburgh Primary School And Marlborough Centre,CAY163055,"67,066.00",Capital grants - Academy Trust
Department for Education,Core,19/01/2024,Grants Expenditure,Capital Directorate,Horbury Primary Academy,CAY163056,"103,257.00",Capital grants - Academy Trust
Department for Education,Core,19/01/2024,Grants Expenditure,Capital Directorate,Little Hill Primary,CAY163057,"93,268.00",Capital grants - Academy Trust
Department for Education,Core,19/01/2024,Grants Expenditure,Capital Directorate,James Bateman Middle School,CAY163058,"56,146.00",Capital grants - Academy Trust
Department for Education,Core,19/01/2024,Grants Expenditure,Capital Directorate,Two Rivers Primary School,CAY163059,"44,048.00",Capital grants - Academy Trust
Department for Education,Core,19/01/2024,Grants Expenditure,Capital Directorate,St Nicholas Church Of England First School,CAY163060,"46,899.00",Capital grants - Academy Trust
Department for Education,Core,19/01/2024,Grants Expenditure,Capital Directorate,St Peter'S Cofe Primary School,CAY163061,"32,548.00",Capital grants - Academy Trust
Department for Education,Core,19/01/2024,Grants Expenditure,Capital Directorate,Middlewich High School,CAY163063,"124,884.00",Capital grants - Academy Trust
Department for Education,Core,19/01/2024,Grants Expenditure,Capital Directorate,Lynsted And Norton Primary School,CAY163064,"28,389.00",Capital grants - Academy Trust
Department for Education,Core,19/01/2024,Grants Expenditure,Capital Directorate,Macmillan Academy,CAY163065,"60,435.00",Capital grants - Academy Trust
Department for Education,Core,19/01/2024,Grants Expenditure,Capital Directorate,Nonsuch High School For Girls,CAY163066,"73,249.00",Capital grants - Academy Trust
Department for Education,Core,19/01/2024,Grants Expenditure,Capital Directorate,Beck Primary School,CAY163067,"66,822.00",Capital grants - Academy Trust
Department for Education,Core,19/01/2024,Grants Expenditure,Capital Directorate,Reddish Vale High School,CAY163068,"58,923.00",Capital grants - Academy Trust
Department for Education,Core,19/01/2024,Grants Expenditure,Capital Directorate,Brookburn Community School,CAY163069,"57,892.00",Capital grants - Academy Trust
Department for Education,Core,19/01/2024,Grants Expenditure,Capital Directorate,Brookburn Community School,CAY163070,"47,257.00",Capital grants - Academy Trust
Department for Education,Core,19/01/2024,Grants Expenditure,Capital Directorate,Gorsefield Primary School,CAY163071,"26,737.00",Capital grants - Academy Trust
Department for Education,Core,19/01/2024,Grants Expenditure,Capital Directorate,Barlow Hall Primary School,CAY163072,"97,621.00",Capital grants - Academy Trust
Department for Education,Core,19/01/2024,Grants Expenditure,Capital Directorate,Stebon Primary School,CAY163073,"52,689.00",Capital grants - Academy Trust
Department for Education,Core,19/01/2024,Grants Expenditure,Capital Directorate,Crossacres Primary Academy,CAY163074,"84,148.00",Capital grants - Academy Trust
Department for Education,Core,19/01/2024,Grants Expenditure,Capital Directorate,Wickham Common Primary School,CAY163075,"128,083.00",Capital grants - Academy Trust
Department for Education,Core,19/01/2024,Grants Expenditure,Capital Directorate,The Hollins,CAY163076,"65,990.00",Capital grants - Academy Trust
Department for Education,Core,19/01/2024,Grants Expenditure,Capital Directorate,Colne Park High School,CAY163077,"37,977.00",Capital grants - Academy Trust
Department for Education,Core,19/01/2024,Grants Expenditure,Capital Directorate,Richmond Primary School,CAY163078,"92,215.00",Capital grants - Academy Trust
Department for Education,Core,19/01/2024,Grants Expenditure,Capital Directorate,Exeter House Special School,CAY163079,"41,245.00",Capital grants - Academy Trust
Department for Education,Core,19/01/2024,Grants Expenditure,Capital Directorate,Littlemoor Primary School,CAY163080,"40,307.00",Capital grants - Academy Trust
Department for Education,Core,19/01/2024,Grants Expenditure,Capital Directorate,Kingsway Park High School,CAY163081,"41,686.00",Capital grants - Academy Trust
Department for Education,Core,19/01/2024,Grants Expenditure,Capital Directorate,Chaffinch Brook School,CAY163082,"83,539.00",Capital grants - Academy Trust
Department for Education,Core,19/01/2024,Grants Expenditure,Capital Directorate,Heathside School,CAY163083,"78,072.00",Capital grants - Academy Trust
Department for Education,Core,19/01/2024,Grants Expenditure,Capital Directorate,Oaklands Catholic School,CAY163084,"294,000.00",Capital grants - Academy Trust
Department for Education,Core,19/01/2024,Grants Expenditure,Capital Directorate,Bozeat Community Primary School,CAY163085,"69,924.00",Capital grants - Academy Trust
Department for Education,Core,19/01/2024,Grants Expenditure,Capital Directorate,Newlands Spring Primary And Nursery School,CAY163086,"69,398.00",Capital grants - Academy Trust
Department for Education,Core,19/01/2024,Grants Expenditure,Capital Directorate,Cardinal Newman College,CAY163087,"371,249.00",Capital grants - Academy Trust
Department for Education,Core,19/01/2024,Grants Expenditure,Capital Directorate,Clyst Vale Community College,CAY163088,"29,822.00",Capital grants - Academy Trust
Department for Education,Core,19/01/2024,Grants Expenditure,Capital Directorate,Goffs - Churchgate Academy,CAY163089,"88,442.00",Capital grants - Academy Trust
Department for Education,Core,19/01/2024,Grants Expenditure,Capital Directorate,Kesgrave High School,CAY163090,"46,696.00",Capital grants - Academy Trust
Department for Education,Core,19/01/2024,Grants Expenditure,Capital Directorate,The Oaktree School,CAY163091,"154,319.00",Capital grants - Academy Trust
Department for Education,Core,19/01/2024,Grants Expenditure,Capital Directorate,The Academy Of Central Bedfordshire,CAY163092,"77,245.00",Capital grants - Academy Trust
Department for Education,Core,19/01/2024,Grants Expenditure,Capital Directorate,The Wickford Church Of England School,CAY163093,"69,556.00",Capital grants - Academy Trust
Department for Education,Core,19/01/2024,Grants Expenditure,Capital Directorate,Springhill Catholic Primary School,CAY163095,"82,624.00",Capital grants - Academy Trust
Department for Education,Core,19/01/2024,Grants Expenditure,Capital Directorate,Hodge Hill Primary School,CAY163097,"46,428.00",Capital grants - Academy Trust
Department for Education,Core,19/01/2024,Grants Expenditure,Capital Directorate,Bishop Vesey'S Grammar School,CAY163098,"94,118.00",Capital grants - Academy Trust
Department for Education,Core,19/01/2024,Grants Expenditure,Capital Directorate,Stanley Park Infants School,CAY163099,"172,950.00",Capital grants - Academy Trust
Department for Education,Core,19/01/2024,Grants Expenditure,Capital Directorate,Thomas Alleyne'S High School,CAY163100,"48,203.00",Capital grants - Academy Trust
Department for Education,Core,19/01/2024,Grants Expenditure,Capital Directorate,Brayton Academy,CAY163101,"62,347.00",Capital grants - Academy Trust
Department for Education,Core,19/01/2024,Grants Expenditure,Capital Directorate,Southborough High School,CAY163102,"69,234.00",Capital grants - Academy Trust
Department for Education,Core,19/01/2024,Grants Expenditure,Capital Directorate,Simon Balle All-Through School,CAY163103,"100,164.00",Capital grants - Academy Trust
Department for Education,Core,19/01/2024,Grants Expenditure,Capital Directorate,Borden Grammar School,CAY163104,"129,783.00",Capital grants - Academy Trust
Department for Education,Core,19/01/2024,Grants Expenditure,Capital Directorate,Biggleswade Academy,CAY163105,"560,000.00",Capital grants - Academy Trust
Department for Education,Core,19/01/2024,Grants Expenditure,Capital Directorate,Werrington Primary School,CAY163106,"209,920.00",Capital grants - Academy Trust
Department for Education,Core,19/01/2024,Grants Expenditure,Capital Directorate,St Michael'S Church Of England Primary School,CAY163107,"53,422.00",Capital grants - Academy Trust
Department for Education,Core,19/01/2024,Grants Expenditure,Capital Directorate,Deanshanger Primary School,CAY163108,"134,253.00",Capital grants - Academy Trust
Department for Education,Core,19/01/2024,Grants Expenditure,Capital Directorate,Gunthorpe Primary School,CAY163109,"63,415.00",Capital grants - Academy Trust
Department for Education,Core,19/01/2024,Grants Expenditure,Capital Directorate,Thamesmead School,CAY163110,"249,164.00",Capital grants - Academy Trust
Department for Education,Core,19/01/2024,Grants Expenditure,Capital Directorate,Barton Court Grammar School,CAY163111,"287,924.00",Capital grants - Academy Trust
Department for Education,Core,19/01/2024,Grants Expenditure,Capital Directorate,Houndsfield Primary School,CAY163112,"49,467.00",Capital grants - Academy Trust
Department for Education,Core,19/01/2024,Grants Expenditure,Capital Directorate,Wigston College,CAY163113,"55,897.00",Capital grants - Academy Trust
Department for Education,Core,19/01/2024,Grants Expenditure,Capital Directorate,Beecholme Primary School,CAY163115,"74,163.00",Capital grants - Academy Trust
Department for Education,Core,19/01/2024,Grants Expenditure,Capital Directorate,Stannington Infant School,CAY163116,"51,822.00",Capital grants - Academy Trust
Department for Education,Core,19/01/2024,Grants Expenditure,Capital Directorate,Abbey Primary School,CAY163117,"237,497.00",Capital grants - Academy Trust
Department for Education,Core,19/01/2024,Grants Expenditure,Capital Directorate,Glenthorne High School,CAY163118,"46,259.00",Capital grants - Academy Trust
Department for Education,Core,19/01/2024,Grants Expenditure,Capital Directorate,Royal Grammar School High Wycombe,CAY163119,"26,584.00",Capital grants - Academy Trust
Department for Education,Core,19/01/2024,Grants Expenditure,Capital Directorate,Thurstable School Sports College And Sixth Form Centre,CAY163120,"85,481.00",Capital grants - Academy Trust
Department for Education,Core,19/01/2024,Grants Expenditure,Capital Directorate,Mount Grace School,CAY163121,"73,035.00",Capital grants - Academy Trust
Department for Education,Core,19/01/2024,Grants Expenditure,Capital Directorate,Kendrick School,CAY163122,"68,986.00",Capital grants - Academy Trust
Department for Education,Core,19/01/2024,Grants Expenditure,Capital Directorate,Langley Grammar School,CAY163123,"96,537.00",Capital grants - Academy Trust
Department for Education,Core,19/01/2024,Grants Expenditure,Capital Directorate,Beal High School,CAY163124,"46,623.00",Capital grants - Academy Trust
Department for Education,Core,19/01/2024,Grants Expenditure,Capital Directorate,New Mill Infant School,CAY163125,"65,530.00",Capital grants - Academy Trust
Department for Education,Core,19/01/2024,Grants Expenditure,Capital Directorate,Fairlands Primary School,CAY163126,"75,000.00",Capital grants - Academy Trust
Department for Education,Core,19/01/2024,Grants Expenditure,Capital Directorate,Northborough Primary School,CAY163127,"57,516.00",Capital grants - Academy Trust
Department for Education,Core,19/01/2024,Grants Expenditure,Capital Directorate,Foxborough Primary School,CAY163128,"78,733.00",Capital grants - Academy Trust
Department for Education,Core,19/01/2024,Grants Expenditure,Capital Directorate,Knightsfield School,CAY163129,"38,356.00",Capital grants - Academy Trust
Department for Education,Core,19/01/2024,Grants Expenditure,Capital Directorate,Gunthorpe Primary School,CAY163130,"70,651.00",Capital grants - Academy Trust
Department for Education,Core,19/01/2024,Grants Expenditure,Capital Directorate,Beechview Academy,CAY163131,"146,456.00",Capital grants - Academy Trust
Department for Education,Core,19/01/2024,Grants Expenditure,Capital Directorate,Springfield Junior School,CAY163132,"49,299.00",Capital grants - Academy Trust
Department for Education,Core,19/01/2024,Grants Expenditure,Capital Directorate,Whitelands Park Primary School,CAY163133,"75,504.00",Capital grants - Academy Trust
Department for Education,Core,19/01/2024,Grants Expenditure,Capital Directorate,Trevelyan Middle School,CAY163134,"84,323.00",Capital grants - Academy Trust
Department for Education,Core,19/01/2024,Grants Expenditure,Capital Directorate,St. James The Great R.C. Primary And Nursery School,CAY163135,"80,230.00",Capital grants - Academy Trust
Department for Education,Core,19/01/2024,Grants Expenditure,Capital Directorate,St Albans Girls' School,CAY163136,"116,743.00",Capital grants - Academy Trust
Department for Education,Core,19/01/2024,Grants Expenditure,Capital Directorate,Lode Heath School,CAY163137,"124,698.00",Capital grants - Academy Trust
Department for Education,Core,19/01/2024,Grants Expenditure,Capital Directorate,Henley-In-Arden School,CAY163138,"90,284.00",Capital grants - Academy Trust
Department for Education,Core,19/01/2024,Grants Expenditure,Capital Directorate,Queen'S Park High School,CAY163139,"97,335.00",Capital grants - Academy Trust
Department for Education,Core,19/01/2024,Grants Expenditure,Capital Directorate,The Belvedere Academy,CAY163140,"251,055.00",Capital grants - Academy Trust
Department for Education,Core,19/01/2024,Grants Expenditure,Capital Directorate,Furze Platt Senior School,CAY163141,"88,349.00",Capital grants - Academy Trust
Department for Education,Core,19/01/2024,Grants Expenditure,Capital Directorate,Hedingham School And Sixth Form,CAY163143,"220,096.00",Capital grants - Academy Trust
Department for Education,Core,19/01/2024,Grants Expenditure,Capital Directorate,St Winefride'S Rc Primary School,CAY163144,"67,877.00",Capital grants - Academy Trust
Department for Education,Core,19/01/2024,Grants Expenditure,Capital Directorate,The Cotswold Academy,CAY163145,"72,772.00",Capital grants - Academy Trust
Department for Education,Core,19/01/2024,Grants Expenditure,Capital Directorate,Set Beccles School,CAY163147,"49,900.00",Capital grants - Academy Trust
Department for Education,Core,19/01/2024,Grants Expenditure,Capital Directorate,Blenheim High School,CAY163148,"165,314.00",Capital grants - Academy Trust
Department for Education,Core,19/01/2024,Grants Expenditure,Capital Directorate,Tugby Church Of England Primary School,CAY163149,"73,541.00",Capital grants - Academy Trust
Department for Education,Core,19/01/2024,Grants Expenditure,Capital Directorate,Finchingfield St John The Baptist Cofe Primary Academy,CAY163150,"45,344.00",Capital grants - Academy Trust
Department for Education,Core,19/01/2024,Grants Expenditure,Capital Directorate,Reddish Vale High School,CAY163151,"69,662.00",Capital grants - Academy Trust
Department for Education,Core,19/01/2024,Grants Expenditure,Capital Directorate,Launde Primary School,CAY163152,"141,184.00",Capital grants - Academy Trust
Department for Education,Core,19/01/2024,Grants Expenditure,Capital Directorate,Sharples School,CAY163153,"145,966.00",Capital grants - Academy Trust
Department for Education,Core,19/01/2024,Grants Expenditure,Capital Directorate,St Joseph'S Rc Primary School,CAY163154,"73,054.00",Capital grants - Academy Trust
Department for Education,Core,19/01/2024,Grants Expenditure,Capital Directorate,Oaklands Primary Academy,CAY163155,"76,393.00",Capital grants - Academy Trust
Department for Education,Core,19/01/2024,Grants Expenditure,Capital Directorate,The Charles Dickens School,CAY163158,"111,654.00",Capital grants - Academy Trust
Department for Education,Core,19/01/2024,Grants Expenditure,Capital Directorate,Albert Village Primary School,CAY163160,"56,025.00",Capital grants - Academy Trust
Department for Education,Core,19/01/2024,Grants Expenditure,Capital Directorate,Lutterworth College,CAY163161,"49,350.00",Capital grants - Academy Trust
Department for Education,Core,19/01/2024,Grants Expenditure,Capital Directorate,Cobden Primary School And Community Centre,CAY163162,"67,538.00",Capital grants - Academy Trust
Department for Education,Core,19/01/2024,Grants Expenditure,Capital Directorate,The Ashcombe School,CAY163163,"223,062.00",Capital grants - Academy Trust
Department for Education,Core,19/01/2024,Grants Expenditure,Capital Directorate,Kingsbury High School,CAY163164,"29,711.00",Capital grants - Academy Trust
Department for Education,Core,19/01/2024,Grants Expenditure,Capital Directorate,Blue Coat Church Of England Academy,CAY163166,"41,255.00",Capital grants - Academy Trust
Department for Education,Core,19/01/2024,Grants Expenditure,Capital Directorate,St Bartholomew'S Church Of England Primary School,CAY163167,"26,823.00",Capital grants - Academy Trust
Department for Education,Core,19/01/2024,Grants Expenditure,Capital Directorate,Parkfield Primary School,CAY163168,"25,752.00",Capital grants - Academy Trust
Department for Education,Core,19/01/2024,Grants Expenditure,Capital Directorate,De Aston School,CAY163169,"65,070.00",Capital grants - Academy Trust
Department for Education,Core,19/01/2024,Grants Expenditure,Capital Directorate,Mayville Primary School,CAY163170,"92,627.00",Capital grants - Academy Trust
Department for Education,Core,19/01/2024,Grants Expenditure,Capital Directorate,Borden Grammar School,CAY163171,"50,239.00",Capital grants - Academy Trust
Department for Education,Core,19/01/2024,Grants Expenditure,Capital Directorate,Fulston Manor School,CAY163172,"44,300.00",Capital grants - Academy Trust
Department for Education,Core,19/01/2024,Grants Expenditure,Capital Directorate,Oakwood Park Grammar School,CAY163173,"60,179.00",Capital grants - Academy Trust
Department for Education,Core,19/01/2024,Grants Expenditure,Capital Directorate,Christ Church Chorleywood Cofe School,CAY163174,"90,000.00",Capital grants - Academy Trust
Department for Education,Core,19/01/2024,Grants Expenditure,Capital Directorate,Homewood School And Sixth Form Centre,CAY163175,"87,593.00",Capital grants - Academy Trust
Department for Education,Core,19/01/2024,Grants Expenditure,Capital Directorate,The King John School,CAY163176,"68,939.00",Capital grants - Academy Trust
Department for Education,Core,19/01/2024,Grants Expenditure,Capital Directorate,The Sele School,CAY163177,"76,163.00",Capital grants - Academy Trust
Department for Education,Core,19/01/2024,Grants Expenditure,Capital Directorate,Thornden School,CAY163178,"118,635.00",Capital grants - Academy Trust
Department for Education,Core,19/01/2024,Grants Expenditure,Capital Directorate,Mid Essex Co-Operative Academy,CAY163179,"96,348.00",Capital grants - Academy Trust
Department for Education,Core,19/01/2024,Grants Expenditure,Capital Directorate,Watton Junior School,CAY163180,"59,071.00",Capital grants - Academy Trust
Department for Education,Core,19/01/2024,Grants Expenditure,Capital Directorate,Carlton Le Willows Academy,CAY163181,"70,106.00",Capital grants - Academy Trust
Department for Education,Core,19/01/2024,Grants Expenditure,Capital Directorate,The Harbour School,CAY163182,"81,507.00",Capital grants - Academy Trust
Department for Education,Core,19/01/2024,Grants Expenditure,Capital Directorate,Drapers' Brookside Junior School,CAY163183,"86,102.00",Capital grants - Academy Trust
Department for Education,Core,19/01/2024,Grants Expenditure,Capital Directorate,Bishops Cleeve Primary Academy,CAY163184,"56,910.00",Capital grants - Academy Trust
Department for Education,Core,19/01/2024,Grants Expenditure,Capital Directorate,The Crossley Heath School,CAY163185,"161,158.00",Capital grants - Academy Trust
Department for Education,Core,19/01/2024,Grants Expenditure,Capital Directorate,Bexton Primary School,CAY163186,"52,964.00",Capital grants - Academy Trust
Department for Education,Core,19/01/2024,Grants Expenditure,Capital Directorate,Westfield Academy,CAY163187,"107,421.00",Capital grants - Academy Trust
Department for Education,Core,19/01/2024,Grants Expenditure,Capital Directorate,Cams Hill School,CAY163188,"97,712.00",Capital grants - Academy Trust
Department for Education,Core,19/01/2024,Grants Expenditure,Capital Directorate,Walkwood Church Of England Middle School,CAY163190,"104,160.00",Capital grants - Academy Trust
Department for Education,Core,19/01/2024,Grants Expenditure,Capital Directorate,Anglo European School,CAY163191,"28,271.00",Capital grants - Academy Trust
Department for Education,Core,19/01/2024,Grants Expenditure,Capital Directorate,Sandbach School,CAY163192,"199,449.00",Capital grants - Academy Trust
Department for Education,Core,24/01/2024,Grants Expenditure,Capital Directorate,Wernick Hire Limited,D-PINV062057,"31,020.00",Capital grants - Academy Trust
Department for Education,Core,19/01/2024,Grants Expenditure,Capital Directorate,Queen Mary'S High School,CAY162830,"113,773.38",Capital grants - Academy Trust
Department for Education,Core,26/01/2024,Grants Expenditure,Capital Directorate,Tilbury Douglas Construction Limited,D-PINV062293,"913,075.84",Capital grants - Academy Trust
Department for Education,Core,19/01/2024,Grants Expenditure,Capital Directorate,The Roseland Multi Academy Trust,CAY162793,"570,892.70",Capital grants - Academy Trust
Department for Education,Core,19/01/2024,Grants Expenditure,Capital Directorate,Greenshaw Learning Trust,CAY162794,"201,835.00",Capital grants - Academy Trust
Department for Education,Core,19/01/2024,Grants Expenditure,Capital Directorate,Oasis Community Learning,CAY162808,"-160,000.00",Capital grants - Academy Trust
Department for Education,Core,19/01/2024,Grants Expenditure,Capital Directorate,Oasis Community Learning,CAY162807,"150,000.00",Capital grants - Academy Trust
Department for Education,Core,19/01/2024,Grants Expenditure,Capital Directorate,Oasis Community Learning,CAY162806,"160,000.00",Capital grants - Academy Trust
Department for Education,Core,19/01/2024,Grants Expenditure,Capital Directorate,Excelsior Multi Academy Trust,CAY162818,"98,748.00",Capital grants - Academy Trust
Department for Education,Core,19/01/2024,Grants Expenditure,Capital Directorate,Reach South Academy Trust,CAY162822,"409,896.89",Capital grants - Academy Trust
Department for Education,Core,19/01/2024,Grants Expenditure,Capital Directorate,Three Spires Trust,CAY162826,"290,000.00",Capital grants - Academy Trust
Department for Education,Core,19/01/2024,Grants Expenditure,Capital Directorate,St Joseph Catholic Multi Academy Trust,CAY162827,"401,265.00",Capital grants - Academy Trust
Department for Education,Core,19/01/2024,Grants Expenditure,Capital Directorate,Qed Academy Trust,CAY162829,"151,254.00",Capital grants - Academy Trust
Department for Education,Core,19/01/2024,Grants Expenditure,Capital Directorate,Dixons Academies Trust,CAY162875,"164,301.00",Capital grants - Academy Trust
Department for Education,Core,19/01/2024,Grants Expenditure,Capital Directorate,Bridge Academy Trust,CAY162900,"79,806.75",Capital grants - Academy Trust
Department for Education,Core,19/01/2024,Grants Expenditure,Capital Directorate,St Joseph Catholic Multi Academy Trust,CAY162901,"91,279.00",Capital grants - Academy Trust
Department for Education,Core,19/01/2024,Grants Expenditure,Capital Directorate,St Joseph Catholic Multi Academy Trust,CAY162902,"198,042.00",Capital grants - Academy Trust
Department for Education,Core,19/01/2024,Grants Expenditure,Capital Directorate,St Joseph Catholic Multi Academy Trust,CAY162903,"189,897.00",Capital grants - Academy Trust
Department for Education,Core,19/01/2024,Grants Expenditure,Capital Directorate,Ormiston Academies Trust,CAY162919,"305,000.00",Capital grants - Academy Trust
Department for Education,Core,19/01/2024,Grants Expenditure,Capital Directorate,Outwood Grange Academies Trust,CAY162920,"361,000.00",Capital grants - Academy Trust
Department for Education,Core,19/01/2024,Grants Expenditure,Capital Directorate,Outwood Grange Academies Trust,CAY162921,"80,000.00",Capital grants - Academy Trust
Department for Education,Core,12/01/2024,Grants Expenditure,Curriculum and General Qualifications,Department For Culture Media And Sport,CORE-MAIN-049194,"1,005,630.00",Current grants
Department for Education,Core,16/01/2024,Grants Expenditure,Curriculum and General Qualifications,Department For Culture Media And Sport,CORE-MAIN-051832,"1,005,630.00",Current grants
Department for Education,Core,12/01/2024,Grants Expenditure,Curriculum and General Qualifications,Department For Culture Media And Sport,CUPS0075606,"-1,005,630.00",Current grants
Department for Education,Core,12/01/2024,Grants Expenditure,Curriculum and General Qualifications,Department For Culture Media And Sport,CUPS0075607,"-19,753,913.50",Current grants
Department for Education,Core,22/01/2024,Other Goods and Services,Curriculum and General Qualifications,Ucl Consultants Ltd,CORE-PINV-071471,"299,960.70",Professional Services - Education Services
Department for Education,Core,22/01/2024,Other Goods and Services,Curriculum and General Qualifications,Ucl Consultants Ltd,CORE-PINV-071470,"488,417.05",Professional Services - Education Services
Department for Education,Core,12/01/2024,Other Goods and Services,Curriculum and General Qualifications,The Full English Education Ltd,CORE-PINV-070969,"58,660.00",Professional Services - Education Services
Department for Education,Core,12/01/2024,Grants Expenditure,Curriculum and General Qualifications,All Souls Ce Primary School,CORE-MAIN-051833,"201,980.00",Current grants - Local Government
Department for Education,Core,12/01/2024,Grants Expenditure,Curriculum and General Qualifications,Burley And Woodhead Ce Primary School,CORE-MAIN-051834,"135,321.00",Current grants - Local Government
Department for Education,Core,12/01/2024,Grants Expenditure,Curriculum and General Qualifications,Childer Thornton Primary School,CORE-MAIN-051835,"197,984.98",Current grants - Academy Trust
Department for Education,Core,12/01/2024,Grants Expenditure,Curriculum and General Qualifications,Westclyst Community Primary School,CORE-MAIN-051836,"201,980.00",Current grants - Academy Trust
Department for Education,Core,12/01/2024,Grants Expenditure,Curriculum and General Qualifications,Flying High Trust,CORE-MAIN-051837,"188,743.90",Current grants - Academy Trust
Department for Education,Core,12/01/2024,Grants Expenditure,Curriculum and General Qualifications,Ilsham Church Of England Academy,CORE-MAIN-051838,"190,090.68",Current grants - Academy Trust
Department for Education,Core,12/01/2024,Grants Expenditure,Curriculum and General Qualifications,Jerry Clay Academy,CORE-MAIN-051839,"178,902.73",Current grants - Academy Trust
Department for Education,Core,12/01/2024,Grants Expenditure,Curriculum and General Qualifications,Trenance Learning Academy,CORE-MAIN-051840,"160,076.17",Current grants - Academy Trust
Department for Education,Core,12/01/2024,Grants Expenditure,Curriculum and General Qualifications,Kingsnorth Church Of England Primary School,CORE-MAIN-051841,"206,589.13",Current grants - Academy Trust
Department for Education,Core,12/01/2024,Grants Expenditure,Curriculum and General Qualifications,Lacey Green Primary Academy,CORE-MAIN-051842,"201,980.00",Current grants - Academy Trust
Department for Education,Core,12/01/2024,Grants Expenditure,Curriculum and General Qualifications,Whiston Worrygoose Junior And Infant School,CORE-MAIN-051843,"166,432.99",Current grants - Academy Trust
Department for Education,Core,12/01/2024,Grants Expenditure,Curriculum and General Qualifications,Little Sutton Primary School,CORE-MAIN-051844,"202,493.02",Current grants - Local Government
Department for Education,Core,12/01/2024,Grants Expenditure,Curriculum and General Qualifications,Myland Primary School,CORE-MAIN-051845,"177,037.05",Current grants - Local Government
Department for Education,Core,12/01/2024,Grants Expenditure,Curriculum and General Qualifications,New Vision Trust,CORE-MAIN-051846,"171,897.69",Current grants - Academy Trust
Department for Education,Core,12/01/2024,Grants Expenditure,Curriculum and General Qualifications,New Wave Federation,CORE-MAIN-051847,"192,153.19",Current grants - Private Sector
Department for Education,Core,12/01/2024,Grants Expenditure,Curriculum and General Qualifications,Outwood Grange Services Ltd,CORE-MAIN-051848,"157,896.07",Current grants - Private Sector
Department for Education,Core,12/01/2024,Grants Expenditure,Curriculum and General Qualifications,Ramsbury English Hub,CORE-MAIN-051849,"209,325.40",Current grants - Local Government
Department for Education,Core,12/01/2024,Grants Expenditure,Curriculum and General Qualifications,Roade Primary School,CORE-MAIN-051850,"178,851.27",Current grants - Local Government
Department for Education,Core,12/01/2024,Grants Expenditure,Curriculum and General Qualifications,The St John Bosco Catholic Academy,CORE-MAIN-051851,"171,756.91",Current grants - Academy Trust
Department for Education,Core,12/01/2024,Grants Expenditure,Curriculum and General Qualifications,Blackpool Borough Council,CORE-MAIN-051852,"183,411.10",Current grants - Local Government
Department for Education,Core,12/01/2024,Grants Expenditure,Curriculum and General Qualifications,St Wilfrid'S English Hub,CORE-MAIN-051853,"181,220.65",Current grants - Private Sector
Department for Education,Core,12/01/2024,Grants Expenditure,Curriculum and General Qualifications,The Greetland Academy,CORE-MAIN-051854,"177,968.76",Current grants - Academy Trust
Department for Education,Core,12/01/2024,Grants Expenditure,Curriculum and General Qualifications,Lighthouse Schools Partnership St Peters Teaching School,CORE-MAIN-051855,"164,094.90",Current grants - Academy Trust
Department for Education,Core,12/01/2024,Grants Expenditure,Curriculum and General Qualifications,Wandle Teaching School Alliance,CORE-MAIN-051856,"185,862.14",Current grants - Private Sector
Department for Education,Core,12/01/2024,Grants Expenditure,Curriculum and General Qualifications,Westgarth Primary School,CORE-MAIN-051857,"201,245.78",Current grants - Academy Trust
Department for Education,Core,12/01/2024,Grants Expenditure,Curriculum and General Qualifications,Witham St Hughs Academy,CORE-MAIN-051858,"202,650.00",Current grants - Academy Trust
Department for Education,Core,12/01/2024,Grants Expenditure,Curriculum and General Qualifications,Yorkshire Endeavour Academy Trust,CORE-MAIN-051859,"183,051.60",Current grants - Academy Trust
Department for Education,Core,12/01/2024,Grants Expenditure,Curriculum and General Qualifications,Whiteknights Primary School,CORE-MAIN-051866,"186,124.40",Current grants - Academy Trust
Department for Education,Core,12/01/2024,Grants Expenditure,Curriculum and General Qualifications,Cumberland Council,CORE-MAIN-051868,"122,772.97",Current grants - Local Government
Department for Education,Core,12/01/2024,Grants Expenditure,Curriculum and General Qualifications,Mangotsfield Cofe Primary School,CORE-MAIN-051869,"65,300.51",Current grants - Academy Trust
Department for Education,Core,16/01/2024,Grants Expenditure,Curriculum and General Qualifications,Department For Culture Media And Sport,CORE-MAIN-051831,"19,780,680.00",Current grants
Department for Education,Core,12/01/2024,Grants Expenditure,Curriculum and General Qualifications,The Yehudi Menuhin School,CORE-MAIN-051860,"646,836.00",Current grants - Private Sector
Department for Education,Core,12/01/2024,Grants Expenditure,Curriculum and General Qualifications,The Hammond School Limited,CORE-MAIN-051863,"448,886.94",Current grants - Private Sector
Department for Education,Core,12/01/2024,Grants Expenditure,Curriculum and General Qualifications,Yorkshire Young Musicians,CORE-MAIN-051864,"83,058.00",Current grants - Private Sector
Department for Education,Core,12/01/2024,Grants Expenditure,Curriculum and General Qualifications,Chetham'S School Of Music,CORE-MAIN-051865,"2,204,154.30",Current grants - Private Sector
Department for Education,Core,12/01/2024,Grants Expenditure,Curriculum and General Qualifications,Tring Park School For The Performing Arts,CORE-MAIN-051867,"425,422.20",Current grants - Private Sector
Department for Education,Core,31/01/2024,Grants Expenditure,Curriculum and General Qualifications,Dance East,CORE-MAIN-051952,"65,541.30",Current grants - Private Sector
Department for Education,Core,31/01/2024,Grants Expenditure,Curriculum and General Qualifications,The Purcell School,CORE-MAIN-051953,"1,218,643.20",Current grants - Private Sector
Department for Education,Core,31/01/2024,Grants Expenditure,Curriculum and General Qualifications,Swindon Dance,CORE-MAIN-051954,"76,805.70",Current grants - Private Sector
Department for Education,Core,31/01/2024,Grants Expenditure,Curriculum and General Qualifications,South West Music School,CORE-MAIN-051955,"69,317.10",Current grants - Private Sector
Department for Education,Core,31/01/2024,Grants Expenditure,Curriculum and General Qualifications,Royal Birmingham Conservatoire,CORE-MAIN-051956,"45,990.00",Current grants - Private Sector
Department for Education,Core,31/01/2024,Grants Expenditure,Curriculum and General Qualifications,Northern School Of Contemporary Dance,CORE-MAIN-051957,"99,083.60",Current grants - Private Sector
Department for Education,Core,31/01/2024,Grants Expenditure,Curriculum and General Qualifications,Royal Ballet School,CORE-MAIN-051958,"947,356.45",Current grants - Private Sector
Department for Education,Core,31/01/2024,Grants Expenditure,Curriculum and General Qualifications,Wells Cathedral School,CORE-MAIN-051959,"577,538.10",Current grants - Private Sector
Department for Education,Core,31/01/2024,Grants Expenditure,Curriculum and General Qualifications,Aldeburgh Young Musicians,CORE-MAIN-051960,"40,730.74",Current grants - Private Sector
Department for Education,Core,31/01/2024,Grants Expenditure,Curriculum and General Qualifications,Elmhurst Ballet School Trust,CORE-MAIN-051961,"722,964.00",Current grants - Private Sector
Department for Education,Core,08/01/2024,Other Goods and Services,Teaching Workforce: Teachers and Tutors Directorate (TAT),Tribal Education Limited,CORE-PINV-070779,"88,681.00",Professional Services
Department for Education,Core,12/01/2024,Other Goods and Services,Teaching Workforce: Teachers and Tutors Directorate (TAT),Cognition Education,CORE-PINV-070895,"179,870.00",Professional Services
Department for Education,Core,12/01/2024,Other Goods and Services,Teaching Workforce: Teachers and Tutors Directorate (TAT),Arvato Limited,CORE-PINV-070964,"46,197.91",Professional Services
Department for Education,Core,25/01/2024,Other Goods and Services,Teaching Workforce: Teachers and Tutors Directorate (TAT),Arvato Limited,CORE-PINV-071415,"36,777.35",Professional Services
Department for Education,Core,26/01/2024,Other Goods and Services,Curriculum and General Qualifications,Stem Learning Ltd,CORE-PINV-071719,"475,404.34",Professional Services - Education Services
Department for Education,Core,31/01/2024,Grants Expenditure,Curriculum and General Qualifications,Ashton On Mersey School Ts,CORE-MAIN-051586,"149,187.00",Current grants - Academy Trust
Department for Education,Core,26/01/2024,Other Goods and Services,Curriculum and General Qualifications,Stem Learning Ltd,CORE-PINV-071772,"150,588.24",Professional Services - Education Services
Department for Education,Core,26/01/2024,Other Goods and Services,Curriculum and General Qualifications,Stem Learning Ltd,CORE-PINV-071763,"64,495.00",Professional Services - Education Services
Department for Education,Core,26/01/2024,Other Goods and Services,Curriculum and General Qualifications,Stem Learning Ltd,CORE-PINV-071770,"240,000.00",Professional Services - Education Services
Department for Education,Core,26/01/2024,Other Goods and Services,Curriculum and General Qualifications,Stem Learning Ltd,CORE-PINV-071764,"93,098.69",Professional Services - Education Services
Department for Education,Core,26/01/2024,Other Goods and Services,Curriculum and General Qualifications,Stem Learning Ltd,CORE-PINV-071765,"67,225.34",Professional Services - Education Services
Department for Education,Core,12/01/2024,Grants Expenditure,Curriculum and General Qualifications,Stem Learning Ltd,CORE-MAIN-051872,"33,885.00",Current grants - Private Sector
Department for Education,Core,31/01/2024,Grants Expenditure,Children's Social Care - Safeguarding and Workforce,North Yorkshire County Council,CORE-MAIN-051964,"37,732.69",Current grants - Local Government
Department for Education,Core,04/01/2024,Other Goods and Services,Children's Social Care - Safeguarding and Workforce,The Frontline Organisation,CORE-PINV-070326,"309,866.00",Professional Services - Education Services
Department for Education,Core,04/01/2024,Other Goods and Services,Children's Social Care - Safeguarding and Workforce,The Frontline Organisation,CORE-PINV-070325,"756,109.49",Professional Services - Education Services
Department for Education,Core,04/01/2024,Grants,Children's Social Care - Safeguarding and Workforce,The Frontline Organisation,CORE-PINV-070235,"190,000.00",Professional Services - Grants and Awards
Department for Education,Core,10/01/2024,Grants,Children's Social Care - Safeguarding and Workforce,Skills For Care Ltd,CORE-PINV-070794,"35,462.50",Professional Services - Grants and Awards
Department for Education,Core,12/01/2024,Other Goods and Services,Children's Social Care - Safeguarding and Workforce,Talent International (Uk) Ltd,CORE-PINV-070940,"81,810.00",Professional Services
Department for Education,Core,12/01/2024,Other Goods and Services,Children's Social Care - Safeguarding and Workforce,Talent International (Uk) Ltd,CORE-PINV-070941,"41,607.60",Professional Services
Department for Education,Core,16/01/2024,Other Goods and Services,Children's Social Care - Safeguarding and Workforce,Vsc Plus Limited,CORE-PINV-070948,"46,109.21",Professional Services - Education Services
Department for Education,Core,18/01/2024,Other Goods and Services,Children's Social Care - Safeguarding and Workforce,Farsight Consulting Limited,CORE-PINV-071256,"35,016.00",Professional Services
Department for Education,Core,18/01/2024,Other Goods and Services,Children's Social Care - Safeguarding and Workforce,Farsight Consulting Limited,CORE-PINV-071258,"40,578.00",Professional Services
Department for Education,Core,31/01/2024,Grants Expenditure,Children's Social Care - Safeguarding and Workforce,Skills For Care Ltd,CORE-MAIN-051965,"418,000.00",Current grants - Private Sector
Department for Education,Core,04/01/2024,Grants Expenditure,Children's Social Care - Safeguarding and Workforce,The Frontline Organisation,CORE-PINV-070328,"623,568.00",Current grants - Private Sector
Department for Education,Core,12/01/2024,Grants Expenditure,Children's Social Care - Safeguarding and Workforce,Greenwich London Borough Council,CORE-MAIN-051873,"48,000.00",Current grants - Local Government
Department for Education,Core,12/01/2024,Grants Expenditure,Children's Social Care - Safeguarding and Workforce,Wirral Metro Borough Council,CORE-MAIN-051874,"48,000.00",Current grants - Local Government
Department for Education,Core,12/01/2024,Grants Expenditure,Children's Social Care - Safeguarding and Workforce,Salford City Council,CORE-MAIN-051875,"48,000.00",Current grants - Local Government
Department for Education,Core,31/01/2024,Grants Expenditure,Children's Social Care - Safeguarding and Workforce,Hammersmith And Fulham London Borough Council,CORE-MAIN-051966,"48,000.00",Current grants - Local Government
Department for Education,Core,19/01/2024,Consultancy,Children's Social Care - Strategy and Care System,Teneo Financial Advisory Limited,CORE-PINV-068552,"328,767.50",Consultancy - Strategy
Department for Education,Core,19/01/2024,Consultancy,Children's Social Care - Strategy and Care System,Teneo Financial Advisory Limited,CORE-PINV-069138,"290,000.00",Consultancy - Strategy
Department for Education,Core,04/01/2024,Other Goods and Services,Children's Social Care - Strategy and Care System,Faithful And Gould,CORE-PINV-069791,"25,052.25",Professional Services
Department for Education,Core,19/01/2024,Other Goods and Services,Children's Social Care - Strategy and Care System,National Childrens Bureau,CORE-PINV-070724,"22,455.12",Professional Services
Department for Education,Core,19/01/2024,Other Goods and Services,Children's Social Care - Strategy and Care System,Faithful And Gould,CORE-PINV-070999,"22,456.00",Professional Services
Department for Education,Core,29/01/2024,Consultancy,Children's Social Care - Strategy and Care System,31Ten Consulting Ltd,CORE-PINV-071723,"72,000.00",Consultancy - Organisation and Change
Department for Education,Core,04/01/2024,Grants Expenditure,Children's Social Care - Strategy and Care System,Kent County Council,CORE-MAIN-051791,"300,000.00",Current grants - Local Government
Department for Education,Core,26/01/2024,Grants Expenditure,Children's Social Care - Strategy and Care System,Kent County Council,D-CINV006054,"47,222.85",Capital Grant - Local Government
Department for Education,Core,04/01/2024,Other Goods and Services,Children's Social Care - Strategy and Care System,Mott Macdonald Limited,CORE-PINV-070307,"297,212.08",Professional Services
Department for Education,Core,19/01/2024,Other Goods and Services,Children's Social Care - Strategy and Care System,Coram,CORE-PINV-070854,"1,700.00",Professional Services
